{"text_format":"1","workbook":"xlsx","n_sheets":8,"sheets":["Introducción","Formato1","Formato2","Rubros","Listas","Listas1","Listas2","Unidades"],"not_rendered":{"charts":0,"images":7,"macros":1,"external_links":0,"defined_names":24,"comments":0,"pivot_tables":0},"unopened":[],"bounds":{"document_bytes":16777216,"sheet_cells":100000,"rows_first":2000,"rows_last":500,"rows_between":2000,"halvings":0,"cell_chars":16384,"cell_head_chars":4096},"cells_cut":0,"cells_raw":0,"read":"whole","date_system":"1900"}

{"sheet":"Introducción","index":0,"n_rows":61,"n_cols":8,"rows_kept":61,"cut":false,"hidden":false,"merged":[[33,1,36,8],[38,1,47,8],[60,1,61,8],[62,0,68,9],[6,1,8,8],[22,2,23,6],[25,2,26,6],[31,1,31,4],[58,1,58,2],[58,4,58,5],[58,7,58,8],[28,2,29,6],[0,0,4,9],[10,1,15,8],[17,1,17,8],[19,2,20,6],[19,1,20,1]]}
[]
[]
[]
[]
[]
[]
[null,"Formato de propuesta financiera de proyecto\nFacultad de Ingeniería"]
[]
[]
[]
[null,"El presente formato es un requisito para la presentación de propuestas al comité de extensión, permite conocer con detalle la planificación económica del proyecto, la distribución de los rubros, así como las transferencias que se realizarán a la universidad"]
[]
[]
[]
[]
[]
[]
[null,"Por favor seleccione la opción que más se ajuste al estado actual de su propuesta:"]
[]
[null,1,"Ya he negociado con la Entidad o ya conozco con certeza el valor final de la propuesta a presentar"]
[]
[]
[null,2,"Ofertaré a un proyecto de extensión solidaria y ya tengo el valor final consolidado"]
[]
[]
[null,3,"Me encuentro elaborando el presupuesto y aún no está consolidado el valor final para ofertar"]
[]
[]
[null,4,"Ofertaré a un proyecto con extensión solidaria, me encuentro elaborando el presupuesto y aún no está consolidado el valor final para ofertar"]
[]
[]
[null,"Conozca el Listado de Rubros Aquí"]
[]
[null,"Si tiene algún inconveniente para imprimir el formato o añadir a una fila, le solicitamos que por favor habilite los permisos de ejecución para macros de la siguiente manera"]
[]
[]
[]
[]
[null,"La Universidad Nacional de Colombia, como responsable del Tratamiento de Datos Personales, informa que los datos de carácter personal recolectados mediante este formato, se encuentran bajo medidas que garantizan la seguridad, confidencialidad e integridad, y su tratamiento se realiza de acuerdo al cumplimiento normativo de la Ley 1581 de 2012 y de la Política de Tratamiento de Datos de la Institución. Puede ejercer sus derechos como titular a conocer, actualizar, rectificar y revocar las autorizaciones dadas a las finalidades aplicables a través de los canales dispuestos y disponibles en https://unal.edu.co/ o en el correo: protecdatos_na@unal.edu.co."]
[]
[]
[]
[]
[]
[]
[]
[]
[]
[]
[]
[]
[]
[]
[]
[]
[]
[]
[]
[null,"1. Ingrese a la ubicación del archivo y de clic derecho para abrir las propiedades del documento",null,null,"2. Seleccione la casilla de desbloquear en la sección de seguridad",null,null,"3.. Cierre y vuelva a abrir el archivo y de clic en la opción de habilitar contenido"]
[]
[null,"Cualquier inconveniente con el formato por favor comuníquese con los profesionales del IEI (calidadiei_fibog@unal.edu.co)"]

{"sheet":"Formato1","index":1,"n_rows":99,"n_cols":15,"rows_kept":99,"cut":false,"hidden":false,"merged":[[28,7,28,8],[28,9,28,10],[68,3,68,4],[67,3,67,4],[66,3,66,4],[73,3,73,4],[72,3,72,4],[71,3,71,4],[70,3,70,4],[69,3,69,4],[28,1,28,6],[0,1,0,8],[1,1,1,8],[2,1,2,8],[4,1,4,10],[5,1,5,10],[15,1,15,10],[21,1,21,10],[7,1,7,2],[9,1,9,2],[11,1,11,2],[13,1,13,2],[18,1,18,2],[17,4,18,4],[17,5,18,5],[17,8,18,8],[17,6,18,6],[17,1,17,2],[17,9,18,9],[19,1,19,2],[25,9,25,10],[26,1,26,6],[39,11,39,13],[90,11,91,13],[94,8,94,10],[29,1,29,6],[30,1,30,6],[30,7,30,8],[31,7,31,8],[31,9,31,10],[32,1,32,6],[32,7,32,8],[32,9,32,10],[36,8,36,9],[38,7,38,8],[38,9,38,10],[31,1,31,6],[27,1,27,6],[27,7,27,8],[27,9,27,10],[39,9,39,10],[39,7,39,8],[74,3,74,4],[65,3,65,4],[95,1,96,4],[95,5,96,7],[42,1,42,10],[43,1,43,10],[44,3,44,4],[45,3,45,4],[46,3,46,4],[47,3,47,4],[48,3,48,4],[77,3,77,4],[80,2,80,8],[81,2,81,4],[85,2,85,4],[86,2,86,4],[82,2,82,4],[83,2,83,4],[84,2,84,4],[76,3,76,4],[75,3,75,4],[64,3,64,4],[63,3,63,4],[62,3,62,4],[61,3,61,4],[60,3,60,4],[23,1,23,10],[26,7,26,8],[26,9,26,10],[24,1,24,6],[59,3,59,4],[58,3,58,4],[57,3,57,4],[56,3,56,4],[55,3,55,4],[54,3,54,4],[53,3,53,4],[52,3,52,4],[51,3,51,4],[50,3,50,4],[49,3,49,4],[35,8,35,9],[33,8,33,9],[24,7,24,8],[29,7,29,8],[24,9,24,10],[30,9,30,10],[29,9,29,10],[25,1,25,6],[25,7,25,8]]}
[".","Macroproceso: Extensión, Innovación y Propiedad Intelectual",null,null,null,null,null,null,null,".","."]
[".","Proceso: Gestión de la Extensión"]
[".","Título: Propuesta Financiera"]
["."]
[".","Presupuesto - Proyectos en modalidad de Servicios Académicos"]
[".","0. Información Básica"]
["."]
[".","Nombre / Proyecto",null,null,null,null,null,null,"Modalidad"]
["."]
[".","Facultad, Centro o Instituto",null,null,null,null,null,null,"Sub-modalidad",null,null,null,null,"Campos obligatorios"]
["."]
[".","Unidad Académica Básica",null,null,null,null,null,null,"Fecha",{"$f":"+TODAY()","v":45777},null,null,null,"Campos de información adicional (no obligatorios)"]
["."]
[".","Duración",null,null,"Meses",null,"Días",null,null,null,null,null,null,"Campos formulados (no modificar)"]
["."]
[".","I. Ingresos"]
["."]
[".","Tipo de Acuerdo",null,null,null,"Aporte entidad (monto)",null,null,{"$f":"IFERROR(IF(SEARCH(\"Convenio\",D18)=1,\"Contrapartida:\",\"\"),\"\")","v":""}]
[".","¿Corresponde a extensión solidaria?"]
[".",{"$f":"IF(D19=\"Si\",\"Valor porcentual de la cuota administrativa (10,00%)\",\"\")","v":""}]
["."]
[".","II. Egresos"]
["."]
[".","Transferencias Extensión - Específica\t"]
[".","O.I. Excedentes por Actividades Generadoras de Recurso (Facultad)",null,null,null,null,null,{"$f":"IF($D$19=\"Si\", 0%, 16.37%)","v":0.16370000000000001},null,{"$f":"$G$18*H25","v":0}]
[".","O.I. Transferencia UGI Nivel Nacional ",null,null,null,null,null,{"$f":"+IF($D$19=\"Si\",0%,6%)","v":0.06},null,0]
[".","O.I. Transferencia Académica",null,null,null,null,null,{"$f":"+IF($D$19=\"Si\",0%,5%)","v":0.05},null,0]
[".","O.I. Fondo Nacional de Extensión solidaria",null,null,null,null,null,{"$f":"+IF($D$19=\"Si\",0%,1%)","v":0.01},null,0]
[".","O.I. Fondo de riesgos para la Extensión",null,null,null,null,null,{"$f":"+IF($D$19=\"Si\",0%,0.5%)","v":5.0000000000000001E-3},null,0]
[".","O.I. Dirección Nacional de Extensión",null,null,null,null,null,{"$f":"+IF($D$19=\"Si\",0%,0.5%)","v":5.0000000000000001E-3},null,0]
[".","O.I. Dirección de Extensión sede",null,null,null,null,null,{"$f":"+IF($D$19=\"Si\",0%,0.5%)","v":5.0000000000000001E-3},null,0]
[".","O.I. Educación Formal",null,null,null,null,null,{"$f":"+IF($D$19=\"Si\",0%,0.13%)","v":1.2999999999999999E-3},null,{"$f":"$G$18*H32","v":0}]
[".","Cuota administrativa (extensión solidaria)",null,null,null,null,null,{"$f":"+IF($D$19=\"No\",0,$D$20)","v":0},null,{"$f":"$G$18*H33","v":0}]
[".",null,null,null,null,null,null,null,"Total Transferencias",null,{"$f":"+SUM(J25:K33)","v":0}]
["."]
[".",null,null,null,null,null,null,null,"Total Costos directos",null,{"$f":"SUM(K46:K78)","v":0}]
[".",null,null,null,null,null,null,null,"Total O.I. Costos Indirectos",null,{"$f":"K36*5%","v":0}]
["."]
[".",18,null,null,null,null,null,"TOTAL EGRESOS",null,{"$f":"K34+K36+K37","v":0}]
[".",null,null,null,null,null,null,"EXCEDENTE",null,{"$f":"$G$18-J39","v":0}]
["."]
["."]
[".","Distribución Presupuestal (Por favor verifique la categoría de rubros y certifique que la información es correcta)\t"]
["."]
[".","Categoría","Rubro","Nombre,  Objeto o Descripción \n(especifique el rubro)",null,"Unidad","Valor Unitario","Cantidad","Valor","4 X 1000","Total"]
[".",null,null,null,null,null,null,null,{"$f":"+G46*H46","v":0},{"$f":"+I46*0.004","v":0},{"$f":"+I46+J46","v":0}]
[".",null,null,null,null,null,null,null,{"$f":"+G47*H47","v":0},{"$f":"+I47*0.004","v":0},{"$f":"+I47+J47","v":0}]
[".",null,null,null,null,null,null,null,0,0,0,null,null,null,"AGREGAR FILA"]
[".",null,null,null,null,null,null,null,0,0,0]
[".",null,null,null,null,null,null,null,{"$f":"+G50*H50","v":0},0,{"$f":"+I50+J50","v":0}]
[".",null,null,null,null,null,null,null,0,{"$f":"+I51*0.004","v":0},0]
[".",null,null,null,null,null,null,null,{"$f":"+G52*H52","v":0},0,{"$f":"+I52+J52","v":0}]
[".",null,null,null,null,null,null,null,0,{"$f":"+I53*0.004","v":0},0]
[".",null,null,null,null,null,null,null,{"$f":"+G54*H54","v":0},0,{"$f":"+I54+J54","v":0}]
[".",null,null,null,null,null,null,null,0,{"$f":"+I55*0.004","v":0},0]
[".",null,null,null,null,null,null,null,{"$f":"+G56*H56","v":0},0,{"$f":"+I56+J56","v":0}]
[".",null,null,null,null,null,null,null,0,{"$f":"+I57*0.004","v":0},0]
[".",null,null,null,null,null,null,null,{"$f":"+G58*H58","v":0},0,{"$f":"+I58+J58","v":0}]
[".",null,null,null,null,null,null,null,0,{"$f":"+I59*0.004","v":0},0]
[".",null,null,null,null,null,null,null,{"$f":"+G60*H60","v":0},0,{"$f":"+I60+J60","v":0}]
[".",null,null,null,null,null,null,null,0,{"$f":"+I61*0.004","v":0},0]
[".",null,null,null,null,null,null,null,{"$f":"+G62*H62","v":0},0,{"$f":"+I62+J62","v":0}]
[".",null,null,null,null,null,null,null,0,{"$f":"+I63*0.004","v":0},0]
[".",null,null,null,null,null,null,null,{"$f":"+G64*H64","v":0},0,{"$f":"+I64+J64","v":0}]
[".",null,null,null,null,null,null,null,0,{"$f":"+I65*0.004","v":0},0]
[".",null,null,null,null,null,null,null,{"$f":"+G66*H66","v":0},0,{"$f":"+I66+J66","v":0}]
[".",null,null,null,null,null,null,null,0,{"$f":"+I67*0.004","v":0},0]
[".",null,null,null,null,null,null,null,{"$f":"+G68*H68","v":0},0,{"$f":"+I68+J68","v":0}]
[".",null,null,null,null,null,null,null,0,{"$f":"+I69*0.004","v":0},0]
[".",null,null,null,null,null,null,null,{"$f":"+G70*H70","v":0},0,{"$f":"+I70+J70","v":0}]
[".",null,null,null,null,null,null,null,0,{"$f":"+I71*0.004","v":0},0]
[".",null,null,null,null,null,null,null,{"$f":"+G72*H72","v":0},0,{"$f":"+I72+J72","v":0}]
[".",null,null,null,null,null,null,null,0,{"$f":"+I73*0.004","v":0},0]
[".",null,null,null,null,null,null,null,{"$f":"+G74*H74","v":0},0,{"$f":"+I74+J74","v":0}]
[".",null,null,null,null,null,null,null,0,{"$f":"+I75*0.004","v":0},0]
[".",null,null,null,null,null,null,null,0,{"$f":"+I76*0.004","v":0},0]
[".",null,null,null,null,null,null,null,0,0,0]
[".",null,null,null,null,null,null,null,0,{"$f":"+I78*0.004","v":0},0]
[".",null,null,null,null,null,null,"Total",{"$f":"+SUM(I$46:I78)","v":0},0,0]
["."]
[".",null,"Resumen"]
[".",null,"GASTOS_DE_COMERCIALIZACION_Y_PRODUCCION",null,null,null,null,null,{"$f":"SUMIF($B$46:$B$79, C82, $K$46:$K$79)","v":0}]
[".",null,"GASTOS_DE_PERSONAL",null,null,null,null,null,0]
[".",null,"ADQUISICION_DE_BIENES_Y_SERVICIOS",null,null,null,null,null,0]
[".",null,"GASTOS_POR_TRIBUTOS_MULTAS_SANCIONES_E_INTERESES_DE_MORA",null,null,null,null,null,0]
[".",null,"OTRAS_TRANSFERENCIAS_CORRIENTES",null,null,null,null,null,0]
[".",null,"OTRAS_TRANSFERENCIAS_INTERNAS",null,null,null,null,null,0]
[".",null,"TOTAL",null,null,null,null,null,{"$f":"+SUM(I82:I87)","v":0}]
["."]
["."]
["."]
["."]
["."]
[".",null,null,"FIRMA DIRECTOR DEL PROYECTO"]
[".",null,null,null,null,null,null,null,"V.°B.° Instituto de Extensión e Investigación IEI"]
[".","Código: B.FI.FT.06.005.005",null,null,null,"Versión: 2.0"]
[".",null,null,null,null,null,null,null,null,null,".","."]
[".",null,null,null,null,null,null,null,null,null,"."]
[null,null,null,null,null,null,null,null,null,null,"."]

{"sheet":"Formato2","index":2,"n_rows":99,"n_cols":15,"rows_kept":99,"cut":false,"hidden":false,"merged":[[53,3,53,4],[52,3,52,4],[51,3,51,4],[50,3,50,4],[49,3,49,4],[58,3,58,4],[57,3,57,4],[56,3,56,4],[55,3,55,4],[54,3,54,4],[69,3,69,4],[63,3,63,4],[62,3,62,4],[61,3,61,4],[60,3,60,4],[59,3,59,4],[68,3,68,4],[67,3,67,4],[66,3,66,4],[65,3,65,4],[64,3,64,4],[25,1,25,6],[25,7,25,8],[21,1,21,10],[84,2,84,4],[85,2,85,4],[86,2,86,4],[17,4,18,4],[17,5,18,5],[17,6,18,6],[17,8,18,8],[27,1,27,6],[27,7,27,8],[29,7,29,8],[46,3,46,4],[47,3,47,4],[48,3,48,4],[77,3,77,4],[76,3,76,4],[75,3,75,4],[74,3,74,4],[73,3,73,4],[72,3,72,4],[71,3,71,4],[70,3,70,4],[0,1,0,8],[1,1,1,8],[2,1,2,8],[4,1,4,10],[5,1,5,10],[15,1,15,10],[7,1,7,2],[9,1,9,2],[11,1,11,2],[13,1,13,2],[30,9,30,10],[29,1,29,6],[31,1,31,6],[31,7,31,8],[31,9,31,10],[32,1,32,6],[32,7,32,8],[32,9,32,10],[17,9,18,9],[17,1,17,2],[18,1,18,2],[27,9,27,10],[28,1,28,6],[28,7,28,8],[28,9,28,10],[25,9,25,10],[26,1,26,6],[26,7,26,8],[26,9,26,10],[19,1,19,2],[23,1,23,10],[24,1,24,6],[24,7,24,8],[24,9,24,10],[95,1,96,4],[95,5,96,7],[18,15,19,15],[90,11,91,13],[39,11,39,13],[42,1,42,10],[43,1,43,10],[44,3,44,4],[45,3,45,4],[94,8,94,10],[33,8,33,9],[35,8,35,9],[36,8,36,9],[38,7,38,8],[38,9,38,10],[39,7,39,8],[39,9,39,10],[80,2,80,8],[81,2,81,3],[82,2,82,4],[83,2,83,4],[29,9,29,10],[30,1,30,6],[30,7,30,8]]}
[".","Macroproceso: Extensión, Innovación y Propiedad Intelectual",null,null,null,null,null,null,null,".","."]
[".","Proceso: Gestión de la Extensión"]
[".","Título: Propuesta Financiera"]
["."]
[".","Presupuesto - Proyectos en modalidad de Servicios Académicos"]
[".","0. Información Básica"]
["."]
[".","Nombre / Proyecto",null,null,null,null,null,null,"Modalidad","SERVICIOS_ACADEMICOS"]
[".",null,null,null,null,null,null,null,null,null,null,null,null,"Campos obligatorios"]
[".","Facultad, Centro o Instituto",null,null,null,null,null,null,"Sub-modalidad","Interventorías"]
[".",null,null,null,null,null,null,null,null,null,null,null,null,"Campos de información adicional (no obligatorios)"]
[".","Unidad Académica Básica",null,null,null,null,null,null,"Fecha",{"$f":"+TODAY()","v":45777}]
[".",null,null,null,null,null,null,null,null,null,null,null,null,"Campos formulados (no modificar)"]
[".","Duración",null,null,"Meses",null,"Días"]
["."]
[".","I. Ingresos"]
["."]
[".","Tipo de Acuerdo",null,null,null,"Aporte entidad (monto)",{"$f":"IF(D19=\"No\",(K36+K37)/0.7,(K36+K37)/0.9)","v":0},null,{"$f":"IFERROR(IF(SEARCH(\"Convenio\",D18)=1,\"Contrapartida:\",\"\"),\"\")","v":""}]
[".","¿Corresponde a extensión solidaria?",null,null,null,null,null,null,null,null,null,null,null,"Valor mínimo de la propuesta"]
[".",{"$f":"IF(D19=\"Si\",\"Valor porcentual de la cuota administrativa (10,00%)\",\"\")","v":""}]
["."]
[".","II. Egresos"]
["."]
[".","TRANSFERENCIAS EXTENSIÓN - ESPECÍFICA"]
[".","O.I. Excedentes por Actividades Generadoras de Recurso (Facultad)",null,null,null,null,null,{"$f":"IF($D$19=\"Si\", 0%, 16.37%)","v":0.16370000000000001},null,{"$f":"$G$18*H25","v":0}]
[".","O.I. Transferencia UGI Nivel Nacional ",null,null,null,null,null,{"$f":"+IF($D$19=\"Si\",0%,6%)","v":0.06},null,0]
[".","O.I. Transferencia Académica",null,null,null,null,null,{"$f":"+IF($D$19=\"Si\",0%,5%)","v":0.05},null,0]
[".","O.I. Fondo Nacional de Extensión solidaria",null,null,null,null,null,{"$f":"+IF($D$19=\"Si\",0%,1%)","v":0.01},null,0]
[".","O.I. Fondo de riesgos para la Extensión",null,null,null,null,null,{"$f":"+IF($D$19=\"Si\",0%,0.5%)","v":5.0000000000000001E-3},null,0]
[".","O.I. Dirección Nacional de Extensión",null,null,null,null,null,{"$f":"+IF($D$19=\"Si\",0%,0.5%)","v":5.0000000000000001E-3},null,0]
[".","O.I. Dirección de Extensión sede",null,null,null,null,null,{"$f":"+IF($D$19=\"Si\",0%,0.5%)","v":5.0000000000000001E-3},null,0]
[".","O.I. Educación Formal",null,null,null,null,null,{"$f":"+IF($D$19=\"Si\",0%,0.13%)","v":1.2999999999999999E-3},null,0]
[".","Cuota administrativa (extensión solidaria)",null,null,null,null,null,{"$f":"+IF($D$19=\"No\",0,$D$20)","v":0},null,{"$f":"$G$18*H33","v":0}]
[".",null,null,null,null,null,null,null,"Total Transferencias",null,{"$f":"+SUM(J25:K33)","v":0}]
["."]
[".",null,null,null,null,null,null,null,"Total Costos directos",null,{"$f":"SUM(K46:K78)","v":0}]
[".",null,null,null,null,null,null,null,"Total O.I. Costos Indirectos",null,{"$f":"K36*5%","v":0}]
["."]
[".",18,null,null,null,null,null,"TOTAL EGRESOS",null,{"$f":"K34+K36+K37","v":0}]
[".",null,null,null,null,null,null,"EXCEDENTE",null,{"$f":"$G$18-J39","v":0},null,"El valor presupuestado supera el monto a contratar. Debe reducir los costos directos hasta que este valor llegue a 0 o sea positivo"]
["."]
["."]
[".","Distribución Presupuestal (Por favor verifique la categoría de rubros y certifique que la información es correcta)\t"]
["."]
[".","Categoría","Rubro","Nombre,  Objeto o Descripción \n(especifique el rubro)",null,"Unidad","Valor Unitario","Cantidad","Valor","4 X 1000","Total"]
[".",null,null,null,null,null,null,null,{"$f":"+G46*H46","v":0},{"$f":"+I46*0.004","v":0},{"$f":"+J46+I46","v":0},null,null,null,"AGREGAR FILA"]
[".",null,null,null,null,null,null,null,{"$f":"+G47*H47","v":0},0,{"$f":"+J47+I47","v":0}]
[".",null,null,null,null,null,null,null,0,0,0]
[".",null,null,null,null,null,null,null,0,{"$f":"+I49*0.004","v":0},0]
[".",null,null,null,null,null,null,null,0,0,0]
[".",null,null,null,null,null,null,null,{"$f":"+G51*H51","v":0},{"$f":"+I51*0.004","v":0},{"$f":"+J51+I51","v":0}]
[".",null,null,null,null,null,null,null,0,0,0]
[".",null,null,null,null,null,null,null,{"$f":"+G53*H53","v":0},{"$f":"+I53*0.004","v":0},{"$f":"+J53+I53","v":0}]
[".",null,null,null,null,null,null,null,0,0,0]
[".",null,null,null,null,null,null,null,{"$f":"+G55*H55","v":0},{"$f":"+I55*0.004","v":0},{"$f":"+J55+I55","v":0}]
[".",null,null,null,null,null,null,null,0,0,0]
[".",null,null,null,null,null,null,null,{"$f":"+G57*H57","v":0},{"$f":"+I57*0.004","v":0},{"$f":"+J57+I57","v":0}]
[".",null,null,null,null,null,null,null,0,0,0]
[".",null,null,null,null,null,null,null,{"$f":"+G59*H59","v":0},{"$f":"+I59*0.004","v":0},{"$f":"+J59+I59","v":0}]
[".",null,null,null,null,null,null,null,0,0,0]
[".",null,null,null,null,null,null,null,{"$f":"+G61*H61","v":0},{"$f":"+I61*0.004","v":0},{"$f":"+J61+I61","v":0}]
[".",null,null,null,null,null,null,null,0,0,0]
[".",null,null,null,null,null,null,null,{"$f":"+G63*H63","v":0},{"$f":"+I63*0.004","v":0},{"$f":"+J63+I63","v":0}]
[".",null,null,null,null,null,null,null,0,0,0]
[".",null,null,null,null,null,null,null,{"$f":"+G65*H65","v":0},{"$f":"+I65*0.004","v":0},{"$f":"+J65+I65","v":0}]
[".",null,null,null,null,null,null,null,0,0,0]
[".",null,null,null,null,null,null,null,{"$f":"+G67*H67","v":0},{"$f":"+I67*0.004","v":0},{"$f":"+J67+I67","v":0}]
[".",null,null,null,null,null,null,null,0,0,0]
[".",null,null,null,null,null,null,null,{"$f":"+G69*H69","v":0},{"$f":"+I69*0.004","v":0},{"$f":"+J69+I69","v":0}]
[".",null,null,null,null,null,null,null,0,0,0]
[".",null,null,null,null,null,null,null,{"$f":"+G71*H71","v":0},{"$f":"+I71*0.004","v":0},{"$f":"+J71+I71","v":0}]
[".",null,null,null,null,null,null,null,0,0,0]
[".",null,null,null,null,null,null,null,{"$f":"+G73*H73","v":0},{"$f":"+I73*0.004","v":0},{"$f":"+J73+I73","v":0}]
[".",null,null,null,null,null,null,null,0,0,0]
[".",null,null,null,null,null,null,null,{"$f":"+G75*H75","v":0},{"$f":"+I75*0.004","v":0},{"$f":"+J75+I75","v":0}]
[".",null,null,null,null,null,null,null,0,0,0]
[".",null,null,null,null,null,null,null,{"$f":"+G77*H77","v":0},{"$f":"+I77*0.004","v":0},{"$f":"+J77+I77","v":0}]
[".",null,null,null,null,null,null,null,0,0,0]
[".",null,null,null,null,null,null,"Total",{"$f":"+SUM(I$46:I78)","v":0},0,{"$f":"+I79+J79","v":0}]
["."]
[".",null,"Resumen"]
[".",null,"GASTOS_DE_COMERCIALIZACION_Y_PRODUCCION",null,null,null,null,null,{"$f":"SUMIF($B$46:$B$79, C82, $K$46:$K$79)","v":0}]
[".",null,"GASTOS_DE_PERSONAL",null,null,null,null,null,0]
[".",null,"ADQUISICION_DE_BIENES_Y_SERVICIOS",null,null,null,null,null,0]
[".",null,"GASTOS_POR_TRIBUTOS_MULTAS_SANCIONES_E_INTERESES_DE_MORA",null,null,null,null,null,0]
[".",null,"OTRAS_TRANSFERENCIAS_CORRIENTES",null,null,null,null,null,0]
[".",null,"OTRAS_TRANSFERENCIAS_INTERNAS",null,null,null,null,null,0]
[".",null,"TOTAL",null,null,null,null,null,{"$f":"+SUM(I82:I87)","v":0}]
["."]
["."]
["."]
["."]
["."]
["."]
[".",null,null,"FIRMA DIRECTOR DEL PROYECTO",null,null,null,null,"V.°B.° Instituto de Extensión e Investigación IEI"]
[".","Código: B.FI.FT.06.005.005",null,null,null,"Versión: 2.0"]
[".",null,null,null,null,null,null,null,null,null,".","."]
[".",null,null,null,null,null,null,null,null,null,"."]
[null,".",".",".",".",".",".",".",".",".","."]

{"sheet":"Rubros","index":3,"n_rows":107,"n_cols":5,"rows_kept":107,"cut":false,"hidden":false,"merged":[]}
["General","Código","Rubro","Descripción","Notas"]
["GASTOS DE COMERCIALIZACION Y PRODUCCION",210400501020803,"Servicios profesionales, cientificos y tecnicos (Excepto los servicios de investigacion, urbanismo, juridicos y de contabilidad)","Servicios de consultoría en administración y servicios de gestión; servicios de tecnología de la información, Servicios de arquitectura, paisajismo, planeación urbana y ordenamiento territorial, Servicios de ingeniería, Servicios científicos y otros servicios técnicos, Servicios veterinarios, Servicios de publicidad y suministro de espacio o tiempo publicitario, Servicios de investigación de mercados y encuestas de opinión pública, Servicios de fotografía y revelado fotográfico, Otros servicios profesionales, técnicos y empresariales n.c.p.","Vinculacion de diferentes profesionales, discriminar perfil"]
["GASTOS DE COMERCIALIZACION Y PRODUCCION",210400501020805,"Servicios de soporte","Estudiantes auxiliares, compra de tiquetes por agencias de viajes, bachilleres, servicios asistenciales, Servicios de organización de viajes, operadores turísticos y servicios conexos, Otros servicios auxiliares, servicios asistenciales","Este rubro se utiliza para vincular estudiantes auxiliares (la arl va por el rubro de servicios financieros), para vinculaciones de personal bachiller, asistenciales, para compra de tiquetes aereos por agencias de viajes."]
["GASTOS DE COMERCIALIZACION Y PRODUCCION",210400501020802,"Servicios juridicos y contables","Servicios jurídicos, Servicios de contabilidad, auditoría y teneduría de libros, Servicios de preparación y asesoramiento tributario","Servicios juridicos y contables."]
["ADQUISICION DE BIENES Y SERVICIOS",210400201011104,"Mejoras de tierras y terrenos","Corresponde a los gastos realizados para la adquisición de mejoras de tierra. Las mejoras de tierra son el resultado de acciones que dan lugar a mejoras importantes en la calidad, cantidad o productividad de la tierra, o que impidan su deterioro.\nIncluye:\n*Recuperación, desmonte de tierras y cerramiento del terreno.\n*Creación de pozos y abrevaderos que son parte integral de las tierras.\nNo incluye:\n*Costos de limpieza y preparación de terrenos cuando están asociados a la adquisición de edificaciones nuevas.\n*Construcción de malecones, diques, barreras contra inundaciones, entre otros, destinados a mejorar la calidad y cantidad de la tierra adyacente a ellos.\n*Construcción de sistemas de riego principales.\nSon los gastos asociados a todo tipo de acciones que generan mejoras importantes en la cantidad, la calidad o la productividad de la tierra, o que impiden su deterioro (Fondo Monetario Internacional, 2014, pág. 200).\nIncluye:\n Recuperación, desmonte de tierras y cerramiento del terreno.\n Creación de pozos y abrevaderos que son parte integral de las tierras.","Discriminar servicios a adquirir en mejoras de tierras y terrenos"]
["ADQUISICION DE BIENES Y SERVICIOS",210400201011103,"Otras estructuras","Son los gastos asociados a la adquisición de estructuras que no son edificios. Esta categoría incluye la construcción de muros de contención, diques, barreras de inundación, etc., destinados a mejorar la tierra adyacente a ellos. También incluye la infraestructura necesaria para la acuicultura como granjas de peces y bancos de mariscos.\n","Gastos asociados a la adquisición de estructuras que no son edificios"]
["ADQUISICION DE BIENES Y SERVICIOS",210400201011303,"Maquinaria para uso general","Son los gastos asociados a la adquisición de motores y turbinas; bombas y compresores; engranajes, rodamientos y elementos de transmisión; hornos; máquinas de elevación y demás maquinaria para uso general.","Discriminar el tipo de maquinaria que se va a adquirir"]
["ADQUISICION DE BIENES Y SERVICIOS",210400201011304,"Maquinaria para usos especiales","Son los gastos asociados a la adquisición de maquinaria agropecuaria o silvícola; maquinaria para industria metalúrgica; maquinaria para minería y explotación de canteras; maquinaria para elaboración de alimentos; maquinaria para la fabricación de textiles y demás maquinaria para usos especiales","Discriminar el tipo de maquinaria que se va a adquirir"]
["ADQUISICION DE BIENES Y SERVICIOS",210400201011305,"Maquinaria de oficina, contabilidad e informatica","Son los gastos asociados a la adquisición de máquinas de escribir o máquinas para procesamiento de datos; calculadoras o máquinas reproductoras de datos; cajas registradoras; cajeros automáticos, entre otras.","Discriminar equipos de computo y/o accesorios a adquirir"]
["ADQUISICION DE BIENES Y SERVICIOS",210400201011306,"Maquinaria y aparatos electricos","Son los gastos asociados a la adquisición de motores, generadores y transformadores eléctricos; aparatos de control eléctrico o distribución de electricidad; cables de fibra óptica; pilas y baterías primarias; equipo de alumbrado; entre otras.","Discriminar el tipo de maquinaria y/o equipo que se va a adquirir"]
["ADQUISICION DE BIENES Y SERVICIOS",210400201011307,"Equipo y aparatos de radio, television y comunicaciones","Son los gastos asociados a la adquisición de componentes electrónicos; aparatos transmisores de televisión y radio; cámaras digitales y teléfonos, aparatos receptores de radio y televisión; dispositivos de almacenamientos como cintas y medios magnéticos; grabaciones de audio o video y tarjetas con bandas magnéticas.","Discriminar los equipos que se van a adquirir"]
["ADQUISICION DE BIENES Y SERVICIOS",210400201011308,"Aparatos medicos, instrumentos opticos y de precision, relojes","Son los gastos asociados a la adquisición de aparatos médicos y quirúrgicos; instrumentos y aparatos de medición, verificación y análisis; instrumentos ópticos y equipo fotográfico; y relojes.","Discriminar los equipos que se van a adquirir"]
["ADQUISICION DE BIENES Y SERVICIOS",210400201011309,"Equipo de transporte","491 Vehículos automotores, remolques y semirremolques; y sus partes, piezas y accesorios\n492 Carrocerías (incluso cabinas) para vehículos automotores; remolques y semirremolques; y sus partes, piezas y accesorios\n493 Buques\n494 Embarcaciones para deportes y recreo\n495 Locomotoras y material rodante de ferrocarril y tranvía, y sus partes y piezas\n496 Aeronaves y naves espaciales, y sus partes y piezas\n499 Otro equipo de transporte, y sus partes y piezas\n","compra de vehiculos "]
["ADQUISICION DE BIENES Y SERVICIOS",210400201011401,"Recursos biologicos cultivados","Son los gastos asociados a la adquisición de animales, árboles, cultivos o plantas que generan productos en forma repetida y cuyo crecimiento natural y regeneración se encuentran bajo control, responsabilidad y manejo directo de una unidad (Fondo Monetario Internacional, 2014, pág. 202). \nNo incluye: \n Bosques naturales y animales salvajes en tanto su crecimiento y regeneración no se encuentra bajo control de ninguna persona o entidad.","Discriminar los items a adquirir"]
["ADQUISICION DE BIENES Y SERVICIOS",210400201011402,"Productos de la propiedad intelectual","Son los gastos asociados a la adquisición de productos que resultan de la investigación, el desarrollo o la innovación, y que conducen a conocimientos, los cuales pueden ser vendidos en el mercado o utilizados para beneficio propio en la producción (Fondo Monetario Internacional, 2014, pág. 182). \nEl conocimiento se mantiene como un activo siempre y cuando cuente con algún tipo de protección legal, o de otra índole, que genera beneficios de monopolio para su dueño. Cuando ya no está protegido, se vuelve obsoleto en virtud de los últimos avances y deja de ser un activo (Fondo Monetario Internacional, 2014, pág. 182).","Licencias de sofware"]
["ADQUISICION DE BIENES Y SERVICIOS",210400201021501,"Joyas, metales preciosos y antiguedades","Corresponde a las adquisiciones de oro no monetario y otras piedras y metales preciosos que no se prevé emplear como materiales y suministros en procesos productivos. También incluye las joyas de considerable valor diseñadas con piedras y metales preciosos. Adquisiciones de pinturas, esculturas y otros objetos reconocidos como obras de arte o antigüedades mantenidos primordialmente como depósito de valor a través del tiempo.Ademas de, adquisición de colecciones de estampillas, monedas, porcelana china, libros y otros diversos objetos de valor.","Discriminar los items a adquirir"]
["ADQUISICION DE BIENES Y SERVICIOS",2104002010316,"Tierras y terrenos","compra de terrenos, no muy utilizado en proyectos en la UNAL","terrenos y propiedades"]
["ADQUISICION DE BIENES Y SERVICIOS",210400201011101,"Viviendas","Son los gastos asociados a la adquisición de edificaciones cuyo uso principal o total es residencial, incluidas las construcciones asociadas y otros accesorios. Estas edificaciones incluyen cualquier construcción asociada, como los garajes, y todos los accesorios permanentes instalados habitualmente en las residencias.","Este rubro es para adquirir viviendas"]
["ADQUISICION DE BIENES Y SERVICIOS",210400201011102,"Edificios distintos a viviendas","Son los gastos asociados a la adquisición de edificios completos, o partes específicas de estos, destinados a fines distintos a los residenciales (Fondo Monetario Internacional, 2014, pág. 200).\nIncluye: Costos de limpieza y preparación del terreno para edificaciones nuevas.\nMonumentos públicos no residenciales\nEdificios educativos\nEdificios relacionados con salud\nInstalaciones recreativas\nCentros de convenciones y congresos\nOtros edificios no residenciales","Este rubro es para adquirir edificios"]
["ADQUISICION DE BIENES Y SERVICIOS",210400201011208,"Muebles, instrumentos musicales, articulos de deporte y antiguedades","Gastos por adquisición de muebles, \nGastos por adquisición de instrumentos musicales.\nGastos por adquisición de artículos de deporte.\nGastos por adquisición de antigüedades u otros objetos de arte.","Discriminar, el tipo de mueble, enser, articulo a adquirir"]
["GASTOS DE COMERCIALIZACION Y PRODUCCION",210400501020907,"Otros servicios","Servicios de lavado, limpieza y teñido, Servicios de tratamientos de belleza y de bienestar físico, Servicios funerarios, de cremación y de sepultura\n","Este rubro esta enfocado a servicios del avanderia, servicios de peluqueria, servicios funerarios"]
["GASTOS DE COMERCIALIZACION Y PRODUCCION",210400501020909,"Servicios prestados por organizaciones y organismos extraterritoriales","Servicios prestados por organizaciones y organismos extraterritoriales","Servicios prestados por organizaciones y organismos extraterritoriales"]
["GASTOS DE COMERCIALIZACION Y PRODUCCION",210400501020111,"Viaticos de los funcionarios en comision","viaticos, gastos de viaje profesores","viaticos, gastos de viaje profesores"]
["GASTOS DE COMERCIALIZACION Y PRODUCCION",210400501010001,"Productos de la agricultura y la horticultura","cereales, hortalizas, frutas y nueces, semillas, Raíces y tubérculos comestibles ricos en almidón o inulina, Plantas estimulantes, aromáticas y especias, Legumbres secas, Plantas utilizadas en la fabricación de azúcar, productos de forraje","Discriminar el producto agricola a adquirir"]
["GASTOS DE COMERCIALIZACION Y PRODUCCION",210400501010002,"Animales vivos y productos animales (excepto la carne)","animales vivos, leche cruda, huevos de gallina o de otras aves, materiales reproductivos de animales, otros productos animales como la miel, la lana, los cueros o piles","Discriminar el tipo de animal a aduirir"]
["GASTOS DE COMERCIALIZACION Y PRODUCCION",210400501010003,"Productos de la silvicultura y de la explotacion forestal","Madera en bruto, Productos forestales (diferentes a la madera),","Algunos productos forestales diferentes a la madera"]
["GASTOS DE COMERCIALIZACION Y PRODUCCION",210400501010004,"Pescado y otros productos de la pesca","Peces, vivos, no para consumo humano, Peces vivos, frescos o refrigerados para consumo humano, Crustáceos, vivos, frescos o refrigerados, Moluscos vivos, frescos o refrigerados, Otros invertebrados acuáticos, vivos, frescos o refrigerados, Otras plantas y animales acuáticos","Peces no para el consumo humano"]
["GASTOS DE COMERCIALIZACION Y PRODUCCION",210400501010101,"Carbon de hulla, lignito y turba","Carbón de hulla, lignito y turba","compra de carbon"]
["GASTOS DE COMERCIALIZACION Y PRODUCCION",210400501010102,"Petroleo crudo y gas natural","Petróleo crudo y gas natural","para comprar petroleo crudo"]
["GASTOS DE COMERCIALIZACION Y PRODUCCION",210400501010103,"Minerales y concentrados de uranio y torio","Minerales y concentrados de uranio y torio","Minerales y concentrados de uranio y torio"]
["GASTOS DE COMERCIALIZACION Y PRODUCCION",210400501010104,"Minerales metalicos","Minerales de hierro y sus concentrados (excepto las piritas de hierro tostadas), Minerales metálicos no ferrosos y sus concentrados (excepto minerales de uranio o torio y sus concentrados)","Minerales y concentrados de hierro (excepto las piritas de hierro tostadas)"]
["GASTOS DE COMERCIALIZACION Y PRODUCCION",210400501010105,"Piedra, arena y arcilla","Roca o piedra de construcción y de talla, Yeso; anhidrita, fundente calizo; piedra caliza y otras piedras calcáreas del tipo utilizado habitualmente para la fabricación de cal o cemento, Arenas, cantos, gravas, piedra partida o triturada, betún y asfaltos naturales, Arcillas,"]
["GASTOS DE COMERCIALIZACION Y PRODUCCION",210400501010106,"Otros minerales","Minerales para la industria química, abonos minerales, Cloruro de sodio puro y sus sales, agua de mar, Piedras preciosas y semipreciosas; piedra pómez, piedra esmeril; abrasivos naturales; otros minerales,"]
["GASTOS DE COMERCIALIZACION Y PRODUCCION",210400501010107,"Electricidad, gas de ciudad, vapor y agua caliente","Energía eléctrica, Gas de carbón, gas de agua, gas pobre y otros gases similares (excepto los gases de petróleo y otros hidrocarburos gaseosos), Vapor y agua caliente,","Energía eléctrica, Gas de carbón, gas de agua, gas pobre y otros gases similares (excepto los gases de petróleo y otros hidrocarburos gaseosos), Vapor y agua caliente,"]
["GASTOS DE COMERCIALIZACION Y PRODUCCION",210400501010108,"Agua natural","Agua natural","agua como materia prima"]
["GASTOS DE COMERCIALIZACION Y PRODUCCION",210400501010201,"Carne, pescado, frutas, hortalizas, aceites y grasas","Carne y productos cárnicos, Preparaciones y conservas de pescado, crustáceos, moluscos y demás invertebrados acuáticos, Preparaciones y conservas de hortalizas, legumbres, tubérculos y papas, Preparaciones y conservas de frutas y nueces, Grasas animales, Aceites vegetales, Margarina y preparaciones similares, Tortas y demás residuos de la extracción de grasas o aceites vegetales; harina y polvo de semillas o de frutos oleaginosos (excepto las de mostaza); ceras vegetales (excepto los triglicéridos); degrás, residuos del tratamiento de grasas y ceras animales o vegetales","productos carnicos, pescados, hortalizas"]
["GASTOS DE COMERCIALIZACION Y PRODUCCION",210400501010202,"Productos lacteos y ovoproductos","Leche líquida procesada, crema y suero, Otros productos lácteos como leche en polvo o mantequilla, queso","Productos lacteos"]
["GASTOS DE COMERCIALIZACION Y PRODUCCION",210400501010203,"Productos de molineria, almidones y productos derivados del almidon; otros productos alimenticios","Productos de molinería, Almidones y productos derivados del almidón, azúcares y jarabes de azúcar n.c.p. Preparaciones utilizadas en la alimentación de animales; harina y gránulos de alfalfa, Productos de panadería, Azúcar y melaza, Cacao, chocolate y confitería, Macarrones, fideos, cuscús y productos farináceos similares, Productos del café","Harinas, arroz, azucar, chocolate, articulos confiteria, pastas alimenticias, productos del cafe, salsas, "]
["GASTOS DE COMERCIALIZACION Y PRODUCCION",210400501010204,"Bebidas","Alcohol etílico; aguardientes, licores y otras bebidas destiladas, Vinos, Licores de malta y malta, Bebidas no alcohólicas; aguas minerales embotelladas,","vinos, cervezas, bebidas alcoholicas"]
["GASTOS DE COMERCIALIZACION Y PRODUCCION",210400501010205,"Productos de tabaco","Productos de tabaco","Productos de tabaco\n"]
["GASTOS DE COMERCIALIZACION Y PRODUCCION",210400501010206,"Hilados e hilos; tejidos de fibras textiles incluso afelpados","Fibras textiles naturales preparadas para el hilado, Fibras textiles artificiales o sintéticas, discontinuas elaboradas para el hilado, Hilados e hilos de fibras textiles naturales, Hilados textiles e hilos de filamentos manufacturados o fibras discontinuas, Tejidos (excepto tejidos especiales) de fibras naturales distintas del algodón, Tejidos (excepto tejidos especiales) de algodón, Tejidos (excepto tejidos especiales) de filamentos manufacturados y fibras discontinuas, Tejidos especiales,","Hilos, tejidos"]
["GASTOS DE COMERCIALIZACION Y PRODUCCION",210400501010207,"Articulos textiles (excepto prendas de vestir)","Artículos confeccionados con textiles, Alfombras y otros recubrimientos para pisos, de materiales textiles, Bramantes, cordeles, cuerdas, cordajes y artículos similares (incluye redes), otros articulos textiles como encajes…","Artículos confeccionados con textiles,"]
["GASTOS DE COMERCIALIZACION Y PRODUCCION",210400501010208,"Tejido de punto o ganchillo; prendas de vestir","Tejidos de punto o ganchillo, Prendas de vestir (excepto prendas de piel), Pieles finas curtidas o adobadas y pieles artificiales; artículos similares (excepto sombreros y demás tocados),","Prendas de vestir, "]
["GASTOS DE COMERCIALIZACION Y PRODUCCION",210400501010209,"Cuero y productos de cuero; calzado","Cuero curtido o adobado; cuero regenerado, Maletas, bolsos de mano y artículos similares; artículos de talabartería y guarnicionería, otros artículos de cuero, Calzado con suela y parte superior elaborados de caucho o plástico, o con la parte superior de cuero o materiales textiles (diferentes de zapatos deportivos, calzado que incorpora puntera protectora de metal y calzado especial misceláneo), Calzado deportivo (excepto botas de patinar), Otros tipos de calzado (excepto calzado de asbesto, calzado ortopédico y botas de esquiar), Partes de calzado; plantillas removibles, taloneras y artículos similares; polainas cortas y largas, y artículos similares y sus partes,","Productos de cuero, maletas, "]
["GASTOS DE COMERCIALIZACION Y PRODUCCION",210400501010301,"Productos de madera, corcho, cesteria y esparteria","Madera aserrada o cortada longitudinalmente, cortada en hojas o descortezada, de más de 6 mm de espesor; durmientes (traviesas) de madera para vías de ferrocarril o tranvías, sin impregnar, Madera perfilada longitudinalmente en cualquiera de sus bordes o caras; viruta de madera, aserrín, madera en astillas o partículas, Madera en bruto, incluidas aquellas tratadas con pintura, colorantes, creosota u otros preservativos; durmientes (traviesas) de madera impregnada para vías de ferrocarril o tranvía; flejes de madera, rodrigones, palos de madera y similares, Tableros y paneles, Hojas de madera para enchapado; hojas de madera contrachapadas; madera compactada, Obras y piezas de carpintería para construcciones (incluso tableros de madera celular, tableros armados para pisos de parqué, tablillas y ripias), Cajones, cajas, guacales, cilindros y envases similares de madera; carretes de madera para cables; estibas y otras plataformas de madera para carga; barriles, cubas, tinas y demás productos de tonelería y sus partes (incluso duelas) de madera, Otros productos de madera; artículos de corcho, materiales trenzables y paja","Productos de madera,"]
["GASTOS DE COMERCIALIZACION Y PRODUCCION",210400501010302,"Pasta o pulpa, papel y productos de papel; impresos y articulos relacionados","Pasta de papel, papel y cartón, Libros impresos, Diarios, revistas y publicaciones periódicas, publicados por lo menos cuatro veces por semana, Mapas impresos; partituras impresas o en manuscrito; tarjetas postales, tarjetas de felicitación, fotografías y planos, Estampillas, talonarios de cheques, billetes de banco, títulos de acciones, catálogos y folletos, material para anuncios publicitarios y otros materiales impresos, Libros de registros, libros de contabilidad, cuadernillos de notas, bloques para cartas, agendas y artículos similares, secantes, encuadernadores, clasificadores para archivos, formularios y otros artículos de escritorio, de papel o cartón, Tipos de imprenta, planchas o cilindros, preparados para las artes gráficas, piedras litográficas impresas u otros elementos de impresión","Productos de papel, impresos"]
["GASTOS DE COMERCIALIZACION Y PRODUCCION",210400501010303,"Productos de hornos de coque; productos de refinacion de petroleo y combustible nuclear","Carbón coque y semicoque de hulla, carbón de lignito o carbón de hulla; carbón de retorta, Alquitrán destilado de carbón de hulla, lignito o turba y otros alquitranes minerales, Aceites de petróleo o aceites obtenidos de minerales bituminosos (excepto los aceites crudos); preparados n.c.p., que contengan por lo menos el 70% de su peso en aceites de esos tipos y cuyos componentes básicos sean esos aceites, Gas de petróleo y otros hidrocarburos gaseosos (excepto gas natural), Vaselina, cera de parafina, cera de petróleo de microcristalina, cera cruda, ozocerita, cera de lignito, cera de turba, otras ceras minerales y productos similares, coque de petróleo, betún de petróleo y otros residuos de los aceites de petróleo o de aceites obtenidos de minerales bituminosos, Elementos radiactivos, isótopos y compuestos radiactivos; aleaciones, dispersiones, productos cerámicos y mezclas que contengan estos elementos, isótopos o compuestos radiactivos; residuos radiactivos, Elementos combustibles (cartuchos) para reactores nucleares o de reactores nucleares","Gasolina, thiner, varsol."]
["GASTOS DE COMERCIALIZACION Y PRODUCCION",210400501010304,"Quimicos basicos","Químicos orgánicos básicos, Productos químicos inorgánicos básicos como el neos, oxigeno, óxidos, Extractos tintóreos y curtientes; taninos y sus derivados; sustancias colorantes n.c.p. Abonos y plaguicidas, Plásticos en formas primarias","Productos Quimicos"]
["GASTOS DE COMERCIALIZACION Y PRODUCCION",210400501010305,"Otros productos quimicos; fibras artificiales (o fibras industriales hechas por el hombre)","Pinturas y barnices y productos relacionados; colores para la pintura artística; tintas, Productos farmacéuticos, Jabón, preparados de limpieza, perfumes y preparados de tocador, Fibras textiles manufacturadas","tintas de impresion, jabones"]
["GASTOS DE COMERCIALIZACION Y PRODUCCION",210400501010306,"Productos de caucho y plastico","Llantas de caucho y neumáticos (cámaras de aire), Otros productos de caucho, Semimanufacturas de plástico, Productos de empaque y envasado, de plástico, Otros productos plásticos,","productos de caucho y plastico"]
["GASTOS DE COMERCIALIZACION Y PRODUCCION",210400501010307,"Vidrio y productos de vidrio y otros productos no metalicos n.c.p.","Vidrio y productos de vidrio, Artículos de cerámica no estructural, Productos refractarios y productos estructurales no refractarios de arcilla, Yeso, cal y cemento, Piedra de construcción o de talla labradas, y sus manufactura, Otros productos minerales no metálicos n.c.p.","Vidrio y productos de vidrio. ladrillos, yeso, marmol"]
["GASTOS DE COMERCIALIZACION Y PRODUCCION",210400501010308,"Muebles; otros bienes transportables n.c.p.","Muebles, Joyas y artículos conexos, Instrumentos musicales, Artículos de deporte, Juegos y juguetes, Construcciones prefabricadas, Otros artículos manufacturados n.c.p.","muebles, sillas, mesas, otros articulos. juguetes, esferos"]
["GASTOS DE COMERCIALIZACION Y PRODUCCION",210400501010309,"Desperdicios; desechos y residuales","Desperdicios de la industria de alimentos y de tabaco, Desperdicios o desechos no metálicos, Desperdicios o desechos metálicos, Otros desperdicios y desechos","Desperdicios"]
["GASTOS DE COMERCIALIZACION Y PRODUCCION",210400501010401,"Metales basicos","Productos básicos de hierro y acero, Productos de hierro y acero, Metales preciosos comunes y metales enchapados con metales preciosos, Cobre, níquel, aluminio, alúmina, plomo, zinc y estaño, en bruto, Productos semiacabados de cobre, níquel, aluminio, plomo, zinc y estaño y sus aleaciones, Otros metales no ferrosos y sus manufacturas (incluso desperdicios y desechos); aleaciones metalocerámicas y sus manufacturas; cenizas y residuos (excepto los resultantes de la fabricación de hierro y acero) que contengan metales o compuestos metálicos,","Productos básicos de hierro y acero"]
["GASTOS DE COMERCIALIZACION Y PRODUCCION",210400501010402,"Productos metalicos elaborados (excepto maquinaria y equipo)","Productos metálicos estructurales y sus partes, Depósitos, cisternas y recipientes de hierro, acero o aluminio, Calderas generadoras de vapor de agua (excepto calderas de agua caliente para calefacción central) y sus partes y piezas, Productos metálicos para uso doméstico,","Productos metálicos estructurales y sus partes"]
["GASTOS DE COMERCIALIZACION Y PRODUCCION",210400501010403,"Maquinaria para uso general","Motores y turbinas y sus partes","Motores y turbinas y sus partes, extinguidores"]
["GASTOS DE COMERCIALIZACION Y PRODUCCION",210400501010404,"Maquinaria para usos especiales","Maquinaria agropecuaria o silvícola y sus partes y piezas, hidrolavadoras, neveras, lavadoras, fotocopiadoras, ","Maquinaria agropecuaria o silvícola y sus partes y piezas, hidrolavadoras, neveras, lavadoras, fotocopiadoras, "]
["GASTOS DE COMERCIALIZACION Y PRODUCCION",210400201011405,"Maquinaria de oficina, contabilidad e informatica","Discriminar equipo a adquirir. oficina: perforadoras, sacaganchos, equipos computo","Discriminar equipo a adquirir. oficina: perforadoras, sacaganchos, equipos computo"]
["GASTOS DE COMERCIALIZACION Y PRODUCCION",210400501010406,"Maquinaria y aparatos electricos","Motores, generadores y transformadores eléctricos y sus partes y piezas, cables, pilas, baterias, bombillas","Motores, generadores y transformadores eléctricos y sus partes y piezas, cables, pilas, baterias, bombillas"]
["GASTOS DE COMERCIALIZACION Y PRODUCCION",210400501010407,"Equipo y aparatos de radio, television y comunicaciones","Válvulas y tubos electrónicos; componentes electrónicos; sus partes y piezas, camaras television, camaras digitales, telefonos, televisores, radios, microfonos, parlantes, antenas, paquetes de software","Válvulas y tubos electrónicos; componentes electrónicos; sus partes y piezas, camaras television, camaras digitales, telefonos, televisores, radios, microfonos, parlantes, antenas, paquetes de software"]
["GASTOS DE COMERCIALIZACION Y PRODUCCION",210400201011408,"Aparatos medicos, instrumentos opticos y de precision, relojes","Aparatos médicos e instrumentos de medicion, instrumnentos opticos","Aparatos médicos e instrumentos de medicion, instrumnentos opticos"]
["GASTOS DE COMERCIALIZACION Y PRODUCCION",210400501010409,"Equipo de transporte","Vehículos automotores, remolques y semirremolques; y sus partes, piezas y accesorios. ","Vehículos automotores, remolques y semirremolques; y sus partes, piezas y accesorios. "]
["GASTOS DE COMERCIALIZACION Y PRODUCCION",210400501020504,"Servicios de construccion","Servicios generales de construcción de edificaciones, Servicios generales de construcción de obras de ingeniería civil, Servicios de preparación del terreno de construcción, Montaje e instalación de construcciones prefabricadas, Servicios de instalaciones, Servicios de terminación y acabado de edificios","Servicios generales de construcción de edificaciones, servicios de preparacion del terreno, serviicos de instalaciones"]
["GASTOS DE COMERCIALIZACION Y PRODUCCION",210400501020603,"Alojamiento; servicios de suministros de comidas y bebidas","Servicios de alojamiento para estancias cortas, Otros servicios de alojamiento, Servicios de suministro de comidas,","Servicios de alojamiento para estancias cortas, Servicios de catering para eventos, Servicios de suministro de comidas"]
["GASTOS DE COMERCIALIZACION Y PRODUCCION",210400501020604,"Servicios de transporte de pasajeros","Servicios de transporte local y turístico de pasajeros, Servicios de transporte de pasajeros, diferente del transporte local y turístico de pasajeros,","Servicios de transporte local y turístico de pasajeros, Servicios de taxi, Servicios de alquiler de automóviles con conductor"]
["GASTOS DE COMERCIALIZACION Y PRODUCCION",210400501020605,"Servicios de transporte de carga","Servicios de transporte de carga por vía terrestre, Servicios de transporte de carga por vía acuática, Servicios de transporte de carga por vía aérea o espacial","Servicios de transporte de carga por vía terrestre, aereo."]
["GASTOS DE COMERCIALIZACION Y PRODUCCION",210400501020606,"Servicios de alquiler de vehiculos de transporte con operario","Servicios de alquiler de vehículos de transporte con operario","Servicios de alquiler de vehículos de transporte con operario (buses, vans, vehiculos) "]
["GASTOS DE COMERCIALIZACION Y PRODUCCION",210400501020607,"Servicios de apoyo al transporte","Servicios de manipulación de carga, Servicios de almacenamiento y depósito, Servicios de apoyo al transporte por vía férrea, Servicios de apoyo al transporte por carretera, Servicios de apoyo al transporte por vía acuática","Servicios de manipulación de carga, Servicios de parqueaderos"]
["GASTOS DE COMERCIALIZACION Y PRODUCCION",210400501020608,"Servicios postales y de mensajeria","Servicios postales y de mensajería","Servicios postales y de mensajería"]
["GASTOS DE COMERCIALIZACION Y PRODUCCION",210400501020609,"Servicios de distribucion de electricidad, gas y agua (por cuenta propia)","Servicios de distribución de electricidad, y servicios de distribución de gas (por cuenta propia), Servicios de distribución de agua (por cuenta propia),","Para contratar servicio de distribucion de energia "]
["GASTOS DE COMERCIALIZACION Y PRODUCCION",210400501020701,"Servicios financieros y servicios conexos","Servicios financieros (excepto los servicios de la banca de inversión, servicios de seguros y servicios de pensiones), Servicios de la banca de inversión, Servicios de seguros y pensiones (excepto los servicios de reaseguro y de seguridad social de afiliación obligatoria), Servicios de reaseguro, ARL","Por este rubro se lleva la ARL de contratistas y estudiantes auxiliares, pago de polizas, servicios fiduciarios"]
["GASTOS DE COMERCIALIZACION Y PRODUCCION",210400501020702,"Servicios - inmobiliarios","Servicios inmobiliarios relativos a bienes inmuebles propios o arrendados, Servicios inmobiliarios a comisión o por contrato,","Servicios inmobiliarios relativos a bienes raíces propios o arrendados"]
["GASTOS DE COMERCIALIZACION Y PRODUCCION",210400501020703,"Servicios de arrendamiento o alquiler sin operario","Servicios de arrendamiento o alquiler de maquinaria y equipo sin operario, Servicios de arrendamiento sin opción de compra de otros bienes, Derechos de uso de productos de propiedad intelectual y otros productos similares,","Servicios de arrendamiento o alquiler de maquinaria y equipo sin operario, Servicios de arrendamiento o alquiler de automóviles y furgonetas sin operario, alquiler de vehiculos"]
["GASTOS DE COMERCIALIZACION Y PRODUCCION",210400501020801,"Servicios de investigacion y desarrollo","Servicios de investigación y desarrollo experimental en ciencias naturales e ingeniería, Servicios de investigación y desarrollo experimental en ciencias sociales y humanidades, Servicios interdisciplinarios de investigación y desarrollo experimental, Creaciones originales relacionadas con investigación y desarrollo","Este rubro es utilizado para vinculaciones en investigacion"]
["GASTOS DE COMERCIALIZACION Y PRODUCCION",210400501020804,"Servicios de telecomunicaciones, transmision y suministro de informacion","Servicios de telefonía y otros servicios de telecomunicaciones, Servicios de telecomunicaciones vía Internet, Servicios de contenidos en línea (on-line), Servicios de agencias de noticias, Servicios de bibliotecas y archivos, Servicios de transmisión, programación y distribución de programas,","Servicios de telefonía y otras telecomunicaciones, servicios de internet, servicios de transmision"]
["GASTOS DE COMERCIALIZACION Y PRODUCCION",210400501020806,"Servicios de apoyo a la agricultura, la caza, la silvicultura, la pesca, la mineria y los servicios publicos","Servicios de apoyo y de operación para la agricultura, la caza, la silvicultura y la pesca, Servicios de apoyo y de operación para la minería, Servicios de apoyo y de operación para la distribución de electricidad, gas y agua,","Servicios de apoyo a la agricultura, la caza, la silvicultura y la pesca"]
["GASTOS DE COMERCIALIZACION Y PRODUCCION",210400501020807,"Servicios de mantenimiento, reparacion e instalacion (excepto servicios de construccion)","Servicios de mantenimiento y reparación de productos metálicos elaborados, maquinaria y equipo, Servicios de reparación de otros bienes, Servicios de instalación (distintos de los servicios de construcción)","Servicios de mantenimiento y reparación de productos metálicos elaborados, maquinaria y equipo"]
["GASTOS DE COMERCIALIZACION Y PRODUCCION",210400501020808,"Servicios de fabricacion de insumos fisicos que son propiedad de otros","Servicios de fabricación de alimentos, bebidas y tabaco, Servicios de confección de artículos con materiales textiles, ","Servicios de fabricación de alimentos, bebidas y tabaco, Servicios de confección de artículos con materiales textiles, "]
["GASTOS DE COMERCIALIZACION Y PRODUCCION",210400501020809,"Otros servicios de fabricacion; servicios de edicion, impresion y reproduccion; servicios de recuperacion de materiales","Servicios de edición, impresión y reproducción, Servicios de moldeado, estampado, extrusión y fabricación de productos similares de plástico, Servicios de fundición, forja, estampado y fabricación de productos similares de metales,","Servicios de edición, impresión y reproducción"]
["GASTOS DE COMERCIALIZACION Y PRODUCCION",210400501020902,"Servicios de educacion","Servicios de educación para la primera infancia, Servicios de educación básica primaria, Servicios de educación postsecundaria no superior, Servicios de educación superior, Otros tipos de educación y servicios de apoyo educativo","Para vincular personal que va a impartir foemacion, charlas, conferencias, cursos"]
["GASTOS DE COMERCIALIZACION Y PRODUCCION",210400501020903,"Servicios para el cuidado de la salud humana y servicios sociales","Servicios de salud humana, Servicios de atención residencial para personas mayores y con discapacidad","Servicios de salud humana, servicios medicos"]
["GASTOS DE COMERCIALIZACION Y PRODUCCION",210400501020904,"Servicios de alcantarillado, recoleccion, tratamiento y disposicion de desechos y otros servicios de saneamiento ambiental","Servicios de alcantarillado, servicios de limpieza, tratamiento de aguas residuales y tanques sépticos, Servicios de recolección de desechos, Servicios de tratamiento y disposición de desechos, Servicios de descontaminación, Servicios de saneamiento y similares","Servicios de alcantarillado, servicios de limpieza, tratamiento de aguas residuales y tanques sépticos"]
["GASTOS DE COMERCIALIZACION Y PRODUCCION",210400501020905,"Servicios de asociaciones","Servicios proporcionados por organizaciones gremiales, comerciales y organizaciones de empleadores y de profesionales, Servicios proporcionados por sindicatos, Servicios proporcionados por otras asociaciones","Servicios proporcionados por organizaciones gremiales, comerciales y organizaciones de empleadores y de profesionales"]
["GASTOS DE COMERCIALIZACION Y PRODUCCION",210400501020906,"Servicios de esparcimiento, culturales y deportivos","Servicios audiovisuales y servicios conexos, Servicios relacionados con actores y otros artistas, Servicios deportivos y deportes recreativos","Servicios audiovisuales y servicios conexos, Servicios relacionados con actores y otros artistas, Servicios deportivos y deportes recreativos"]
["GASTOS DE PERSONAL",210400101030302,"Estimulos a los empleados del estado - proyectos","Para vincular docenbtes UNAL","Nombre del personal docente UNAL"]
["GASTOS POR TRIBUTOS, MULTAS, SANCIONES E INTERESES DE MORA",210400801020401,"Impuesto sobre vehiculos automotores","Para pago de impuesto de vehiculos","Para pago de impuesto de vehiculos"]
["GASTOS POR TRIBUTOS, MULTAS, SANCIONES E INTERESES DE MORA",210400806010101,"Gravamen a los movimientos financieros","Para el pago de GMF, puede ser en traslados de cuentas bancarias, consignaciones a otros bancos","Para el pago de GMF, puede ser en traslados de cuentas bancarias, consignaciones a otros bancos"]
["GASTOS POR TRIBUTOS, MULTAS, SANCIONES E INTERESES DE MORA",210400805020101,"Intereses de mora","Intereses de mora cobrados por la entidad contratante","Intereses de mora cobrados por la entidad contratante"]
["GASTOS POR TRIBUTOS, MULTAS, SANCIONES E INTERESES DE MORA",210400805010101,"Sanciones contractuales","Para el registro de sanciones contractuales","Para el registro de sanciones contractuales"]
["GASTOS POR TRIBUTOS, MULTAS, SANCIONES E INTERESES DE MORA",210400805010201,"Sanciones administrativas","Para el registro de sanciones administrativas","Para el registro de sanciones administrativas"]
["GASTOS POR TRIBUTOS, MULTAS, SANCIONES E INTERESES DE MORA",210400802010101,"Estampillas","impuestos municipales y/o departamentales","impuestos municipales y/o departamentales"]
["TRANSFERENCIAS CORRIENTES",210400303020101,"Apoyo para el desarrollo de las actividades de docencia, investigacion o extension a entidades territoriales distintas de compensaciones y participaciones"]
["TRANSFERENCIAS CORRIENTES",210400302020102,"Distintas a membresias a otras organizaciones nacionales"]
["TRANSFERENCIAS CORRIENTES",210400302010101,"Membresias, afiliaciones y cuotas de sostenimiento a otras organizaciones nacionales"]
["TRANSFERENCIAS CORRIENTES",210400301020102,"Distintas a membresias a otras organizaciones internacionales"]
["TRANSFERENCIAS CORRIENTES",210400301010101,"Membresias, afiliaciones y cuotas de sostenimiento a otras organizaciones internacionales"]
["TRANSFERENCIAS CORRIENTES",210400303040101,"Apoyo para el desarrollo de las actividades de docencia, investigacion o extension a otras entidades del gobierno general"]
["TRANSFERENCIAS CORRIENTES",210400309010101,"Bono de beneficios a comunidad universitaria"]
["TRANSFERENCIAS CORRIENTES",210400308010101,"Beneficios educativos a la comunidad universitaria"]
["TRANSFERENCIAS INTERNAS",210401101010107,"Transferencias O.I. Adquisicion servicios de comunicacion","Transferencias por operaciones celebradas con Unimedios o entre facultades tales como avisos en periódico de la Universidad, entre otros.","Para transferencias internas por servicios de comunicacion."]
["TRANSFERENCIAS INTERNAS",210401101010108,"Transferencias O.I. Adquisicion otros servicios","Transferencias por servicios que no están incluídos en los demás rubros.","Transferencias por servicios que no están incluídos en los demás rubros."]
["TRANSFERENCIAS INTERNAS",210401101010106,"Transferencias O.I. Adquisicion arrendamientos","Transferencias por el alquiler de auditorios o centro de convenciones o cualquier espacio entre las facultades o centros o institutos de la Universidad","Transferencias por el alquiler de auditorios o centro de convenciones o cualquier espacio entre las facultades o centros o institutos de la Universidad"]
["TRANSFERENCIAS INTERNAS",210401101010105,"Transferencias O.I. Adquisicion impresos y publicaciones","Transferencias por operaciones celebradas con la Editorial o por venta de publicaciones entre facultades.","Transferencias por operaciones celebradas con la Editorial o por venta de publicaciones entre facultades."]
["TRANSFERENCIAS INTERNAS",210401101010109,"Transferencias O.I. entre Unidades Ejecutoras","Son las transferencias realizadas al interior de la Universidad, efectuadas entre proyectos de una misma empresa o entre proyectos de diferentes empresas del sistema financiero de la Universidad y que no tienen contraprestación alguna.","Son las transferencias realizadas al interior de la Universidad, efectuadas entre proyectos de una misma empresa o entre proyectos de diferentes empresas del sistema financiero de la Universidad y que no tienen contraprestación alguna."]
["TRANSFERENCIAS INTERNAS",210401101010102,"Transferencias O.I. Adquisicion servicios - extension","Transferencias realizadas por la prestación de servicios de actividades de extensión entre las diferentes facultades o centros e institutos de la Universidad tales como cursos de extensión, actualización o profundización, diplomados, eventos de extensión, entre otros. tales como:\n 1. SERVICIOS JURÍDICOS Y CONTABLES. \n 2. OTROS SERVICIOS PROFESIONALES, CIENTÍFICOS Y TÉCNICO. \n 3. SERVICIOS DE TELECOMUNICACIONES, TRANSMISIÓN Y SUMINISTRO DE INFORMACIÓN.\n 4. SERVICIOS DE APOYO A LA AGRICULTURA, LA CAZA, LA SILVICULTURA, LA PESCA, LA MINERÍA Y LOS SERVICIOS PÚBLICOS.\n 5. SERVICIOS DE EDUCACIÓN. \n 6. SERVICIOS PARA EL CUIDADO DE LA SALUD HUMANA Y SERVICIOS SOCIALES \n 7. SERVICIOS DE ESPARCIMIENTO, CULTURALES Y DEPORTIVOS.","Transferencias realizadas por la prestación de servicios de actividades de extensión entre las diferentes facultades o centros e institutos de la Universidad tales como cursos de extensión, actualización o profundización, diplomados, eventos de extensión, entre otros. tales como:\n 1. SERVICIOS JURÍDICOS Y CONTABLES. \n 2. OTROS SERVICIOS PROFESIONALES, CIENTÍFICOS Y TÉCNICO. \n 3. SERVICIOS DE TELECOMUNICACIONES, TRANSMISIÓN Y SUMINISTRO DE INFORMACIÓN.\n 4. SERVICIOS DE APOYO A LA AGRICULTURA, LA CAZA, LA SILVICULTURA, LA PESCA, LA MINERÍA Y LOS SERVICIOS PÚBLICOS.\n 5. SERVICIOS DE EDUCACIÓN. \n 6. SERVICIOS PARA EL CUIDADO DE LA SALUD HUMANA Y SERVICIOS SOCIALES \n 7. SERVICIOS DE ESPARCIMIENTO, CULTURALES Y DEPORTIVOS."]
["TRANSFERENCIAS INTERNAS",210401101010101,"Transferencias O.I. Adquisicion de bienes","Son los gastos por la adquisición de un producto al interior de la Universidad al interior de la Universidad, efectuadas entre proyectos de una misma empresa o entre proyectos de diferentes empresas del sistema financiero de la Universidad.","Son los gastos por la adquisición de un producto al interior de la Universidad al interior de la Universidad, efectuadas entre proyectos de una misma empresa o entre proyectos de diferentes empresas del sistema financiero de la Universidad."]
["TRANSFERENCIAS INTERNAS",210401101010104,"Transferencias O.I. Adquisicion servicios - bienestar","Transferencias por la prestación de servicios de actividades de bienestar entre las diferentes facultades o centros e institutos de la Universidad.","Transferencias por la prestación de servicios de actividades de bienestar entre las diferentes facultades o centros e institutos de la Universidad."]

{"sheet":"Listas","index":4,"n_rows":68,"n_cols":18,"rows_kept":68,"cut":false,"hidden":true,"merged":[]}
["CATEGORÍAS","GASTOS_DE_COMERCIALIZACION_Y_PRODUCCION","ADQUISICION_DE_BIENES_Y_SERVICIOS","GASTOS_DE_PERSONAL","GASTOS_POR_TRIBUTOS_MULTAS_SANCIONES_E_INTERESES_DE_MORA","OTRAS_TRANSFERENCIAS_CORRIENTES","OTRAS_TRANSFERENCIAS_INTERNAS",null,"MODALIDADES","PARTICIPACIÓN_EN_PROYECTOS_DE_INNOVACION_Y_GESTION_TECNOLOGICA","SERVICIOS_ACADEMICOS","SERVICIOS_DE_EDUCACION","EDUCACION_CONTINUA_Y_PERMANENTE","SERVICIO_DOCENTE_ASISTENCIAL","PROYECTOS_DE_CREACION_ARTISTICA","EXTENSION_SOLIDARIA","PRACTICAS_Y_PASANTIAS","PROYECTOS_DE_COOPERACION_INTERNACIONAL"]
["GASTOS_DE_COMERCIALIZACION_Y_PRODUCCION","Servicios profesionales, cientificos y tecnicos (Excepto los servicios de investigacion, urbanismo, juridicos y de contabilidad)","Mejoras de tierras y terrenos","Estimulos a los empleados del estado - proyectos","Impuesto sobre vehiculos automotores","Apoyo para el desarrollo de las actividades de docencia, investigacion o extension a entidades territoriales distintas de compensaciones y participaciones","Transferencias O.I. Adquisicion servicios de comunicacion",null,"PARTICIPACIÓN_EN_PROYECTOS_DE_INNOVACION_Y_GESTION_TECNOLOGICA","Participación en proyectos de innovación y gestión tecnológica","Consultorías y asesorías","Servicios de educación","Cursos de extensión","Servicio docente asistencial","Proyectos de creación artística","Extensión solidaria","Prácticas y pasantías","Proyectos de cooperación internacional"]
["ADQUISICION_DE_BIENES_Y_SERVICIOS","Servicios de soporte","Otras estructuras",null,"Gravamen a los movimientos financieros","Distintas a membresias a otras organizaciones nacionales","Transferencias O.I. Adquisicion otros servicios",null,"SERVICIOS_ACADEMICOS",null,"Interventorías",null,"Cursos de actualización o profundización"]
["GASTOS_DE_PERSONAL","Servicios juridicos y contables","Maquinaria para uso general",null,"Intereses de mora","Membresias, afiliaciones y cuotas de sostenimiento a otras organizaciones nacionales","Transferencias O.I. Adquisicion arrendamientos",null,"SERVICIOS_DE_EDUCACION",null,"Evaluación de Programas y Políticas",null,"Diplomados"]
["GASTOS_POR_TRIBUTOS_MULTAS_SANCIONES_E_INTERESES_DE_MORA","Otros servicios","Maquinaria para usos especiales",null,"Sanciones contractuales","Distintas a membresias a otras organizaciones internacionales","Transferencias O.I. Adquisicion impresos y publicaciones",null,"EDUCACION_CONTINUA_Y_PERMANENTE",null,"Conceptos",null,"Programas de formación docente"]
["OTRAS_TRANSFERENCIAS_CORRIENTES","Servicios prestados por organizaciones y organismos extraterritoriales","Maquinaria de oficina, contabilidad e informatica",null,"Sanciones administrativas","Membresias, afiliaciones y cuotas de sostenimiento a otras organizaciones internacionales","Transferencias O.I. entre Unidades Ejecutoras",null,"SERVICIO_DOCENTE_ASISTENCIAL",null,"Otros servicios de Extensión",null,"Eventos"]
["OTRAS_TRANSFERENCIAS_INTERNAS","Viaticos de los funcionarios en comision","Maquinaria y aparatos electricos",null,"Estampillas","Apoyo para el desarrollo de las actividades de docencia, investigacion o extension a otras entidades del gobierno general","Transferencias O.I. Adquisicion servicios - extension",null,"PROYECTOS_DE_CREACION_ARTISTICA"]
[null,"Productos de la agricultura y la horticultura","Equipo y aparatos de radio, television y comunicaciones",null,null,"Bono de beneficios a comunidad universitaria","Transferencias O.I. Adquisicion de bienes",null,"EXTENSION_SOLIDARIA"]
[null,"Animales vivos y productos animales (excepto la carne)","Aparatos medicos, instrumentos opticos y de precision, relojes",null,null,"Beneficios educativos a la comunidad universitaria","Transferencias O.I. Adquisicion servicios - bienestar",null,"PRACTICAS_Y_PASANTIAS"]
[null,"Productos de la silvicultura y de la explotacion forestal","Equipo de transporte",null,null,null,null,null,"PROYECTOS_DE_COOPERACION_INTERNACIONAL"]
[null,"Pescado y otros productos de la pesca","Recursos biologicos cultivados"]
[null,"Carbon de hulla, lignito y turba","Productos de la propiedad intelectual"]
[null,"Petroleo crudo y gas natural","Joyas, metales preciosos y antiguedades"]
[null,"Minerales y concentrados de uranio y torio","Tierras y terrenos"]
[null,"Minerales metalicos","Viviendas"]
[null,"Piedra, arena y arcilla","Edificios distintos a viviendas"]
[null,"Otros minerales","Muebles, instrumentos musicales, articulos de deporte y antiguedades"]
[null,"Electricidad, gas de ciudad, vapor y agua caliente"]
[null,"Agua natural"]
[null,"Carne, pescado, frutas, hortalizas, aceites y grasas"]
[null,"Productos lacteos y ovoproductos"]
[null,"Productos de molineria, almidones y productos derivados del almidon; otros productos alimenticios"]
[null,"Bebidas"]
[null,"Productos de tabaco"]
[null,"Hilados e hilos; tejidos de fibras textiles incluso afelpados"]
[null,"Articulos textiles (excepto prendas de vestir)"]
[null,"Tejido de punto o ganchillo; prendas de vestir"]
[null,"Cuero y productos de cuero; calzado"]
[null,"Productos de madera, corcho, cesteria y esparteria"]
[null,"Pasta o pulpa, papel y productos de papel; impresos y articulos relacionados"]
[null,"Productos de hornos de coque; productos de refinacion de petroleo y combustible nuclear"]
[null,"Quimicos basicos"]
[null,"Otros productos quimicos; fibras artificiales (o fibras industriales hechas por el hombre)"]
[null,"Productos de caucho y plastico"]
[null,"Vidrio y productos de vidrio y otros productos no metalicos n.c.p."]
[null,"Muebles; otros bienes transportables n.c.p."]
[null,"Desperdicios; desechos y residuales"]
[null,"Metales basicos"]
[null,"Productos metalicos elaborados (excepto maquinaria y equipo)"]
[null,"Maquinaria para uso general"]
[null,"Maquinaria para usos especiales"]
[null,"Maquinaria de oficina, contabilidad e informatica"]
[null,"Maquinaria y aparatos electricos"]
[null,"Equipo y aparatos de radio, television y comunicaciones"]
[null,"Aparatos medicos, instrumentos opticos y de precision, relojes"]
[null,"Equipo de transporte"]
[null,"Servicios de construccion"]
[null,"Alojamiento; servicios de suministros de comidas y bebidas"]
[null,"Servicios de transporte de pasajeros"]
[null,"Servicios de transporte de carga"]
[null,"Servicios de alquiler de vehiculos de transporte con operario"]
[null,"Servicios de apoyo al transporte"]
[null,"Servicios postales y de mensajeria"]
[null,"Servicios de distribucion de electricidad, gas y agua (por cuenta propia)"]
[null,"Servicios financieros y servicios conexos"]
[null,"Servicios - inmobiliarios"]
[null,"Servicios de arrendamiento o alquiler sin operario"]
[null,"Servicios de investigacion y desarrollo"]
[null,"Servicios de telecomunicaciones, transmision y suministro de informacion"]
[null,"Servicios de apoyo a la agricultura, la caza, la silvicultura, la pesca, la mineria y los servicios publicos"]
[null,"Servicios de mantenimiento, reparacion e instalacion (excepto servicios de construccion)"]
[null,"Servicios de fabricacion de insumos fisicos que son propiedad de otros"]
[null,"Otros servicios de fabricacion; servicios de edicion, impresion y reproduccion; servicios de recuperacion de materiales"]
[null,"Servicios de educacion"]
[null,"Servicios para el cuidado de la salud humana y servicios sociales"]
[null,"Servicios de alcantarillado, recoleccion, tratamiento y disposicion de desechos y otros servicios de saneamiento ambiental"]
[null,"Servicios de asociaciones"]
[null,"Servicios de esparcimiento, culturales y deportivos"]

{"sheet":"Listas1","index":5,"n_rows":323,"n_cols":27,"rows_kept":323,"cut":false,"hidden":true,"merged":[]}
["TIPO RUBRO","RUBRO","RUBRO SIN QUIPU","CATEGORÍA","GENERAL","NotaPrincipal","Listado","Descripción",null,null,"Listado1","Listado2","Listado3","MODALIDAD",null,null,null,null,null,null,null,null,null,"IDENTIFICACION","APELLIDOS Y NOMBRES",null,"TIPO DE ACUERDO"]
["ADQUISICIÓN DE BIENES Y SERVICIOS","210400201011104 - Mejoras de tierras y terrenos","Mejoras de tierras y terrenos",null,{"$f":"A2&\" - \"&B2","v":"ADQUISICIÓN DE BIENES Y SERVICIOS - 210400201011104 - Mejoras de tierras y terrenos"},null,null,"Corresponde a los gastos realizados para la adquisición de mejoras de tierra. Las mejoras de tierra son el resultado de acciones que dan lugar a mejoras importantes en la calidad, cantidad o productividad de la tierra, o que impidan su deterioro.\nIncluye:\n*Recuperación, desmonte de tierras y cerramiento del terreno.\n*Creación de pozos y abrevaderos que son parte integral de las tierras.\nNo incluye:\n*Costos de limpieza y preparación de terrenos cuando están asociados a la adquisición de edificaciones nuevas.\n*Construcción de malecones, diques, barreras contra inundaciones, entre otros, destinados a mejorar la calidad y cantidad de la tierra adyacente a ellos.\n*Construcción de sistemas de riego principales.\nSon los gastos asociados a todo tipo de acciones que generan mejoras importantes en la cantidad, la calidad o la productividad de la tierra, o que impiden su deterioro (Fondo Monetario Internacional, 2014, pág. 200).\nIncluye:\n Recuperación, desmonte de tierras y cerramiento del terreno.\n Creación de pozos y abrevaderos que son parte integral de las tierras.",null,null,"Hora","Unidad","Tiquete","Servicios Académicos",null,null,"Validación tipo de Acuerdo","Semanas","Facultad de Artes","Departamento de Ingeniería Civil y Agrícola",null,null,null,79491089,"ALGECIRA ENCISO NESTOR ARIEL",null,"Carta de aceptación"]
["ADQUISICIÓN DE BIENES Y SERVICIOS","210400201011103 - Otras estructuras","Otras estructuras",null,"ADQUISICIÓN DE BIENES Y SERVICIOS - 210400201011103 - Otras estructuras",null,null,"Son los gastos asociados a la adquisición de estructuras que no son edificios. Esta categoría incluye la construcción de muros de contención, diques, barreras de inundación, etc., destinados a mejorar la tierra adyacente a ellos. También incluye la infraestructura necesaria para la acuicultura como granjas de peces y bancos de mariscos.\n",null,null,"Día","Global","Global","Servicios de Educación",null,"Manizales","Contrato","Meses","Facultad de Ciencias","Departamento de Ingeniería Eléctrica y Electrónica",null,null,null,19372331,"AMORTEGUI GIL FRANCISCO JAVIER",null,"Contrato de consultoría"]
["ADQUISICIÓN DE BIENES Y SERVICIOS","210400201011303 - Maquinaria para uso general","Maquinaria para uso general",null,"ADQUISICIÓN DE BIENES Y SERVICIOS - 210400201011303 - Maquinaria para uso general",null,null,"Son los gastos asociados a la adquisición de motores y turbinas; bombas y compresores; engranajes, rodamientos y elementos de transmisión; hornos; máquinas de elevación y demás maquinaria para uso general.",null,null,"Semana","Tóner","Día","Educación Continua y Permanente",null,"Medellín","Convenio","Semestres","Facultad de Ciencias Económicas","Departamento de Ingeniería Mecánica y Mecatrónica",null,null,null,93372097,"ARANGO GOMEZ JORGE EDUARDO",null,"Contrato de cooperación científica y tecnológica"]
["ADQUISICIÓN DE BIENES Y SERVICIOS","210400201011304 - Maquinaria para usos especiales","Maquinaria para usos especiales",null,"ADQUISICIÓN DE BIENES Y SERVICIOS - 210400201011304 - Maquinaria para usos especiales",null,null,"Son los gastos asociados a la adquisición de maquinaria agropecuaria o silvícola; maquinaria para industria metalúrgica; maquinaria para minería y explotación de canteras; maquinaria para elaboración de alimentos; maquinaria para la fabricación de textiles y demás maquinaria para usos especiales",null,null,"Mes","Cartucho","Mes","Servicio docente asistencial",null,"Orinoquía ",null,null,"Facultad de Ciencias Humanas","Departamento de Ingeniería Química y Ambiental",null,null,null,19188754,"BOADA ESLAVA LUIS FRANCISCO",null,"Contrato de interventoría"]
["ADQUISICIÓN DE BIENES Y SERVICIOS","210400201011305 - Maquinaria de oficina, contabilidad e informática","Maquinaria de oficina, contabilidad e informática",null,"ADQUISICIÓN DE BIENES Y SERVICIOS - 210400201011305 - Maquinaria de oficina, contabilidad e informática",null,null,"Son los gastos asociados a la adquisición de máquinas de escribir o máquinas para procesamiento de datos; calculadoras o máquinas reproductoras de datos; cajas registradoras; cajeros automáticos, entre otras.",null,null,"Personas","Resma","Peaje","Proyectos de creación artística",null,null,"validación si/no",null,"Facultad de Derecho, Ciencias Políticas y Sociales","Departamento de Ingeniería de Sistemas e Industrial",null,null,null,51895607,"CANGREJO ALJURE LIBIA DENISE",null,"Contrato de obra"]
["ADQUISICIÓN DE BIENES Y SERVICIOS","210400201011306 - Maquinaria y aparatos eléctricos","Maquinaria y aparatos eléctricos",null,"ADQUISICIÓN DE BIENES Y SERVICIOS - 210400201011306 - Maquinaria y aparatos eléctricos",null,null,"Son los gastos asociados a la adquisición de motores, generadores y transformadores eléctricos; aparatos de control eléctrico o distribución de electricidad; cables de fibra óptica; pilas y baterías primarias; equipo de alumbrado; entre otras.",null,null,"Global","Kilogramo","Unidad","Extensión Solidaria",null,null,"Si",null,"Facultad de Enfermería",null,null,null,null,79987300,"CORTES RAMOS HENRY OCTAVIO",null,"Contrato de prestación de servicios"]
["ADQUISICIÓN DE BIENES Y SERVICIOS","210400201011307 - Equipo y aparatos de radio, televisión y comunicaciones","Equipo y aparatos de radio, televisión y comunicaciones",null,"ADQUISICIÓN DE BIENES Y SERVICIOS - 210400201011307 - Equipo y aparatos de radio, televisión y comunicaciones",null,null,"Son los gastos asociados a la adquisición de componentes electrónicos; aparatos transmisores de televisión y radio; cámaras digitales y teléfonos, aparatos receptores de radio y televisión; dispositivos de almacenamientos como cintas y medios magnéticos; grabaciones de audio o video y tarjetas con bandas magnéticas.",null,null,"Unidad","Metro","Otro","Prácticas y Pasantías Universitarias",null,null,"No",null,"Facultad de Ingeniería",null,null,null,null,80011498,"GIL CHAVES IVAN DARIO",null,"Contrato interadministrativo"]
["ADQUISICIÓN DE BIENES Y SERVICIOS","210400201011308 - Aparatos médicos, instrumentos ópticos y de precisión, relojes","Aparatos médicos, instrumentos ópticos y de precisión, relojes",null,"ADQUISICIÓN DE BIENES Y SERVICIOS - 210400201011308 - Aparatos médicos, instrumentos ópticos y de precisión, relojes",null,null,"Son los gastos asociados a la adquisición de aparatos médicos y quirúrgicos; instrumentos y aparatos de medición, verificación y análisis; instrumentos ópticos y equipo fotográfico; y relojes.",null,null,null,"Litro",null,"Proyectos de Cooperación Internacional",null,null,null,null,"Facultad de Medicina",null,null,null,null,3021756,"HERNANDEZ RODRIGUEZ FELIX",null,"Convenio de cooperación académica"]
["ADQUISICIÓN DE BIENES Y SERVICIOS","210400201011309 - Equipo de transporte","Equipo de transporte",null,"ADQUISICIÓN DE BIENES Y SERVICIOS - 210400201011309 - Equipo de transporte",null,null,"491 Vehículos automotores, remolques y semirremolques; y sus partes, piezas y accesorios\n492 Carrocerías (incluso cabinas) para vehículos automotores; remolques y semirremolques; y sus partes, piezas y accesorios\n493 Buques\n494 Embarcaciones para deportes y recreo\n495 Locomotoras y material rodante de ferrocarril y tranvía, y sus partes y piezas\n496 Aeronaves y naves espaciales, y sus partes y piezas\n499 Otro equipo de transporte, y sus partes y piezas\n",null,null,null,"Hora",null,"SUBMODALIDAD",null,null,null,null,"Facultad de Medicina Veterinaria y Zootecnia",null,null,null,null,19272849,"ISAZA RUGET RICARDO",null,"Convenio específico internacional"]
["ADQUISICIÓN DE BIENES Y SERVICIOS","210400201011401 - Recursos biológicos cultivados","Recursos biológicos cultivados",null,"ADQUISICIÓN DE BIENES Y SERVICIOS - 210400201011401 - Recursos biológicos cultivados",null,null,"Son los gastos asociados a la adquisición de animales, árboles, cultivos o plantas que generan productos en forma repetida y cuyo crecimiento natural y regeneración se encuentran bajo control, responsabilidad y manejo directo de una unidad (Fondo Monetario Internacional, 2014, pág. 202). \nNo incluye: \n Bosques naturales y animales salvajes en tanto su crecimiento y regeneración no se encuentra bajo control de ninguna persona o entidad.",null,null,null,"Gramo",null,"Asesorías y Consultorías",null,null,null,null,"Facultad de Odontología",null,null,null,null,19352227,"JARAMILLO JARAMILLO IVAN",null,"Convenio específico nacional"]
["ADQUISICIÓN DE BIENES Y SERVICIOS","210400201011402 - Productos de la propiedad intelectual","Productos de la propiedad intelectual",null,"ADQUISICIÓN DE BIENES Y SERVICIOS - 210400201011402 - Productos de la propiedad intelectual",null,null,"Son los gastos asociados a la adquisición de productos que resultan de la investigación, el desarrollo o la innovación, y que conducen a conocimientos, los cuales pueden ser vendidos en el mercado o utilizados para beneficio propio en la producción (Fondo Monetario Internacional, 2014, pág. 182). \nEl conocimiento se mantiene como un activo siempre y cuando cuente con algún tipo de protección legal, o de otra índole, que genera beneficios de monopolio para su dueño. Cuando ya no está protegido, se vuelve obsoleto en virtud de los últimos avances y deja de ser un activo (Fondo Monetario Internacional, 2014, pág. 182).",null,null,null,"Galón",null,"Interventorías",null,null,null,null,"Instituto de Genética",null,null,null,null,183178,"LOVERA CABRERA CESAR MANUEL",null,"Convenio interadministrativo"]
["ADQUISICIÓN DE BIENES Y SERVICIOS","210400201021501 - Joyas, metales preciosos y antigüedades","Joyas, metales preciosos y antigüedades",null,"ADQUISICIÓN DE BIENES Y SERVICIOS - 210400201021501 - Joyas, metales preciosos y antigüedades",null,null,"Corresponde a las adquisiciones de oro no monetario y otras piedras y metales preciosos que no se prevé emplear como materiales y suministros en procesos productivos. También incluye las joyas de considerable valor diseñadas con piedras y metales preciosos. Adquisiciones de pinturas, esculturas y otros objetos reconocidos como obras de arte o antigüedades mantenidos primordialmente como depósito de valor a través del tiempo.Ademas de, adquisición de colecciones de estampillas, monedas, porcelana china, libros y otros diversos objetos de valor.",null,null,null,"Otro",null,"Evaluación de Programas y Políticas",null,null,null,null,null,null,null,null,null,79568554,"MENDEZ MORENO LUIS MIGUEL",null,"Orden de compra"]
["ADQUISICIÓN DE BIENES Y SERVICIOS","2104002010316 - Tierras y terrenos","Tierras y terrenos",null,"ADQUISICIÓN DE BIENES Y SERVICIOS - 2104002010316 - Tierras y terrenos",null,null,null,null,null,null,null,null,"Conceptos",null,null,null,null,null,null,null,null,null,80093506,"OLARTE DUSSAN FREDY ANDRES",null,"Orden de servicio"]
["ADQUISICIÓN DE BIENES Y SERVICIOS","2104002010317 - Recursos biológicos no cultivados","Recursos biológicos no cultivados",null,"ADQUISICIÓN DE BIENES Y SERVICIOS - 2104002010317 - Recursos biológicos no cultivados",null,null,null,null,null,null,null,null,"Otros servicios de Extensión",null,null,null,null,null,null,null,null,null,1085250526,"PANTOJA ACOSTA JOHN JAIRO"]
["ADQUISICIÓN DE BIENES Y SERVICIOS","210400201011101 - Viviendas","Viviendas",null,"ADQUISICIÓN DE BIENES Y SERVICIOS - 210400201011101 - Viviendas",null,null,"Son los gastos asociados a la adquisición de edificaciones cuyo uso principal o total es residencial, incluidas las construcciones asociadas y otros accesorios. Estas edificaciones incluyen cualquier construcción asociada, como los garajes, y todos los accesorios permanentes instalados habitualmente en las residencias.",null,null,null,null,null,null,null,null,null,null,null,null,null,null,null,98400176,"PAVAS MARTINEZ FABIO ANDRES"]
["ADQUISICIÓN DE BIENES Y SERVICIOS","210400201011102 - Edificios distintos a viviendas","Edificios distintos a viviendas",null,"ADQUISICIÓN DE BIENES Y SERVICIOS - 210400201011102 - Edificios distintos a viviendas",null,null,"Son los gastos asociados a la adquisición de edificios completos, o partes específicas de estos, destinados a fines distintos a los residenciales (Fondo Monetario Internacional, 2014, pág. 200).\nIncluye: Costos de limpieza y preparación del terreno para edificaciones nuevas.\nMonumentos públicos no residenciales\nEdificios educativos\nEdificios relacionados con salud\nInstalaciones recreativas\nCentros de convenciones y congresos\nOtros edificios no residenciales",null,null,null,null,null,null,null,null,null,null,null,null,null,null,null,80020636,"PEDRAZA BONILLA CESAR AUGUSTO"]
["ADQUISICIÓN DE BIENES Y SERVICIOS","210400201011208 - Muebles, instrumentos musicales, artículos de deporte y antigüedades","Muebles, instrumentos musicales, artículos de deporte y antigüedades",null,"ADQUISICIÓN DE BIENES Y SERVICIOS - 210400201011208 - Muebles, instrumentos musicales, artículos de deporte y antigüedades",null,null,"Gastos por adquisición de muebles, \nGastos por adquisición de instrumentos musicales.\nGastos por adquisición de artículos de deporte.\nGastos por adquisición de antigüedades u otros objetos de arte.",null,null,null,null,null,null,null,null,null,null,null,null,null,null,null,79789564,"PERILLA ROZO CARLOS ANDRES"]
["GASTOS DE COMERCIALIZACIÓN Y PRODUCCIÓN","210400501020907 - Otros servicios","Otros servicios",null,"GASTOS DE COMERCIALIZACIÓN Y PRODUCCIÓN - 210400501020907 - Otros servicios",null,null,"Servicios de lavado, limpieza y teñido, Servicios de tratamientos de belleza y de bienestar físico, Servicios funerarios, de cremación y de sepultura\n",null,null,null,null,null,null,null,null,null,null,null,null,null,null,null,9871452,"RESTREPO CALLE FELIPE"]
["GASTOS DE COMERCIALIZACIÓN Y PRODUCCIÓN","210400501020909 - Servicios prestados por organizaciones y organismos extraterritoriales","Servicios prestados por organizaciones y organismos extraterritoriales",null,"GASTOS DE COMERCIALIZACIÓN Y PRODUCCIÓN - 210400501020909 - Servicios prestados por organizaciones y organismos extraterritoriales",null,null,null,null,null,null,null,null,"Validación Unidad",null,null,null,null,null,null,null,null,null,79518953,"Jorge Eduardo Ortiz Triviño"]
["GASTOS DE COMERCIALIZACIÓN Y PRODUCCIÓN","210400501020111 - Viáticos de los funcionarios en comisión","Viáticos de los funcionarios en comisión",null,"GASTOS DE COMERCIALIZACIÓN Y PRODUCCIÓN - 210400501020111 - Viáticos de los funcionarios en comisión",null,null,null,null,null,null,null,null,"Hora","Unidad","Tiquete",null,"Global",null,null,null,null,null,79975976,"MANCIPE MUÑOZ NESTOR ALONSO"]
["GASTOS DE COMERCIALIZACIÓN Y PRODUCCIÓN","210400501010001 - Productos de la agricultura y la horticultura","Productos de la agricultura y la horticultura",null,"GASTOS DE COMERCIALIZACIÓN Y PRODUCCIÓN - 210400501010001 - Productos de la agricultura y la horticultura",null,null,"cereales, hortalizas, frutas y nueces, semillas, Raíces y tubérculos comestibles ricos en almidón o inulina, Plantas estimulantes, aromáticas y especias, Legumbres secas, Plantas utilizadas en la fabricación de azúcar, productos de forraje",null,null,null,null,null,"Día","Global","Global",null,"Unidad",null,null,null,null,null,53108094,"ADRIANA PATRICIA PIÑA FULANO"]
["GASTOS DE COMERCIALIZACIÓN Y PRODUCCIÓN","210400501010002 - Animales vivos y productos animales (excepto la carne)","Animales vivos y productos animales (excepto la carne)",null,"GASTOS DE COMERCIALIZACIÓN Y PRODUCCIÓN - 210400501010002 - Animales vivos y productos animales (excepto la carne)",null,null,"animales vivos, leche cruda, huevos de gallina o de otras aves, materiales reproductivos de animales, otros productos animales como la miel, la lana, los cueros o piles",null,null,null,null,null,"Semana","Tóner","Día",null,null,null,null,null,null,null,35498777,"SONIA ESPERANZA MONROY VAREL"]
["GASTOS DE COMERCIALIZACIÓN Y PRODUCCIÓN","210400501010003 - Productos de la silvicultura y de la explotación forestal","Productos de la silvicultura y de la explotación forestal",null,"GASTOS DE COMERCIALIZACIÓN Y PRODUCCIÓN - 210400501010003 - Productos de la silvicultura y de la explotación forestal",null,null,"Madera en bruto, Productos forestales (diferentes a la madera),",null,null,null,null,null,"Mes","Cartucho","Mes",null,null,null,null,null,null,null,9521464,"REYES PACHECO JUAN HERNANDO"]
["GASTOS DE COMERCIALIZACIÓN Y PRODUCCIÓN","210400501010004 - Pescado y otros productos de la pesca","Pescado y otros productos de la pesca",null,"GASTOS DE COMERCIALIZACIÓN Y PRODUCCIÓN - 210400501010004 - Pescado y otros productos de la pesca",null,null,"Peces, vivos, no para consumo humano, Peces vivos, frescos o refrigerados para consumo humano, Crustáceos, vivos, frescos o refrigerados, Moluscos vivos, frescos o refrigerados, Otros invertebrados acuáticos, vivos, frescos o refrigerados, Otras plantas y animales acuáticos",null,null,null,null,null,"Personas","Resma","Peaje",null,null,null,null,null,null,null,79937875,"RIVERA RODRIGUEZ SERGIO RAUL"]
["GASTOS DE COMERCIALIZACIÓN Y PRODUCCIÓN","210400501010101 - Carbón de hulla, lignito y turba","Carbón de hulla, lignito y turba",null,"GASTOS DE COMERCIALIZACIÓN Y PRODUCCIÓN - 210400501010101 - Carbón de hulla, lignito y turba",null,null,"Carbón de hulla, lignito y turba",null,null,null,null,null,"Global","Kilogramo","Unidad",null,null,null,null,null,null,null,3010227,"RODRIGUEZ VARELA LUIS IGNACIO"]
["GASTOS DE COMERCIALIZACIÓN Y PRODUCCIÓN","210400501010102 - Petróleo crudo y gas natural","Petróleo crudo y gas natural",null,"GASTOS DE COMERCIALIZACIÓN Y PRODUCCIÓN - 210400501010102 - Petróleo crudo y gas natural",null,null,"Petróleo crudo y gas natural",null,null,null,null,null,"Unidad","Metro","Otro",null,null,null,null,null,null,null,52392511,"SANCHEZ SAENZ CAROLINA MARIA"]
["GASTOS DE COMERCIALIZACIÓN Y PRODUCCIÓN","210400501010103 - Minerales y concentrados de uranio y torio","Minerales y concentrados de uranio y torio",null,"GASTOS DE COMERCIALIZACIÓN Y PRODUCCIÓN - 210400501010103 - Minerales y concentrados de uranio y torio",null,null,"Minerales y concentrados de uranio y torio",null,null,null,null,null,null,"Litro",null,null,null,null,null,null,null,null,52930319,"LUNA TAMAYO PATRICIA"]
["GASTOS DE COMERCIALIZACIÓN Y PRODUCCIÓN","210400501010104 - Minerales metálicos","Minerales metálicos",null,"GASTOS DE COMERCIALIZACIÓN Y PRODUCCIÓN - 210400501010104 - Minerales metálicos",null,null,"Minerales de hierro y sus concentrados (excepto las piritas de hierro tostadas), Minerales metálicos no ferrosos y sus concentrados (excepto minerales de uranio o torio y sus concentrados)",null,null,null,null,null,null,"Hora",null,null,null,null,null,null,null,null,51815362,"SANTOS BARBOSA DOLLY"]
["GASTOS DE COMERCIALIZACIÓN Y PRODUCCIÓN","210400501010105 - Piedra, arena y arcilla","Piedra, arena y arcilla",null,"GASTOS DE COMERCIALIZACIÓN Y PRODUCCIÓN - 210400501010105 - Piedra, arena y arcilla",null,null,"Roca o piedra de construcción y de talla, Yeso; anhidrita, fundente calizo; piedra caliza y otras piedras calcáreas del tipo utilizado habitualmente para la fabricación de cal o cemento, Arenas, cantos, gravas, piedra partida o triturada, betún y asfaltos naturales, Arcillas,",null,null,null,null,null,null,"Gramo",null,null,null,null,null,null,null,null,80059610,"SUAREZ PALACIOS OSCAR YESID"]
["GASTOS DE COMERCIALIZACIÓN Y PRODUCCIÓN","210400501010106 - Otros minerales","Otros minerales",null,"GASTOS DE COMERCIALIZACIÓN Y PRODUCCIÓN - 210400501010106 - Otros minerales",null,null,"Minerales para la industria química, abonos minerales, Cloruro de sodio puro y sus sales, agua de mar, Piedras preciosas y semipreciosas; piedra pómez, piedra esmeril; abrasivos naturales; otros minerales,",null,null,null,null,null,null,"Galón",null,null,null,null,null,null,null,null,79577777,"VILLARREAL GONZÁLEZ EDGAR LEONARDO"]
["GASTOS DE COMERCIALIZACIÓN Y PRODUCCIÓN","210400501010107 - Electricidad, gas de ciudad, vapor y agua caliente","Electricidad, gas de ciudad, vapor y agua caliente",null,"GASTOS DE COMERCIALIZACIÓN Y PRODUCCIÓN - 210400501010107 - Electricidad, gas de ciudad, vapor y agua caliente",null,null,"Energía eléctrica, Gas de carbón, gas de agua, gas pobre y otros gases similares (excepto los gases de petróleo y otros hidrocarburos gaseosos), Vapor y agua caliente,",null,null,null,null,null,null,"Otro",null,null,null,null,null,null,null,null,19488323,"GIL TORRES LUIS ENRIQUE"]
["GASTOS DE COMERCIALIZACIÓN Y PRODUCCIÓN","210400501010108 - Agua natural","Agua natural",null,"GASTOS DE COMERCIALIZACIÓN Y PRODUCCIÓN - 210400501010108 - Agua natural",null,null,"Agua natural",null,null,null,null,null,null,null,null,null,null,null,null,null,null,null,52210403,"LANCHEROS SALAS RUTH JANNETH"]
["GASTOS DE COMERCIALIZACIÓN Y PRODUCCIÓN","210400501010201 - Carne, pescado, frutas, hortalizas, aceites y grasas","Carne, pescado, frutas, hortalizas, aceites y grasas",null,{"$f":"A34&\" - \"&B34","v":"GASTOS DE COMERCIALIZACIÓN Y PRODUCCIÓN - 210400501010201 - Carne, pescado, frutas, hortalizas, aceites y grasas"},null,null,"Carne y productos cárnicos, Preparaciones y conservas de pescado, crustáceos, moluscos y demás invertebrados acuáticos, Preparaciones y conservas de hortalizas, legumbres, tubérculos y papas, Preparaciones y conservas de frutas y nueces, Grasas animales, Aceites vegetales, Margarina y preparaciones similares, Tortas y demás residuos de la extracción de grasas o aceites vegetales; harina y polvo de semillas o de frutos oleaginosos (excepto las de mostaza); ceras vegetales (excepto los triglicéridos); degrás, residuos del tratamiento de grasas y ceras animales o vegetales",null,null,null,null,null,null,null,null,null,null,null,null,null,null,null,19476005,"MANRIQUE PERDOMO JORGE ORLANDO"]
["GASTOS DE COMERCIALIZACIÓN Y PRODUCCIÓN","210400501010202 - Productos lácteos y ovoproductos","Productos lácteos y ovoproductos",null,"GASTOS DE COMERCIALIZACIÓN Y PRODUCCIÓN - 210400501010202 - Productos lácteos y ovoproductos",null,null,"Leche líquida procesada, crema y suero, Otros productos lácteos como leche en polvo o mantequilla, queso",null,null,null,null,null,null,null,null,null,null,null,null,null,null,null,91069492,"MARTINEZ VARGAS JOSE RICARDO"]
["GASTOS DE COMERCIALIZACIÓN Y PRODUCCIÓN","210400501010203 - Productos de molinería, almidones y productos derivados del almidón; otros productos alimenticios","Productos de molinería, almidones y productos derivados del almidón; otros productos alimenticios",null,"GASTOS DE COMERCIALIZACIÓN Y PRODUCCIÓN - 210400501010203 - Productos de molinería, almidones y productos derivados del almidón; otros productos alimenticios",null,null,"Productos de molinería, Almidones y productos derivados del almidón, azúcares y jarabes de azúcar n.c.p. Preparaciones utilizadas en la alimentación de animales; harina y gránulos de alfalfa, Productos de panadería, Azúcar y melaza, Cacao, chocolate y confitería, Macarrones, fideos, cuscús y productos farináceos similares, Productos del café",null,null,null,null,null,null,null,null,null,null,null,null,null,null,null,19264199,"PARRA ARANGO RICARDO LEON"]
["GASTOS DE COMERCIALIZACIÓN Y PRODUCCIÓN","210400501010204 - Bebidas","Bebidas",null,"GASTOS DE COMERCIALIZACIÓN Y PRODUCCIÓN - 210400501010204 - Bebidas",null,null,"Alcohol etílico; aguardientes, licores y otras bebidas destiladas, Vinos, Licores de malta y malta, Bebidas no alcohólicas; aguas minerales embotelladas,",null,null,null,null,null,null,null,null,null,null,null,null,null,null,null,88198070,"PEÑA LINDARTE RICARDO JOSE"]
["GASTOS DE COMERCIALIZACIÓN Y PRODUCCIÓN","210400501010205 - Productos de tabaco","Productos de tabaco",null,"GASTOS DE COMERCIALIZACIÓN Y PRODUCCIÓN - 210400501010205 - Productos de tabaco",null,null,"Productos de tabaco",null,null,null,null,null,null,null,null,null,null,null,null,null,null,null,79559996,"PINZON CASALLAS NELSON ANIBAL"]
["GASTOS DE COMERCIALIZACIÓN Y PRODUCCIÓN","210400501010206 - Hilados e hilos; tejidos de fibras textiles incluso afelpados","Hilados e hilos; tejidos de fibras textiles incluso afelpados",null,"GASTOS DE COMERCIALIZACIÓN Y PRODUCCIÓN - 210400501010206 - Hilados e hilos; tejidos de fibras textiles incluso afelpados",null,null,"Fibras textiles naturales preparadas para el hilado, Fibras textiles artificiales o sintéticas, discontinuas elaboradas para el hilado, Hilados e hilos de fibras textiles naturales, Hilados textiles e hilos de filamentos manufacturados o fibras discontinuas, Tejidos (excepto tejidos especiales) de fibras naturales distintas del algodón, Tejidos (excepto tejidos especiales) de algodón, Tejidos (excepto tejidos especiales) de filamentos manufacturados y fibras discontinuas, Tejidos especiales,",null,null,null,null,null,null,null,null,null,null,null,null,null,null,null,75103490,"Mario Andrés Noriega Valencia"]
["GASTOS DE COMERCIALIZACIÓN Y PRODUCCIÓN","210400501010207 - Artículos textiles (excepto prendas de vestir)","Artículos textiles (excepto prendas de vestir)",null,"GASTOS DE COMERCIALIZACIÓN Y PRODUCCIÓN - 210400501010207 - Artículos textiles (excepto prendas de vestir)",null,null,"Artículos confeccionados con textiles, Alfombras y otros recubrimientos para pisos, de materiales textiles, Bramantes, cordeles, cuerdas, cordajes y artículos similares (incluye redes), otros articulos textiles como encajes…",null,null,null,null,null,null,null,null,null,null,null,null,null,null,null,79707872,"SOTO PEREZ RENE ALEXANDER"]
["GASTOS DE COMERCIALIZACIÓN Y PRODUCCIÓN","210400501010208 - Tejido de punto o ganchillo; prendas de vestir","Tejido de punto o ganchillo; prendas de vestir",null,"GASTOS DE COMERCIALIZACIÓN Y PRODUCCIÓN - 210400501010208 - Tejido de punto o ganchillo; prendas de vestir",null,null,"Tejidos de punto o ganchillo, Prendas de vestir (excepto prendas de piel), Pieles finas curtidas o adobadas y pieles artificiales; artículos similares (excepto sombreros y demás tocados),",null,null,null,null,null,null,null,null,null,null,null,null,null,null,null,7164599,"TOVAR RACHE JESUS GUILLERMO"]
["GASTOS DE COMERCIALIZACIÓN Y PRODUCCIÓN","210400501010209 - Cuero y productos de cuero; calzado","Cuero y productos de cuero; calzado",null,"GASTOS DE COMERCIALIZACIÓN Y PRODUCCIÓN - 210400501010209 - Cuero y productos de cuero; calzado",null,null,"Cuero curtido o adobado; cuero regenerado, Maletas, bolsos de mano y artículos similares; artículos de talabartería y guarnicionería, otros artículos de cuero, Calzado con suela y parte superior elaborados de caucho o plástico, o con la parte superior de cuero o materiales textiles (diferentes de zapatos deportivos, calzado que incorpora puntera protectora de metal y calzado especial misceláneo), Calzado deportivo (excepto botas de patinar), Otros tipos de calzado (excepto calzado de asbesto, calzado ortopédico y botas de esquiar), Partes de calzado; plantillas removibles, taloneras y artículos similares; polainas cortas y largas, y artículos similares y sus partes,",null,null,null,null,null,null,null,null,null,null,null,null,null,null,null,79602747,"VEGA STAVRO JOSE FELIX"]
["GASTOS DE COMERCIALIZACIÓN Y PRODUCCIÓN","210400501010301 - Productos de madera, corcho, cestería y espartería","Productos de madera, corcho, cestería y espartería",null,"GASTOS DE COMERCIALIZACIÓN Y PRODUCCIÓN - 210400501010301 - Productos de madera, corcho, cestería y espartería",null,null,"Madera aserrada o cortada longitudinalmente, cortada en hojas o descortezada, de más de 6 mm de espesor; durmientes (traviesas) de madera para vías de ferrocarril o tranvías, sin impregnar, Madera perfilada longitudinalmente en cualquiera de sus bordes o caras; viruta de madera, aserrín, madera en astillas o partículas, Madera en bruto, incluidas aquellas tratadas con pintura, colorantes, creosota u otros preservativos; durmientes (traviesas) de madera impregnada para vías de ferrocarril o tranvía; flejes de madera, rodrigones, palos de madera y similares, Tableros y paneles, Hojas de madera para enchapado; hojas de madera contrachapadas; madera compactada, Obras y piezas de carpintería para construcciones (incluso tableros de madera celular, tableros armados para pisos de parqué, tablillas y ripias), Cajones, cajas, guacales, cilindros y envases similares de madera; carretes de madera para cables; estibas y otras plataformas de madera para carga; barriles, cubas, tinas y demás productos de tonelería y sus partes (incluso duelas) de madera, Otros productos de madera; artículos de corcho, materiales trenzables y paja",null,null,null,null,null,null,null,null,null,null,null,null,null,null,null,79113090,"GOMEZ ACERO EDGAR FRANCISCO"]
["GASTOS DE COMERCIALIZACIÓN Y PRODUCCIÓN","210400501010302 - Pasta o pulpa, papel y productos de papel; impresos y artículos relacionados","Pasta o pulpa, papel y productos de papel; impresos y artículos relacionados",null,"GASTOS DE COMERCIALIZACIÓN Y PRODUCCIÓN - 210400501010302 - Pasta o pulpa, papel y productos de papel; impresos y artículos relacionados",null,null,"Pasta de papel, papel y cartón, Libros impresos, Diarios, revistas y publicaciones periódicas, publicados por lo menos cuatro veces por semana, Mapas impresos; partituras impresas o en manuscrito; tarjetas postales, tarjetas de felicitación, fotografías y planos, Estampillas, talonarios de cheques, billetes de banco, títulos de acciones, catálogos y folletos, material para anuncios publicitarios y otros materiales impresos, Libros de registros, libros de contabilidad, cuadernillos de notas, bloques para cartas, agendas y artículos similares, secantes, encuadernadores, clasificadores para archivos, formularios y otros artículos de escritorio, de papel o cartón, Tipos de imprenta, planchas o cilindros, preparados para las artes gráficas, piedras litográficas impresas u otros elementos de impresión",null,null,null,null,null,null,null,null,null,null,null,null,null,null,null,3020624,"CASTILLO CASTILLO RICARDO"]
["GASTOS DE COMERCIALIZACIÓN Y PRODUCCIÓN","210400501010303 - Productos de hornos de coque; productos de refinación de petróleo y combustible nuclear","Productos de hornos de coque; productos de refinación de petróleo y combustible nuclear",null,"GASTOS DE COMERCIALIZACIÓN Y PRODUCCIÓN - 210400501010303 - Productos de hornos de coque; productos de refinación de petróleo y combustible nuclear",null,null,"Carbón coque y semicoque de hulla, carbón de lignito o carbón de hulla; carbón de retorta, Alquitrán destilado de carbón de hulla, lignito o turba y otros alquitranes minerales, Aceites de petróleo o aceites obtenidos de minerales bituminosos (excepto los aceites crudos); preparados n.c.p., que contengan por lo menos el 70% de su peso en aceites de esos tipos y cuyos componentes básicos sean esos aceites, Gas de petróleo y otros hidrocarburos gaseosos (excepto gas natural), Vaselina, cera de parafina, cera de petróleo de microcristalina, cera cruda, ozocerita, cera de lignito, cera de turba, otras ceras minerales y productos similares, coque de petróleo, betún de petróleo y otros residuos de los aceites de petróleo o de aceites obtenidos de minerales bituminosos, Elementos radiactivos, isótopos y compuestos radiactivos; aleaciones, dispersiones, productos cerámicos y mezclas que contengan estos elementos, isótopos o compuestos radiactivos; residuos radiactivos, Elementos combustibles (cartuchos) para reactores nucleares o de reactores nucleares",null,null,null,null,null,null,null,null,null,null,null,null,null,null,null,1032439556,"JUAN DAVID SUAREZ MORENO"]
["GASTOS DE COMERCIALIZACIÓN Y PRODUCCIÓN","210400501010304 - Químicos básicos","Químicos básicos",null,"GASTOS DE COMERCIALIZACIÓN Y PRODUCCIÓN - 210400501010304 - Químicos básicos",null,null,"Químicos orgánicos básicos, Productos químicos inorgánicos básicos como el neos, oxigeno, óxidos, Extractos tintóreos y curtientes; taninos y sus derivados; sustancias colorantes n.c.p. Abonos y plaguicidas, Plásticos en formas primarias",null,null,null,null,null,null,null,null,null,null,null,null,null,null,null,79209415,"ORJUELA GUERRERO FREDY ALEJANDRO"]
["GASTOS DE COMERCIALIZACIÓN Y PRODUCCIÓN","210400501010305 - Otros productos químicos; fibras artificiales (o fibras industriales hechas por el hombre)","Otros productos químicos; fibras artificiales (o fibras industriales hechas por el hombre)",null,"GASTOS DE COMERCIALIZACIÓN Y PRODUCCIÓN - 210400501010305 - Otros productos químicos; fibras artificiales (o fibras industriales hechas por el hombre)",null,null,"Pinturas y barnices y productos relacionados; colores para la pintura artística; tintas, Productos farmacéuticos, Jabón, preparados de limpieza, perfumes y preparados de tocador, Fibras textiles manufacturadas",null,null,null,null,null,null,null,null,null,null,null,null,null,null,null,79354433,"RODRIGUEZ PINEDA CARLOS EDUARDO"]
["GASTOS DE COMERCIALIZACIÓN Y PRODUCCIÓN","210400501010306 - Productos de caucho y plástico","Productos de caucho y plástico",null,"GASTOS DE COMERCIALIZACIÓN Y PRODUCCIÓN - 210400501010306 - Productos de caucho y plástico",null,null,"Llantas de caucho y neumáticos (cámaras de aire), Otros productos de caucho, Semimanufacturas de plástico, Productos de empaque y envasado, de plástico, Otros productos plásticos,",null,null,null,null,null,null,null,null,null,null,null,null,null,null,null,19350089,"SILVA CRUZ MICHAEL"]
["GASTOS DE COMERCIALIZACIÓN Y PRODUCCIÓN","210400501010307 - Vidrio y productos de vidrio y otros productos no metálicos n.c.p.","Vidrio y productos de vidrio y otros productos no metálicos n.c.p.",null,"GASTOS DE COMERCIALIZACIÓN Y PRODUCCIÓN - 210400501010307 - Vidrio y productos de vidrio y otros productos no metálicos n.c.p.",null,null,"Vidrio y productos de vidrio, Artículos de cerámica no estructural, Productos refractarios y productos estructurales no refractarios de arcilla, Yeso, cal y cemento, Piedra de construcción o de talla labradas, y sus manufactura, Otros productos minerales no metálicos n.c.p.",null,null,null,null,null,null,null,null,null,null,null,null,null,null,null,79505661,"AMAYA CALA JORGE ENRIQUE"]
["GASTOS DE COMERCIALIZACIÓN Y PRODUCCIÓN","210400501010308 - Muebles; otros bienes transportables n.c.p.","Muebles; otros bienes transportables n.c.p.",null,"GASTOS DE COMERCIALIZACIÓN Y PRODUCCIÓN - 210400501010308 - Muebles; otros bienes transportables n.c.p.",null,null,"Muebles, Joyas y artículos conexos, Instrumentos musicales, Artículos de deporte, Juegos y juguetes, Construcciones prefabricadas, Otros artículos manufacturados n.c.p.",null,null,null,null,null,null,null,null,null,null,null,null,null,null,null,19484811,"BARBOSA CRUZ EDGARD ROBERT"]
["GASTOS DE COMERCIALIZACIÓN Y PRODUCCIÓN","210400501010309 - Desperdicios; desechos y residuales","Desperdicios; desechos y residuales",null,"GASTOS DE COMERCIALIZACIÓN Y PRODUCCIÓN - 210400501010309 - Desperdicios; desechos y residuales",null,null,"Desperdicios de la industria de alimentos y de tabaco, Desperdicios o desechos no metálicos, Desperdicios o desechos metálicos, Otros desperdicios y desechos",null,null,null,null,null,null,null,null,null,null,null,null,null,null,null,79755516,"CAMARGO MENDOZA JORGE ELIECER"]
["GASTOS DE COMERCIALIZACIÓN Y PRODUCCIÓN","210400501010401 - Metales básicos","Metales básicos",null,"GASTOS DE COMERCIALIZACIÓN Y PRODUCCIÓN - 210400501010401 - Metales básicos",null,null,"Productos básicos de hierro y acero, Productos de hierro y acero, Metales preciosos comunes y metales enchapados con metales preciosos, Cobre, níquel, aluminio, alúmina, plomo, zinc y estaño, en bruto, Productos semiacabados de cobre, níquel, aluminio, plomo, zinc y estaño y sus aleaciones, Otros metales no ferrosos y sus manufacturas (incluso desperdicios y desechos); aleaciones metalocerámicas y sus manufacturas; cenizas y residuos (excepto los resultantes de la fabricación de hierro y acero) que contengan metales o compuestos metálicos,",null,null,null,null,null,null,null,null,null,null,null,null,null,null,null,9519711,"CORREDOR AVELLA GERMAN RAMON"]
["GASTOS DE COMERCIALIZACIÓN Y PRODUCCIÓN","210400501010402 - Productos metálicos elaborados (excepto maquinaria y equipo)","Productos metálicos elaborados (excepto maquinaria y equipo)",null,"GASTOS DE COMERCIALIZACIÓN Y PRODUCCIÓN - 210400501010402 - Productos metálicos elaborados (excepto maquinaria y equipo)",null,null,"Productos metálicos estructurales y sus partes, Depósitos, cisternas y recipientes de hierro, acero o aluminio, Calderas generadoras de vapor de agua (excepto calderas de agua caliente para calefacción central) y sus partes y piezas, Productos metálicos para uso doméstico,",null,null,null,null,null,null,null,null,null,null,null,null,null,null,null,13743876,"Diego Alexander Tibaduiza Burgos"]
["GASTOS DE COMERCIALIZACIÓN Y PRODUCCIÓN","210400501010403 - Maquinaria para uso general","Maquinaria para uso general",null,"GASTOS DE COMERCIALIZACIÓN Y PRODUCCIÓN - 210400501010403 - Maquinaria para uso general",null,null,null,null,null,null,null,null,null,null,null,null,null,null,null,null,null,null,19203674,"GOMEZ MORENO ELISEO"]
["GASTOS DE COMERCIALIZACIÓN Y PRODUCCIÓN","210400501010404 - Maquinaria para usos especiales","Maquinaria para usos especiales",null,"GASTOS DE COMERCIALIZACIÓN Y PRODUCCIÓN - 210400501010404 - Maquinaria para usos especiales",null,null,null,null,null,null,null,null,null,null,null,null,null,null,null,null,null,null,79456915,"GONZALEZ RODRIGUEZ IVAN FERNANDO"]
["GASTOS DE COMERCIALIZACIÓN Y PRODUCCIÓN","210400201011405 - Maquinaria de oficina, contabilidad e informática","Maquinaria de oficina, contabilidad e informática",null,"GASTOS DE COMERCIALIZACIÓN Y PRODUCCIÓN - 210400201011405 - Maquinaria de oficina, contabilidad e informática",null,null,null,null,null,null,null,null,null,null,null,null,null,null,null,null,null,null,6773087,"GONZALEZ VERGARA CARLOS JAVIER"]
["GASTOS DE COMERCIALIZACIÓN Y PRODUCCIÓN","210400501010406 - Maquinaria y aparatos eléctricos","Maquinaria y aparatos eléctricos",null,"GASTOS DE COMERCIALIZACIÓN Y PRODUCCIÓN - 210400501010406 - Maquinaria y aparatos eléctricos",null,null,null,null,null,null,null,null,null,null,null,null,null,null,null,null,null,null,79346619,"JIMENEZ POVEDA PEDRO LUIS"]
["GASTOS DE COMERCIALIZACIÓN Y PRODUCCIÓN","210400501010407 - Equipo y aparatos de radio, televisión y comunicaciones","Equipo y aparatos de radio, televisión y comunicaciones",null,"GASTOS DE COMERCIALIZACIÓN Y PRODUCCIÓN - 210400501010407 - Equipo y aparatos de radio, televisión y comunicaciones",null,null,null,null,null,null,null,null,null,null,null,null,null,null,null,null,null,null,19452112,"LOPEZ PARRA JAVIER FRANCISCO"]
["GASTOS DE COMERCIALIZACIÓN Y PRODUCCIÓN","210400201011408 - Aparatos médicos, instrumentos ópticos y de precisión, relojes","Aparatos médicos, instrumentos ópticos y de precisión, relojes",null,"GASTOS DE COMERCIALIZACIÓN Y PRODUCCIÓN - 210400201011408 - Aparatos médicos, instrumentos ópticos y de precisión, relojes",null,null,null,null,null,null,null,null,null,null,null,null,null,null,null,null,null,null,19405056,"MENESES ARIZA MIGUEL ANGEL"]
["GASTOS DE COMERCIALIZACIÓN Y PRODUCCIÓN","210400501010409 - Equipo de transporte","Equipo de transporte",null,"GASTOS DE COMERCIALIZACIÓN Y PRODUCCIÓN - 210400501010409 - Equipo de transporte",null,null,null,null,null,null,null,null,null,null,null,null,null,null,null,null,null,null,79297170,"MORENO MOSQUERA HENRY"]
["GASTOS DE COMERCIALIZACIÓN Y PRODUCCIÓN","210400501020504 - Servicios de construcción","Servicios de construcción",null,"GASTOS DE COMERCIALIZACIÓN Y PRODUCCIÓN - 210400501020504 - Servicios de construcción",null,null,"Servicios generales de construcción de edificaciones, Servicios generales de construcción de obras de ingeniería civil, Servicios de preparación del terreno de construcción, Montaje e instalación de construcciones prefabricadas, Servicios de instalaciones, Servicios de terminación y acabado de edificios",null,null,null,null,null,null,null,null,null,null,null,null,null,null,null,19195584,"NAVARRO SANCHEZ HENRY"]
["GASTOS DE COMERCIALIZACIÓN Y PRODUCCIÓN","210400501020603 - Alojamiento; servicios de suministros de comidas y bebidas","Alojamiento; servicios de suministros de comidas y bebidas",null,"GASTOS DE COMERCIALIZACIÓN Y PRODUCCIÓN - 210400501020603 - Alojamiento; servicios de suministros de comidas y bebidas",null,null,"Servicios de alojamiento para estancias cortas, Otros servicios de alojamiento, Servicios de suministro de comidas,",null,null,null,null,null,null,null,null,null,null,null,null,null,null,null,79852554,"PINEDA JAIMES JORGE ARTURO"]
["GASTOS DE COMERCIALIZACIÓN Y PRODUCCIÓN","210400501020604 - Servicios de transporte de pasajeros","Servicios de transporte de pasajeros",null,"GASTOS DE COMERCIALIZACIÓN Y PRODUCCIÓN - 210400501020604 - Servicios de transporte de pasajeros",null,null,"Servicios de transporte local y turístico de pasajeros, Servicios de transporte de pasajeros, diferente del transporte local y turístico de pasajeros,",null,null,null,null,null,null,null,null,null,null,null,null,null,null,null,19416613,"RODRIGUEZ GRANADOS EDGAR EDUARDO"]
["GASTOS DE COMERCIALIZACIÓN Y PRODUCCIÓN","210400501020605 - Servicios de transporte de carga","Servicios de transporte de carga",null,"GASTOS DE COMERCIALIZACIÓN Y PRODUCCIÓN - 210400501020605 - Servicios de transporte de carga",null,null,"Servicios de transporte de carga por vía terrestre, Servicios de transporte de carga por vía acuática, Servicios de transporte de carga por vía aérea o espacial",null,null,null,null,null,null,null,null,null,null,null,null,null,null,null,79788871,"ROMERO GRASS ANDREI FABIAN"]
["GASTOS DE COMERCIALIZACIÓN Y PRODUCCIÓN","210400501020606 - Servicios de alquiler de vehículos de transporte con operario","Servicios de alquiler de vehículos de transporte con operario",null,"GASTOS DE COMERCIALIZACIÓN Y PRODUCCIÓN - 210400501020606 - Servicios de alquiler de vehículos de transporte con operario",null,null,"Servicios de alquiler de vehículos de transporte con operario",null,null,null,null,null,null,null,null,null,null,null,null,null,null,null,79508767,"SALCEDO PARRA OCTAVIO JOSE"]
["GASTOS DE COMERCIALIZACIÓN Y PRODUCCIÓN","210400501020607 - Servicios de apoyo al transporte","Servicios de apoyo al transporte",null,{"$f":"A66&\" - \"&B66","v":"GASTOS DE COMERCIALIZACIÓN Y PRODUCCIÓN - 210400501020607 - Servicios de apoyo al transporte"},null,null,"Servicios de manipulación de carga, Servicios de almacenamiento y depósito, Servicios de apoyo al transporte por vía férrea, Servicios de apoyo al transporte por carretera, Servicios de apoyo al transporte por vía acuática",null,null,null,null,null,null,null,null,null,null,null,null,null,null,null,79279329,"SANTANA SANTANA ISMAEL"]
["GASTOS DE COMERCIALIZACIÓN Y PRODUCCIÓN","210400501020608 - Servicios postales y de mensajería","Servicios postales y de mensajería",null,"GASTOS DE COMERCIALIZACIÓN Y PRODUCCIÓN - 210400501020608 - Servicios postales y de mensajería",null,null,"Servicios postales y de mensajería",null,null,null,null,null,null,null,null,null,null,null,null,null,null,null,79497410,"TORRES PARDO JUAN CARLOS"]
["GASTOS DE COMERCIALIZACIÓN Y PRODUCCIÓN","210400501020609 - Servicios de distribución de electricidad, gas y agua (por cuenta propia)","Servicios de distribución de electricidad, gas y agua (por cuenta propia)",null,"GASTOS DE COMERCIALIZACIÓN Y PRODUCCIÓN - 210400501020609 - Servicios de distribución de electricidad, gas y agua (por cuenta propia)",null,null,"Servicios de distribución de electricidad, y servicios de distribución de gas (por cuenta propia), Servicios de distribución de agua (por cuenta propia),",null,null,null,null,null,null,null,null,null,null,null,null,null,null,null,79892283,"VARGAS VARGAS WILSON ERNESTO"]
["GASTOS DE COMERCIALIZACIÓN Y PRODUCCIÓN","210400501020701 - Servicios financieros y servicios conexos","Servicios financieros y servicios conexos",null,"GASTOS DE COMERCIALIZACIÓN Y PRODUCCIÓN - 210400501020701 - Servicios financieros y servicios conexos",null,null,"Servicios financieros (excepto los servicios de la banca de inversión, servicios de seguros y servicios de pensiones), Servicios de la banca de inversión, Servicios de seguros y pensiones (excepto los servicios de reaseguro y de seguridad social de afiliación obligatoria), Servicios de reaseguro, ARL",null,null,null,null,null,null,null,null,null,null,null,null,null,null,null,13837546,"RAMIREZ CARRERO RICARDO HUMBERTO"]
["GASTOS DE COMERCIALIZACIÓN Y PRODUCCIÓN","210400501020702 - Servicios inmobiliarios","Servicios inmobiliarios",null,"GASTOS DE COMERCIALIZACIÓN Y PRODUCCIÓN - 210400501020702 - Servicios inmobiliarios",null,null,"Servicios inmobiliarios relativos a bienes inmuebles propios o arrendados, Servicios inmobiliarios a comisión o por contrato,",null,null,null,null,null,null,null,null,null,null,null,null,null,null,null,79671420,"ACEVEDO GAMBOA HELMER RODOLFO"]
["GASTOS DE COMERCIALIZACIÓN Y PRODUCCIÓN","210400501020703 - Servicios de arrendamiento o alquiler sin operario","Servicios de arrendamiento o alquiler sin operario",null,"GASTOS DE COMERCIALIZACIÓN Y PRODUCCIÓN - 210400501020703 - Servicios de arrendamiento o alquiler sin operario",null,null,"Servicios de arrendamiento o alquiler de maquinaria y equipo sin operario, Servicios de arrendamiento sin opción de compra de otros bienes, Derechos de uso de productos de propiedad intelectual y otros productos similares,",null,null,null,null,null,null,null,null,null,null,null,null,null,null,null,79650242,"ACUÑA CAITA JOHN FABIO"]
["GASTOS DE COMERCIALIZACIÓN Y PRODUCCIÓN","210400501020801 - Servicios de investigación y desarrollo","Servicios de investigación y desarrollo",null,"GASTOS DE COMERCIALIZACIÓN Y PRODUCCIÓN - 210400501020801 - Servicios de investigación y desarrollo",null,null,"Servicios de investigación y desarrollo experimental en ciencias naturales e ingeniería, Servicios de investigación y desarrollo experimental en ciencias sociales y humanidades, Servicios interdisciplinarios de investigación y desarrollo experimental, Creaciones originales relacionadas con investigación y desarrollo",null,null,null,null,null,null,null,null,null,null,null,null,null,null,null,91068411,"ADARME JAIMES WILSON"]
["GASTOS DE COMERCIALIZACIÓN Y PRODUCCIÓN","210400501020802 - Servicios jurídicos y contables","Servicios jurídicos y contables",null,"GASTOS DE COMERCIALIZACIÓN Y PRODUCCIÓN - 210400501020802 - Servicios jurídicos y contables",null,null,"Servicios jurídicos, Servicios de contabilidad, auditoría y teneduría de libros, Servicios de preparación y asesoramiento tributario",null,null,null,null,null,null,null,null,null,null,null,null,null,null,null,79101100,"AGUDELO QUIGUA DANIEL ANTONIO"]
["GASTOS DE COMERCIALIZACIÓN Y PRODUCCIÓN","210400501020803 - Servicios profesionales, científicos y técnicos (Excepto los servicios de investigación, urbanismo, jurídicos y de contabilidad)","Servicios profesionales, científicos y técnicos (Excepto los servicios de investigación, urbanismo, jurídicos y de contabilidad)",null,"GASTOS DE COMERCIALIZACIÓN Y PRODUCCIÓN - 210400501020803 - Servicios profesionales, científicos y técnicos (Excepto los servicios de investigación, urbanismo, jurídicos y de contabilidad)",null,null,"Servicios de consultoría en administración y servicios de gestión; servicios de tecnología de la información, Servicios de arquitectura, paisajismo, planeación urbana y ordenamiento territorial, Servicios de ingeniería, Servicios científicos y otros servicios técnicos, Servicios veterinarios, Servicios de publicidad y suministro de espacio o tiempo publicitario, Servicios de investigación de mercados y encuestas de opinión pública, Servicios de fotografía y revelado fotográfico, Otros servicios profesionales, técnicos y empresariales n.c.p.",null,null,null,null,null,null,null,null,null,null,null,null,null,null,null,14894713,"AGUILAR ARIAS JAIME LEON"]
["GASTOS DE COMERCIALIZACIÓN Y PRODUCCIÓN","210400501020804 - Servicios de telecomunicaciones, transmisión y suministro de información","Servicios de telecomunicaciones, transmisión y suministro de información",null,"GASTOS DE COMERCIALIZACIÓN Y PRODUCCIÓN - 210400501020804 - Servicios de telecomunicaciones, transmisión y suministro de información",null,null,"Servicios de telefonía y otros servicios de telecomunicaciones, Servicios de telecomunicaciones vía Internet, Servicios de contenidos en línea (on-line), Servicios de agencias de noticias, Servicios de bibliotecas y archivos, Servicios de transmisión, programación y distribución de programas,",null,null,null,null,null,null,null,null,null,null,null,null,null,null,null,11433028,"APONTE MELO JAIRO HERNAN"]
["GASTOS DE COMERCIALIZACIÓN Y PRODUCCIÓN","210400501020805 - Servicios de soporte","Servicios de soporte",null,"GASTOS DE COMERCIALIZACIÓN Y PRODUCCIÓN - 210400501020805 - Servicios de soporte",null,null,"Estudiantes auxiliares, compra de tiquetes por agencias de viajes, bachilleres, servicios asistenciales, Servicios de organización de viajes, operadores turísticos y servicios conexos, Otros servicios auxiliares, servicios asistenciales",null,null,null,null,null,null,null,null,null,null,null,null,null,null,null,79951707,"ARAQUE QUIJANO JAVIER LEONARDO"]
["GASTOS DE COMERCIALIZACIÓN Y PRODUCCIÓN","210400501020806 - Servicios de apoyo a la agricultura, la caza, la silvicultura, la pesca, la minería y los servicios públicos","Servicios de apoyo a la agricultura, la caza, la silvicultura, la pesca, la minería y los servicios públicos",null,"GASTOS DE COMERCIALIZACIÓN Y PRODUCCIÓN - 210400501020806 - Servicios de apoyo a la agricultura, la caza, la silvicultura, la pesca, la minería y los servicios públicos",null,null,"Servicios de apoyo y de operación para la agricultura, la caza, la silvicultura y la pesca, Servicios de apoyo y de operación para la minería, Servicios de apoyo y de operación para la distribución de electricidad, gas y agua,",null,null,null,null,null,null,null,null,null,null,null,null,null,null,null,79057024,"ARROYO OSORIO JOSE MANUEL"]
["GASTOS DE COMERCIALIZACIÓN Y PRODUCCIÓN","210400501020807 - Servicios de mantenimiento, reparación e instalación (excepto servicios de construcción)","Servicios de mantenimiento, reparación e instalación (excepto servicios de construcción)",null,"GASTOS DE COMERCIALIZACIÓN Y PRODUCCIÓN - 210400501020807 - Servicios de mantenimiento, reparación e instalación (excepto servicios de construcción)",null,null,"Servicios de mantenimiento y reparación de productos metálicos elaborados, maquinaria y equipo, Servicios de reparación de otros bienes, Servicios de instalación (distintos de los servicios de construcción)",null,null,null,null,null,null,null,null,null,null,null,null,null,null,null,328135,"ARZOLA DE LA PEÑA NELSON"]
["GASTOS DE COMERCIALIZACIÓN Y PRODUCCIÓN","210400501020808 - Servicios de fabricación de insumos físicos que son propiedad de otros","Servicios de fabricación de insumos físicos que son propiedad de otros",null,"GASTOS DE COMERCIALIZACIÓN Y PRODUCCIÓN - 210400501020808 - Servicios de fabricación de insumos físicos que son propiedad de otros",null,null,null,null,null,null,null,null,null,null,null,null,null,null,null,null,null,null,79795965,"AVELLANEDA LOPEZ PEDRO MAURICIO"]
["GASTOS DE COMERCIALIZACIÓN Y PRODUCCIÓN","210400501020809 - Otros servicios de fabricación; servicios de edición, impresión y reproducción; servicios de recuperación de materiales","Otros servicios de fabricación; servicios de edición, impresión y reproducción; servicios de recuperación de materiales",null,"GASTOS DE COMERCIALIZACIÓN Y PRODUCCIÓN - 210400501020809 - Otros servicios de fabricación; servicios de edición, impresión y reproducción; servicios de recuperación de materiales",null,null,"Servicios de edición, impresión y reproducción, Servicios de moldeado, estampado, extrusión y fabricación de productos similares de plástico, Servicios de fundición, forja, estampado y fabricación de productos similares de metales,",null,null,null,null,null,null,null,null,null,null,null,null,null,null,null,79791198,"BACCA RODRIGUEZ JAN"]
["GASTOS DE COMERCIALIZACIÓN Y PRODUCCIÓN","210400501020902 - Servicios de educación","Servicios de educación",null,"GASTOS DE COMERCIALIZACIÓN Y PRODUCCIÓN - 210400501020902 - Servicios de educación",null,null,"Servicios de educación para la primera infancia, Servicios de educación básica primaria, Servicios de educación postsecundaria no superior, Servicios de educación superior, Otros tipos de educación y servicios de apoyo educativo",null,null,null,null,null,null,null,null,null,null,null,null,null,null,null,19127126,"BAQUERO CORTES MIGUEL ANGEL"]
["GASTOS DE COMERCIALIZACIÓN Y PRODUCCIÓN","210400501020903 - Servicios para el cuidado de la salud humana y servicios sociales","Servicios para el cuidado de la salud humana y servicios sociales",null,"GASTOS DE COMERCIALIZACIÓN Y PRODUCCIÓN - 210400501020903 - Servicios para el cuidado de la salud humana y servicios sociales",null,null,"Servicios de salud humana, Servicios de atención residencial para personas mayores y con discapacidad",null,null,null,null,null,null,null,null,null,null,null,null,null,null,null,19188729,"BEJARANO JIMENEZ PEDRO JANER"]
["GASTOS DE COMERCIALIZACIÓN Y PRODUCCIÓN","210400501020904 - Servicios de alcantarillado, recolección, tratamiento y disposición de desechos y otros servicios de saneamiento ambiental","Servicios de alcantarillado, recolección, tratamiento y disposición de desechos y otros servicios de saneamiento ambiental",null,"GASTOS DE COMERCIALIZACIÓN Y PRODUCCIÓN - 210400501020904 - Servicios de alcantarillado, recolección, tratamiento y disposición de desechos y otros servicios de saneamiento ambiental",null,null,"Servicios de alcantarillado, servicios de limpieza, tratamiento de aguas residuales y tanques sépticos, Servicios de recolección de desechos, Servicios de tratamiento y disposición de desechos, Servicios de descontaminación, Servicios de saneamiento y similares",null,null,null,null,null,null,null,null,null,null,null,null,null,null,null,15813899,"BELALCAZAR CERON LUIS CARLOS"]
["GASTOS DE COMERCIALIZACIÓN Y PRODUCCIÓN","210400501020905 - Servicios de asociaciones","Servicios de asociaciones",null,"GASTOS DE COMERCIALIZACIÓN Y PRODUCCIÓN - 210400501020905 - Servicios de asociaciones",null,null,"Servicios proporcionados por organizaciones gremiales, comerciales y organizaciones de empleadores y de profesionales, Servicios proporcionados por sindicatos, Servicios proporcionados por otras asociaciones",null,null,null,null,null,null,null,null,null,null,null,null,null,null,null,51775132,"BELTRAN CALVO GLORIA INES"]
["GASTOS DE COMERCIALIZACIÓN Y PRODUCCIÓN","210400501020906 - Servicios de esparcimiento, culturales y deportivos","Servicios de esparcimiento, culturales y deportivos",null,"GASTOS DE COMERCIALIZACIÓN Y PRODUCCIÓN - 210400501020906 - Servicios de esparcimiento, culturales y deportivos",null,null,null,null,null,null,null,null,null,null,null,null,null,null,null,null,null,null,70631613,"BERMEO CLAVIJO LEONARDO ENRIQUE"]
["GASTOS DE PERSONAL","210400101030302 - Estímulos a los empleados del estado - proyectos","Estímulos a los empleados del estado ",null,"GASTOS DE PERSONAL - 210400101030302 - Estímulos a los empleados del estado - proyectos","Nombre del personal docente","Listado1",null,null,null,null,null,null,null,null,null,null,null,null,null,null,null,null,5892573,"BETANCOURT CARDOZO FERNEY"]
["GASTOS POR TRIBUTOS, MULTAS, SANCIONES E INTERESES DE MORA","210400801020401 - Impuesto sobre vehículos automotores","Impuesto sobre vehículos automotores",null,"GASTOS POR TRIBUTOS, MULTAS, SANCIONES E INTERESES DE MORA - 210400801020401 - Impuesto sobre vehículos automotores",null,null,null,null,null,null,null,null,null,null,null,null,null,null,null,null,null,null,52055373,"BUSTOS LOPEZ MARTHA CRISTINA"]
["GASTOS POR TRIBUTOS, MULTAS, SANCIONES E INTERESES DE MORA","210400801020301 - Impuesto de registro","Impuesto de registro",null,"GASTOS POR TRIBUTOS, MULTAS, SANCIONES E INTERESES DE MORA - 210400801020301 - Impuesto de registro",null,null,null,null,null,null,null,null,null,null,null,null,null,null,null,null,null,null,79395664,"CADAVID ESTRADA JUAN GUILLERMO"]
["GASTOS POR TRIBUTOS, MULTAS, SANCIONES E INTERESES DE MORA","210400801020201 - Impuesto sobre delineación urbana","Impuesto sobre delineación urbana",null,"GASTOS POR TRIBUTOS, MULTAS, SANCIONES E INTERESES DE MORA - 210400801020201 - Impuesto sobre delineación urbana",null,null,null,null,null,null,null,null,null,null,null,null,null,null,null,null,null,null,79515764,"CAMACHO TAMAYO JESUS HERNAN"]
["GASTOS POR TRIBUTOS, MULTAS, SANCIONES E INTERESES DE MORA","210400801020101 - Impuesto predial y sobretasa ambiental","Impuesto predial y sobretasa ambiental",null,"GASTOS POR TRIBUTOS, MULTAS, SANCIONES E INTERESES DE MORA - 210400801020101 - Impuesto predial y sobretasa ambiental",null,null,null,null,null,null,null,null,null,null,null,null,null,null,null,null,null,null,79620164,"CAMARGO BAREÑO CARLOS IVAN"]
["GASTOS POR TRIBUTOS, MULTAS, SANCIONES E INTERESES DE MORA","210400806010101 - Gravamen a los movimientos financieros","Gravamen a los movimientos financieros",null,"GASTOS POR TRIBUTOS, MULTAS, SANCIONES E INTERESES DE MORA - 210400806010101 - Gravamen a los movimientos financieros",null,null,null,null,null,null,null,null,null,null,null,null,null,null,null,null,null,null,79452376,"CASTELLANOS DOMINGUEZ OSCAR FERNANDO"]
["GASTOS POR TRIBUTOS, MULTAS, SANCIONES E INTERESES DE MORA","210400801020501 - Impuesto de industria y comercio","Impuesto de industria y comercio",null,"GASTOS POR TRIBUTOS, MULTAS, SANCIONES E INTERESES DE MORA - 210400801020501 - Impuesto de industria y comercio",null,null,null,null,null,null,null,null,null,null,null,null,null,null,null,null,null,null,19260431,"CASTILLO HERRAN BERNARDO"]
["GASTOS POR TRIBUTOS, MULTAS, SANCIONES E INTERESES DE MORA","210400805020101 - Intereses de mora","Intereses de mora",null,"GASTOS POR TRIBUTOS, MULTAS, SANCIONES E INTERESES DE MORA - 210400805020101 - Intereses de mora",null,null,null,null,null,null,null,null,null,null,null,null,null,null,null,null,null,null,19164550,"CAÑON RODRIGUEZ JULIO CESAR"]
["GASTOS POR TRIBUTOS, MULTAS, SANCIONES E INTERESES DE MORA","210400803010101 - Tasas y derechos administrativos","Tasas y derechos administrativos",null,"GASTOS POR TRIBUTOS, MULTAS, SANCIONES E INTERESES DE MORA - 210400803010101 - Tasas y derechos administrativos",null,null,null,null,null,null,null,null,null,null,null,null,null,null,null,null,null,null,79596010,"CHARALAMBOS HERNANDEZ JEAN PIERRE"]
["GASTOS POR TRIBUTOS, MULTAS, SANCIONES E INTERESES DE MORA","210400804010101 - Cuota de fiscalización y auditaje","Cuota de fiscalización y auditaje",null,"GASTOS POR TRIBUTOS, MULTAS, SANCIONES E INTERESES DE MORA - 210400804010101 - Cuota de fiscalización y auditaje",null,null,null,null,null,null,null,null,null,null,null,null,null,null,null,null,null,null,19439517,"CIFUENTES AYA HECTOR"]
["GASTOS POR TRIBUTOS, MULTAS, SANCIONES E INTERESES DE MORA","210400804020101 - Contribución - superintendencia de vigilancia","Contribución ",null,"GASTOS POR TRIBUTOS, MULTAS, SANCIONES E INTERESES DE MORA - 210400804020101 - Contribución - superintendencia de vigilancia",null,null,null,null,null,null,null,null,null,null,null,null,null,null,null,null,null,null,16635986,"COLLAZOS CHAVEZ CARLOS JULIO"]
["GASTOS POR TRIBUTOS, MULTAS, SANCIONES E INTERESES DE MORA","210400804030101 - Contribución - superintendencia nacional de salud","Contribución ",null,"GASTOS POR TRIBUTOS, MULTAS, SANCIONES E INTERESES DE MORA - 210400804030101 - Contribución - superintendencia nacional de salud",null,null,null,null,null,null,null,null,null,null,null,null,null,null,null,null,null,null,98581351,"CORDOBA CASTRILLON LUIS FERNANDO"]
["GASTOS POR TRIBUTOS, MULTAS, SANCIONES E INTERESES DE MORA","210400805010101 - Sanciones contractuales","Sanciones contractuales",null,{"$f":"A98&\" - \"&B98","v":"GASTOS POR TRIBUTOS, MULTAS, SANCIONES E INTERESES DE MORA - 210400805010101 - Sanciones contractuales"},null,null,null,null,null,null,null,null,null,null,null,null,null,null,null,null,null,null,79531664,"CORTES ALDANA FELIX ANTONIO"]
["GASTOS POR TRIBUTOS, MULTAS, SANCIONES E INTERESES DE MORA","210400805010201 - Sanciones administrativas","Sanciones administrativas",null,"GASTOS POR TRIBUTOS, MULTAS, SANCIONES E INTERESES DE MORA - 210400805010201 - Sanciones administrativas",null,null,null,null,null,null,null,null,null,null,null,null,null,null,null,null,null,null,79792435,"CORTES GUERRERO CAMILO ANDRES"]
["GASTOS POR TRIBUTOS, MULTAS, SANCIONES E INTERESES DE MORA","210400802010101 - Estampillas","Estampillas",null,"GASTOS POR TRIBUTOS, MULTAS, SANCIONES E INTERESES DE MORA - 210400802010101 - Estampillas",null,null,"impuestos municipales y/o departamentales",null,null,null,null,null,null,null,null,null,null,null,null,null,null,null,79300115,"CORTES RODRIGUEZ CARLOS JULIO"]
["TRANSFERENCIAS CORRIENTES","210400303020101 - Apoyo para el desarrollo de las actividades de docencia, investigación o extensión a entidades territoriales distintas de compensaciones y participaciones","Apoyo para el desarrollo de las actividades de docencia, investigación o extensión a entidades territoriales distintas de compensaciones y participaciones",null,"TRANSFERENCIAS CORRIENTES - 210400303020101 - Apoyo para el desarrollo de las actividades de docencia, investigación o extensión a entidades territoriales distintas de compensaciones y participaciones",null,null,null,null,null,null,null,null,null,null,null,null,null,null,null,null,null,null,79616246,"CORTES ROMERO JOHN ALEXANDER"]
["TRANSFERENCIAS CORRIENTES","210400302020102 - Distintas a membresias a otras organizaciones nacionales","Distintas a membresias a otras organizaciones nacionales",null,"TRANSFERENCIAS CORRIENTES - 210400302020102 - Distintas a membresias a otras organizaciones nacionales",null,null,null,null,null,null,null,null,null,null,null,null,null,null,null,null,null,null,19290345,"CUBILLOS PEÑA CARLOS EDUARDO"]
["TRANSFERENCIAS CORRIENTES","210400302010101 - Membresias, afiliaciones y cuotas de sostenimiento a otras organizaciones nacionales","Membresias, afiliaciones y cuotas de sostenimiento a otras organizaciones nacionales",null,"TRANSFERENCIAS CORRIENTES - 210400302010101 - Membresias, afiliaciones y cuotas de sostenimiento a otras organizaciones nacionales",null,null,null,null,null,null,null,null,null,null,null,null,null,null,null,null,null,null,79791985,"DONADO GARZON LEONARDO DAVID"]
["TRANSFERENCIAS CORRIENTES","210400301020102 - Distintas a membresias a otras organizaciones internacionales","Distintas a membresias a otras organizaciones internacionales",null,"TRANSFERENCIAS CORRIENTES - 210400301020102 - Distintas a membresias a otras organizaciones internacionales",null,null,null,null,null,null,null,null,null,null,null,null,null,null,null,null,null,null,51799554,"DUARTE AMAYA HELGA"]
["TRANSFERENCIAS CORRIENTES","210400301010101 - Membresias, afiliaciones y cuotas de sostenimiento a otras organizaciones internacionales","Membresias, afiliaciones y cuotas de sostenimiento a otras organizaciones internacionales",null,"TRANSFERENCIAS CORRIENTES - 210400301010101 - Membresias, afiliaciones y cuotas de sostenimiento a otras organizaciones internacionales",null,null,null,null,null,null,null,null,null,null,null,null,null,null,null,null,null,null,79758393,"DUQUE DAZA CARLOS ALBERTO"]
["TRANSFERENCIAS CORRIENTES","210400303040101 - Apoyo para el desarrollo de las actividades de docencia, investigación o extensión a otras entidades del gobierno general","Apoyo para el desarrollo de las actividades de docencia, investigación o extensión a otras entidades del gobierno general",null,"TRANSFERENCIAS CORRIENTES - 210400303040101 - Apoyo para el desarrollo de las actividades de docencia, investigación o extensión a otras entidades del gobierno general",null,null,null,null,null,null,null,null,null,null,null,null,null,null,null,null,null,null,19297600,"DURAN PERALTA HECTOR ARMANDO"]
["TRANSFERENCIAS CORRIENTES","210400309010101 - Bono de beneficios a comunidad universitaria","Bono de beneficios a comunidad universitaria",null,"TRANSFERENCIAS CORRIENTES - 210400309010101 - Bono de beneficios a comunidad universitaria",null,null,null,null,null,null,null,null,null,null,null,null,null,null,null,null,null,null,79794060,"ESLAVA GARZON JOHAN SEBASTIAN"]
["TRANSFERENCIAS CORRIENTES","210400308010101 - Beneficios educativos a la comunidad universitaria","Beneficios educativos a la comunidad universitaria",null,"TRANSFERENCIAS CORRIENTES - 210400308010101 - Beneficios educativos a la comunidad universitaria",null,null,null,null,null,null,null,null,null,null,null,null,null,null,null,null,null,null,19187789,"ESPINOSA HERNANDEZ ARMANDO"]
["TRANSFERENCIAS INTERNAS","210401101010107 - Transferencias O.I. Adquisición servicios de comunicación","Transferencias O.IAdquisición servicios de comunicación",null,"TRANSFERENCIAS INTERNAS - 210401101010107 - Transferencias O.I. Adquisición servicios de comunicación",null,null,"Transferencias por operaciones celebradas con Unimedios o entre facultades tales como avisos en periódico de la Universidad, entre otros.",null,null,null,null,null,null,null,null,null,null,null,null,null,null,null,93400170,"GALEANO URUEÑA CARLOS HUMBERTO"]
["TRANSFERENCIAS INTERNAS","210401101010108 - Transferencias O.I. Adquisición otros servicios","Transferencias O.IAdquisición otros servicios",null,"TRANSFERENCIAS INTERNAS - 210401101010108 - Transferencias O.I. Adquisición otros servicios",null,null,"Transferencias por servicios que no están incluídos en los demás rubros.",null,null,null,null,null,null,null,null,null,null,null,null,null,null,null,80384848,"GALINDO VALBUENA HUGO MARTIN"]
["TRANSFERENCIAS INTERNAS","210401101010106 - Transferencias O.I. Adquisición arrendamientos","Transferencias O.IAdquisición arrendamientos",null,"TRANSFERENCIAS INTERNAS - 210401101010106 - Transferencias O.I. Adquisición arrendamientos",null,null,"Transferencias por el alquiler de auditorios o centro de convenciones o cualquier espacio entre las facultades o centros o institutos de la Universidad",null,null,null,null,null,null,null,null,null,null,null,null,null,null,null,79863454,"GALLEGO VEGA LUIS EDUARDO"]
["TRANSFERENCIAS INTERNAS","210401101010105 - Transferencias O.I. Adquisición impresos y publicaciones","Transferencias O.IAdquisición impresos y publicaciones",null,"TRANSFERENCIAS INTERNAS - 210401101010105 - Transferencias O.I. Adquisición impresos y publicaciones",null,null,"Transferencias por operaciones celebradas con la Editorial o por venta de publicaciones entre facultades.",null,null,null,null,null,null,null,null,null,null,null,null,null,null,null,19221221,"GARZÓN GAITÁN CARLOS ALBERTO"]
["TRANSFERENCIAS INTERNAS","210401101010109 - Transferencias O.I. entre Unidades Ejecutoras","Transferencias O.Ientre Unidades Ejecutoras",null,"TRANSFERENCIAS INTERNAS - 210401101010109 - Transferencias O.I. entre Unidades Ejecutoras",null,null,"Son las transferencias realizadas al interior de la Universidad, efectuadas entre proyectos de una misma empresa o entre proyectos de diferentes empresas del sistema financiero de la Universidad y que no tienen contraprestación alguna.",null,null,null,null,null,null,null,null,null,null,null,null,null,null,null,79580032,"GODOY SILVA RUBEN DARIO"]
["TRANSFERENCIAS INTERNAS","210401101010102 - Transferencias O.I. Adquisición servicios - extensión","Transferencias O.IAdquisición servicios ",null,"TRANSFERENCIAS INTERNAS - 210401101010102 - Transferencias O.I. Adquisición servicios - extensión",null,null,"Transferencias realizadas por la prestación de servicios de actividades de extensión entre las diferentes facultades o centros e institutos de la Universidad tales como cursos de extensión, actualización o profundización, diplomados, eventos de extensión, entre otros. tales como:\n 1. SERVICIOS JURÍDICOS Y CONTABLES. \n 2. OTROS SERVICIOS PROFESIONALES, CIENTÍFICOS Y TÉCNICO. \n 3. SERVICIOS DE TELECOMUNICACIONES, TRANSMISIÓN Y SUMINISTRO DE INFORMACIÓN.\n 4. SERVICIOS DE APOYO A LA AGRICULTURA, LA CAZA, LA SILVICULTURA, LA PESCA, LA MINERÍA Y LOS SERVICIOS PÚBLICOS.\n 5. SERVICIOS DE EDUCACIÓN. \n 6. SERVICIOS PARA EL CUIDADO DE LA SALUD HUMANA Y SERVICIOS SOCIALES \n 7. SERVICIOS DE ESPARCIMIENTO, CULTURALES Y DEPORTIVOS.",null,null,null,null,null,null,null,null,null,null,null,null,null,null,null,18497666,"GOMEZ MEJIA ALEXANDER"]
["TRANSFERENCIAS INTERNAS","210401101010101 - Transferencias O.I. Adquisición de bienes","Transferencias O.IAdquisición de bienes",null,"TRANSFERENCIAS INTERNAS - 210401101010101 - Transferencias O.I. Adquisición de bienes",null,null,"Son los gastos por la adquisición de un producto al interior de la Universidad al interior de la Universidad, efectuadas entre proyectos de una misma empresa o entre proyectos de diferentes empresas del sistema financiero de la Universidad.",null,null,null,null,null,null,null,null,null,null,null,null,null,null,null,79594683,"GOMEZ PERDOMO JONATAN"]
["TRANSFERENCIAS INTERNAS","210401101010117 - Transferencias O.I. Fondo de construcción","Transferencias O.IFondo de construcción",null,"TRANSFERENCIAS INTERNAS - 210401101010117 - Transferencias O.I. Fondo de construcción",null,null,"Son las transferencias de recursos que hacen las facultades de la Sede Bogotá al Fondo de la Dirección Administrativa y Financiera de la Sede de los rendimientos financieros de las Facultades e Institutos de la Sede Bogotá y demás recursos transferidos por los fondos especiales como apoyo al desarrollo de la infraestructura física de la Sede en los porcentajes que establezca la normatividad vigente.",null,null,null,null,null,null,null,null,null,null,null,null,null,null,null,16665888,"GONZALEZ MURILLO CARLOS ALBERTO"]
["TRANSFERENCIAS INTERNAS","210401101010104 - Transferencias O.I. Adquisición servicios - bienestar","Transferencias O.IAdquisición servicios ",null,"TRANSFERENCIAS INTERNAS - 210401101010104 - Transferencias O.I. Adquisición servicios - bienestar",null,null,"Transferencias por la prestación de servicios de actividades de bienestar entre las diferentes facultades o centros e institutos de la Universidad.",null,null,null,null,null,null,null,null,null,null,null,null,null,null,null,71373155,"OSORIO HERNANDEZ ROBINSON"]
["TRANSFERENCIAS INTERNAS","210401101010113 - Transferencias O.I. Fondo Nacional de Extensión Solidaria","Transferencias O.IFondo Nacional de Extensión Solidaria",null,"TRANSFERENCIAS INTERNAS - 210401101010113 - Transferencias O.I. Fondo Nacional de Extensión Solidaria",null,null,"Son las transferencias que realizan del valor total de proyecto de extensión al Fondo Especial del Nivel Nacional, en el porcentaje que establezca la normatividad interna, destinado al Fondo Nacional de Extensión Solidaria.",null,null,null,null,null,null,null,null,null,null,null,null,null,null,null,19420566,"GRISALES PALACIO VICTOR HUGO"]
["TRANSFERENCIAS INTERNAS","210401101010112 - Transferencias O.I. Excedentes por Actividades Generadoras de Recursos","Transferencias O.IExcedentes por Actividades Generadoras de Recursos",null,"TRANSFERENCIAS INTERNAS - 210401101010112 - Transferencias O.I. Excedentes por Actividades Generadoras de Recursos",null,null,"Son las transferencias que realizan del valor total del proyecto al Fondo Especial que ejecuta el proyecto de extensión, en el porcentaje que establezca la normatividad interna.",null,null,null,null,null,null,null,null,null,null,null,null,null,null,null,19122982,"GUZMAN CASTRO FERNANDO"]
["TRANSFERENCIAS INTERNAS","210401101010111 - Transferencias O.I. Dirección Académica","Transferencias O.IDirección Académica",null,"TRANSFERENCIAS INTERNAS - 210401101010111 - Transferencias O.I. Dirección Académica",null,null,"Son las transferencias que traslada al Nivel Central de Sede y al Nivel Nacional por costos indirectos, en el porcentaje que establezca la normatividad, sobre los costos directos del proyecto de extensión. La distribución se realiza en tres partes iguales manera proporcional dividiendo el valor correspondiente a costos indirectos.",null,null,null,null,null,null,null,null,null,null,null,null,null,null,null,52221478,"GUZMAN PARDO MARIA ALEJANDRA"]
["TRANSFERENCIAS INTERNAS","210401101010110 - Transferencias O.I. Costos Indirectos","Transferencias O.ICostos Indirectos",null,"TRANSFERENCIAS INTERNAS - 210401101010110 - Transferencias O.I. Costos Indirectos",null,null,"Corresponde a las transferencias de recursos que hacen las Facultades al Nivel Nacional y al Nivel Central de la Sede en el porcentaje establecido en la normatividad interna.",null,null,null,null,null,null,null,null,null,null,null,null,null,null,null,79421155,"HERNANDEZ PEREZ GERMAN JAIRO"]
["TRANSFERENCIAS INTERNAS","210401101010103 - Transferencias O.I. Fondo de Investigación - UGI","Transferencias O.IFondo de Investigación ",null,"TRANSFERENCIAS INTERNAS - 210401101010103 - Transferencias O.I. Fondo de Investigación - UGI",null,null,"Corresponde a las transferencias de recursos del valor total del proyecto de extensión a la UGI del Nivel Nacional, en el porcentaje establecido en la normatividad interna correspondiente.",null,null,null,null,null,null,null,null,null,null,null,null,null,null,null,16267500,"HERNÁNDEZ LOSADA DIEGO FERNANDO"]
["TRANSFERENCIAS INTERNAS","210401101010119 - Transferencias O.I. Educación Formal","Transferencias O.IEducación Formal",null,"TRANSFERENCIAS INTERNAS - 210401101010119 - Transferencias O.I. Educación Formal",null,null,"Son las transferencias por los excedentes provenientes de saldos de convenios y contratos de investigación, una vez liquidados.",null,null,null,null,null,null,null,null,null,null,null,null,null,null,null,19258832,"HERRERA FONSECA HUGO ALBERTO"]
["TRANSFERENCIAS INTERNAS","210401101010116 - Transferencias O.I. Dirección de Extensión de la Sede","Transferencias O.IDirección de Extensión de la Sede",null,"TRANSFERENCIAS INTERNAS - 210401101010116 - Transferencias O.I. Dirección de Extensión de la Sede",null,null,"Son las transferencias que realizan del valor total de proyecto de extensión al Fondo Especial del Nivel de Sede, en el porcentaje que establezca la normatividad interna, destinado a la Dirección de Extensión de la Sede.",null,null,null,null,null,null,null,null,null,null,null,null,null,null,null,19455317,"HERRERA LEON FERNANDO AUGUSTO"]
["TRANSFERENCIAS INTERNAS","210401101010114 - Transferencias O.I. Fondo de Riesgos para la Extensión","Transferencias O.IFondo de Riesgos para la Extensión",null,"TRANSFERENCIAS INTERNAS - 210401101010114 - Transferencias O.I. Fondo de Riesgos para la Extensión",null,null,"Son las transferencias que realizan del valor total de proyecto de extensión al Fondo Especial del Nivel Nacional, en el porcentaje que establezca la normatividad interna, destinado al Fondo de Riesgos para la Extensión Solidaria.",null,null,null,null,null,null,null,null,null,null,null,null,null,null,null,43157544,"HERRERA QUINTERO LIZ KAREN"]
["TRANSFERENCIAS INTERNAS","210401101010115 - Transferencias O.I. Dirección Nacional de Extensión","Transferencias O.IDirección Nacional de Extensión",null,"TRANSFERENCIAS INTERNAS - 210401101010115 - Transferencias O.I. Dirección Nacional de Extensión",null,null,"Son las transferencias que realizan del valor total de proyecto de extensión del Fondo Especial que ejecuta el proyecto al Fondo Especial del Nivel Nacional, en el porcentaje que establezca la normatividad interna, destinado a la Dirección Nacional de Extensión.",null,null,null,null,null,null,null,null,null,null,null,null,null,null,null,16737949,"JIMENEZ PIZARRO RODRIGO"]
[null,null,null,null,null,null,null,null,null,null,null,null,null,null,null,null,null,null,null,null,null,null,null,52176126,"LEON GUZMAN ELIZABETH"]
[null,null,null,null,null,null,null,null,null,null,null,null,null,null,null,null,null,null,null,null,null,null,null,79601013,"LINERO SEGRERA DORIAN LUIS"]
[null,null,null,null,null,null,null,null,null,null,null,null,null,null,null,null,null,null,null,null,null,null,null,51754857,"LYONS BARRERA LILIANA LUCIA"]
[null,null,null,null,null,null,null,null,null,null,null,null,null,null,null,null,null,null,null,null,null,null,null,91489688,"MANTILLA GONZALEZ JUAN MIGUEL"]
[null,null,null,null,null,null,null,null,null,null,null,null,null,null,null,null,null,null,null,null,null,null,null,94432342,"MARTINEZ RIASCOS CARLOS ARTURO"]
[null,null,null,null,null,null,null,null,null,null,null,null,null,null,null,null,null,null,null,null,null,null,null,19332042,"MELUK OROZCO FRANCISCO"]
[null,null,null,null,null,null,null,null,null,null,null,null,null,null,null,null,null,null,null,null,null,null,null,88238024,"MOJICA NAVA EDUARDO ALIRIO"]
[null,null,null,null,null,null,null,null,null,null,null,null,null,null,null,null,null,null,null,null,null,null,null,52202653,"MOLINA HERRERA MARITZABEL"]
[null,null,null,null,null,null,null,null,null,null,null,null,null,null,null,null,null,null,null,null,null,null,null,91269814,"MORENO MANTILLA CARLOS EDUARDO"]
[null,null,null,null,null,null,null,null,null,null,null,null,null,null,null,null,null,null,null,null,null,null,null,52389844,"MURILLO FEO CAROL ANDREA"]
[null,null,null,null,null,null,null,null,null,null,null,null,null,null,null,null,null,null,null,null,null,null,null,79858766,"OLAYA FLOREZ JHON JAIRO"]
[null,null,null,null,null,null,null,null,null,null,null,null,null,null,null,null,null,null,null,null,null,null,null,79851773,"ORJUELA LONDOÑO ALVARO"]
[null,null,null,null,null,null,null,null,null,null,null,null,null,null,null,null,null,null,null,null,null,null,null,17343931,"ORTIZ MOSQUERA RAFAEL ORLANDO"]
[null,null,null,null,null,null,null,null,null,null,null,null,null,null,null,null,null,null,null,null,null,null,null,79518953,"ORTIZ TRIVIÑO JORGE EDUARDO"]
[null,null,null,null,null,null,null,null,null,null,null,null,null,null,null,null,null,null,null,null,null,null,null,51873630,"PAEZ PARRA INGRID PATRICIA"]
[null,null,null,null,null,null,null,null,null,null,null,null,null,null,null,null,null,null,null,null,null,null,null,51921760,"PEREZ RODRIGUEZ CLAUDIA PATRICIA"]
[null,null,null,null,null,null,null,null,null,null,null,null,null,null,null,null,null,null,null,null,null,null,null,7304244,"PEÑA REYES JOSE ISMAEL"]
[null,null,null,null,null,null,null,null,null,null,null,null,null,null,null,null,null,null,null,null,null,null,null,12240227,"PIAMBA TULCAN OSCAR EDWIN"]
[null,null,null,null,null,null,null,null,null,null,null,null,null,null,null,null,null,null,null,null,null,null,null,91283651,"PINZON ARDILA YOAN JOSE"]
[null,null,null,null,null,null,null,null,null,null,null,null,null,null,null,null,null,null,null,null,null,null,null,80394287,"QUINTERO QUINTERO JESUS MARIA"]
[null,null,null,null,null,null,null,null,null,null,null,null,null,null,null,null,null,null,null,null,null,null,null,75076124,"RAMIREZ ECHEVERRY JHON JAIRO"]
[null,null,null,null,null,null,null,null,null,null,null,null,null,null,null,null,null,null,null,null,null,null,null,15920734,"RAMIREZ FRANCO JOSE HERNEY"]
[null,null,null,null,null,null,null,null,null,null,null,null,null,null,null,null,null,null,null,null,null,null,null,79113041,"RAMIREZ HEREDIA RICARDO EMIRO"]
[null,null,null,null,null,null,null,null,null,null,null,null,null,null,null,null,null,null,null,null,null,null,null,79661442,"RAMOS FUENTES GERMAN ANDRES"]
[null,null,null,null,null,null,null,null,null,null,null,null,null,null,null,null,null,null,null,null,null,null,null,19216550,"RINCON PARDO JUAN EDILBERTO"]
[null,null,null,null,null,null,null,null,null,null,null,null,null,null,null,null,null,null,null,null,null,null,null,52176853,"RINCON PRAT SONIA LUCIA"]
[null,null,null,null,null,null,null,null,null,null,null,null,null,null,null,null,null,null,null,null,null,null,null,19136869,"RIVEROS ROJAS MARCELO ENRIQUE"]
[null,null,null,null,null,null,null,null,null,null,null,null,null,null,null,null,null,null,null,null,null,null,null,79647661,"RODRIGUEZ BARACALDO RODOLFO"]
[null,null,null,null,null,null,null,null,null,null,null,null,null,null,null,null,null,null,null,null,null,null,null,19090408,"RODRIGUEZ ESPINOSA PABLO ENRIQUE"]
[null,null,null,null,null,null,null,null,null,null,null,null,null,null,null,null,null,null,null,null,null,null,null,19436030,"RODRIGUEZ NIÑO GERARDO"]
[null,null,null,null,null,null,null,null,null,null,null,null,null,null,null,null,null,null,null,null,null,null,null,80413250,"RODRIGUEZ SANDOVAL ERASMO ALFREDO"]
[null,null,null,null,null,null,null,null,null,null,null,null,null,null,null,null,null,null,null,null,null,null,null,46371959,"ROJAS MARTINEZ SANDRA LILIANA"]
[null,null,null,null,null,null,null,null,null,null,null,null,null,null,null,null,null,null,null,null,null,null,null,79601784,"ROJAS ROA NESTOR YEZID"]
[null,null,null,null,null,null,null,null,null,null,null,null,null,null,null,null,null,null,null,null,null,null,null,98337913,"ROSERO GARCIA JAVIER ALVEIRO"]
[null,null,null,null,null,null,null,null,null,null,null,null,null,null,null,null,null,null,null,null,null,null,null,79906514,"SERRATO BERMUDEZ JUAN CARLOS"]
[null,null,null,null,null,null,null,null,null,null,null,null,null,null,null,null,null,null,null,null,null,null,null,79946926,"SOFRONY ESMERAL JORGE IVAN"]
[null,null,null,null,null,null,null,null,null,null,null,null,null,null,null,null,null,null,null,null,null,null,null,19314521,"UMAÑA ACOSTA HENRY ROBERTO"]
[null,null,null,null,null,null,null,null,null,null,null,null,null,null,null,null,null,null,null,null,null,null,null,79597401,"VARGAS CHAPARRO EDGAR MIGUEL"]
[null,null,null,null,null,null,null,null,null,null,null,null,null,null,null,null,null,null,null,null,null,null,null,52422560,"VARON DURAN GLORIA MARGARITA"]
[null,null,null,null,null,null,null,null,null,null,null,null,null,null,null,null,null,null,null,null,null,null,null,19087848,"VEGA GUTIERREZ CARLOS TITO"]
[null,null,null,null,null,null,null,null,null,null,null,null,null,null,null,null,null,null,null,null,null,null,null,5946402,"VEGA MORA LEONEL"]
[null,null,null,null,null,null,null,null,null,null,null,null,null,null,null,null,null,null,null,null,null,null,null,19284274,"VELASQUEZ LOZANO MARIO ENRIQUE"]
[null,null,null,null,null,null,null,null,null,null,null,null,null,null,null,null,null,null,null,null,null,null,null,79695545,"ZEA RAMIREZ HUGO RICARDO"]
[null,null,null,null,null,null,null,null,null,null,null,null,null,null,null,null,null,null,null,null,null,null,null,51909836,"ANGARITA MONCALEANO IRMA INIRIDA"]
[null,null,null,null,null,null,null,null,null,null,null,null,null,null,null,null,null,null,null,null,null,null,null,19480048,"AVILA ALVAREZ GUILLERMO EDUARDO"]
[null,null,null,null,null,null,null,null,null,null,null,null,null,null,null,null,null,null,null,null,null,null,null,79801900,"BAQUERO ROZO GIOVANNI ALDEMAR"]
[null,null,null,null,null,null,null,null,null,null,null,null,null,null,null,null,null,null,null,null,null,null,null,19413375,"CAICEDO ESCOBAR CARLOS HERNAN"]
[null,null,null,null,null,null,null,null,null,null,null,null,null,null,null,null,null,null,null,null,null,null,null,74181503,"CARDENAS HERRERA PEDRO FABIAN"]
[null,null,null,null,null,null,null,null,null,null,null,null,null,null,null,null,null,null,null,null,null,null,null,80414207,"CASTRO GARCIA WILLIAM"]
[null,null,null,null,null,null,null,null,null,null,null,null,null,null,null,null,null,null,null,null,null,null,null,17057687,"CRUZ BAQUERO RAFAEL ANGEL"]
[null,null,null,null,null,null,null,null,null,null,null,null,null,null,null,null,null,null,null,null,null,null,null,79756570,"ESPEJO MORA EDGAR"]
[null,null,null,null,null,null,null,null,null,null,null,null,null,null,null,null,null,null,null,null,null,null,null,79888662,"GOMEZ GUACANEME CARLOS ALFONSO"]
[null,null,null,null,null,null,null,null,null,null,null,null,null,null,null,null,null,null,null,null,null,null,null,11253571,"HERRERA JIMENEZ ALFONSO"]
[null,null,null,null,null,null,null,null,null,null,null,null,null,null,null,null,null,null,null,null,null,null,null,2988895,"LIZARAZO MARRIAGA JUAN MANUEL RAFAEL"]
[null,null,null,null,null,null,null,null,null,null,null,null,null,null,null,null,null,null,null,null,null,null,null,79572777,"LOZANO OSORNO FERNANDO"]
[null,null,null,null,null,null,null,null,null,null,null,null,null,null,null,null,null,null,null,null,null,null,null,1032451223,"MAÑANA GUICHON GABRIEL JOSE"]
[null,null,null,null,null,null,null,null,null,null,null,null,null,null,null,null,null,null,null,null,null,null,null,19137117,"MELUK OROZCO GABRIEL"]
[null,null,null,null,null,null,null,null,null,null,null,null,null,null,null,null,null,null,null,null,null,null,null,80093810,"NARVAEZ TOVAR CARLOS ALBERTO"]
[null,null,null,null,null,null,null,null,null,null,null,null,null,null,null,null,null,null,null,null,null,null,null,79295396,"PEREZ RODRIGUEZ MARIO ALBERTO"]
[null,null,null,null,null,null,null,null,null,null,null,null,null,null,null,null,null,null,null,null,null,null,null,19409077,"PEREZ TORRES PEDRO AGUSTIN"]
[null,null,null,null,null,null,null,null,null,null,null,null,null,null,null,null,null,null,null,null,null,null,null,19397351,"ROBLES ROA CARLOS ORLANDO"]
[null,null,null,null,null,null,null,null,null,null,null,null,null,null,null,null,null,null,null,null,null,null,null,7223818,"RODRIGUEZ MESA FERNANDO JOSE"]
[null,null,null,null,null,null,null,null,null,null,null,null,null,null,null,null,null,null,null,null,null,null,null,19366171,"SANABRIA ARTUNDUAGA OTONIEL ALFONSO"]
[null,null,null,null,null,null,null,null,null,null,null,null,null,null,null,null,null,null,null,null,null,null,null,88218486,"SANCHEZ DIAZ CARLOS EDUARDO"]
[null,null,null,null,null,null,null,null,null,null,null,null,null,null,null,null,null,null,null,null,null,null,null,79297152,"SUAREZ MEDINA OSCAR JAVIER"]
[null,null,null,null,null,null,null,null,null,null,null,null,null,null,null,null,null,null,null,null,null,null,null,79544111,"TORRES SUAREZ MARIO CAMILO"]
[null,null,null,null,null,null,null,null,null,null,null,null,null,null,null,null,null,null,null,null,null,null,null,19263305,"VELEZ SANCHEZ JAVIER ENRIQUE"]
[null,null,null,null,null,null,null,null,null,null,null,null,null,null,null,null,null,null,null,null,null,null,null,51703016,"VILLARREAL MEGLAN ADIELA"]
[null,null,null,null,null,null,null,null,null,null,null,null,null,null,null,null,null,null,null,null,null,null,null,19278971,"CALLE PAEZ LEONARDO EMILIO DE LA CONCEPCI"]
[null,null,null,null,null,null,null,null,null,null,null,null,null,null,null,null,null,null,null,null,null,null,null,19288669,"ROJAS CAMACHO OSWALDO"]
[null,null,null,null,null,null,null,null,null,null,null,null,null,null,null,null,null,null,null,null,null,null,null,12966684,"ROSERO MUÑOZ MARIO ARMANDO"]
[null,null,null,null,null,null,null,null,null,null,null,null,null,null,null,null,null,null,null,null,null,null,null,17075194,"TORRES PARRA JAIRO"]
[null,null,null,null,null,null,null,null,null,null,null,null,null,null,null,null,null,null,null,null,null,null,null,79124642,"BARRERA COBOS JESUS FIDERNAN"]
[null,null,null,null,null,null,null,null,null,null,null,null,null,null,null,null,null,null,null,null,null,null,null,338288,"BRUSZIES . CHRISTIAN JOHANNES"]
[null,null,null,null,null,null,null,null,null,null,null,null,null,null,null,null,null,null,null,null,null,null,null,79532996,"CORONADO GARCIA OCTAVIO"]
[null,null,null,null,null,null,null,null,null,null,null,null,null,null,null,null,null,null,null,null,null,null,null,17103868,"FORERO SAAVEDRA JOSE ANTONIO"]
[null,null,null,null,null,null,null,null,null,null,null,null,null,null,null,null,null,null,null,null,null,null,null,5848661,"GARCIA LOPEZ MANUEL"]
[null,null,null,null,null,null,null,null,null,null,null,null,null,null,null,null,null,null,null,null,null,null,null,13488639,"OBREGON NEIRA NELSON"]
[null,null,null,null,null,null,null,null,null,null,null,null,null,null,null,null,null,null,null,null,null,null,null,80266825,"QUINTERO MONTAÑO CAMILO"]
[null,null,null,null,null,null,null,null,null,null,null,null,null,null,null,null,null,null,null,null,null,null,null,2986578,"RODRIGUEZ RINCON EDGAR"]
[null,null,null,null,null,null,null,null,null,null,null,null,null,null,null,null,null,null,null,null,null,null,null,79570217,"RUIZ ROJAS CESAR AUGUSTO"]
[null,null,null,null,null,null,null,null,null,null,null,null,null,null,null,null,null,null,null,null,null,null,null,79614908,"TIRANO VANEGAS JOAQUIN ENRIQUE"]
[null,null,null,null,null,null,null,null,null,null,null,null,null,null,null,null,null,null,null,null,null,null,null,19258382,"PERILLA GALINDO GABRIEL"]
[null,null,null,null,null,null,null,null,null,null,null,null,null,null,null,null,null,null,null,null,null,null,null,9522900,"PRIAS CAICEDO OMAR FREDDY"]
[null,null,null,null,null,null,null,null,null,null,null,null,null,null,null,null,null,null,null,null,null,null,null,19138485,"RUDAS LLERAS VICTOR EDUARDO"]
[null,null,null,null,null,null,null,null,null,null,null,null,null,null,null,null,null,null,null,null,null,null,null,19278557,"TAMASCO TORRES JUAN"]
[null,null,null,null,null,null,null,null,null,null,null,null,null,null,null,null,null,null,null,null,null,null,null,79757249,"URAZAN BONELLS CARLOS FELIPE"]
[null,null,null,null,null,null,null,null,null,null,null,null,null,null,null,null,null,null,null,null,null,null,null,19289601,"BARRERA VELANDIA JAIRO RAMIRO"]
[null,null,null,null,null,null,null,null,null,null,null,null,null,null,null,null,null,null,null,null,null,null,null,15050830,"BULA . GUSTAVO ALFREDO"]
[null,null,null,null,null,null,null,null,null,null,null,null,null,null,null,null,null,null,null,null,null,null,null,37713090,"MANGONES MATOS SONIA CECILIA"]
[null,null,null,null,null,null,null,null,null,null,null,null,null,null,null,null,null,null,null,null,null,null,null,79704151,"MONCADA ARISTIZABAL CARLOS ALBERTO"]
[null,null,null,null,null,null,null,null,null,null,null,null,null,null,null,null,null,null,null,null,null,null,null,79746890,"MUÑOZ PUERTA GIOVANNI"]
[null,null,null,null,null,null,null,null,null,null,null,null,null,null,null,null,null,null,null,null,null,null,null,19335150,"ROCHA CAMINO GABRIEL EDUARDO"]
[null,null,null,null,null,null,null,null,null,null,null,null,null,null,null,null,null,null,null,null,null,null,null,16075508,"ESTRADA MEJIA MARTIN"]
[null,null,null,null,null,null,null,null,null,null,null,null,null,null,null,null,null,null,null,null,null,null,null,80191774,"GARCIA NAVARRETE OSCAR LEONARDO"]
[null,null,null,null,null,null,null,null,null,null,null,null,null,null,null,null,null,null,null,null,null,null,null,19393079,"MUÑOZ NAVARRETE WILFREDO"]
[null,null,null,null,null,null,null,null,null,null,null,null,null,null,null,null,null,null,null,null,null,null,null,79877511,"PUERTO SUAREZ JULIAN DAVID"]
[null,null,null,null,null,null,null,null,null,null,null,null,null,null,null,null,null,null,null,null,null,null,null,6761711,"SAENZ SAAVEDRA CRISANTO"]
[null,null,null,null,null,null,null,null,null,null,null,null,null,null,null,null,null,null,null,null,null,null,null,80000489,"VALENZUELA MAHECHA MIGUEL ANGEL"]
[null,null,null,null,null,null,null,null,null,null,null,null,null,null,null,null,null,null,null,null,null,null,null,19098650,"RONCANCIO BERNAL JOSUE FERNANDO"]
[null,null,null,null,null,null,null,null,null,null,null,null,null,null,null,null,null,null,null,null,null,null,null,79239143,"ALDANA BERNAL JUAN CARLOS"]
[null,null,null,null,null,null,null,null,null,null,null,null,null,null,null,null,null,null,null,null,null,null,null,35500902,"ALDANA BOUTIN ROSE MARIE"]
[null,null,null,null,null,null,null,null,null,null,null,null,null,null,null,null,null,null,null,null,null,null,null,23582571,"BARRERA PUERTO ANGELA CELMIRA"]
[null,null,null,null,null,null,null,null,null,null,null,null,null,null,null,null,null,null,null,null,null,null,null,51903175,"CALDERON . MARIA EUGENIA"]
[null,null,null,null,null,null,null,null,null,null,null,null,null,null,null,null,null,null,null,null,null,null,null,79801610,"CARDOZO CHAUX MARIO JAVIER"]
[null,null,null,null,null,null,null,null,null,null,null,null,null,null,null,null,null,null,null,null,null,null,null,52438142,"CONSTAIN MONTOYA LAURA LUCIA"]
[null,null,null,null,null,null,null,null,null,null,null,null,null,null,null,null,null,null,null,null,null,null,null,75076725,"CUELLAR CARDENAS MARIO ANDRES"]
[null,null,null,null,null,null,null,null,null,null,null,null,null,null,null,null,null,null,null,null,null,null,null,79532176,"FIERRO MORALES HECTOR JULIO"]
[null,null,null,null,null,null,null,null,null,null,null,null,null,null,null,null,null,null,null,null,null,null,null,79671319,"GIRALDO PERALTA NICOLAS"]
[null,null,null,null,null,null,null,null,null,null,null,null,null,null,null,null,null,null,null,null,null,null,null,79139574,"GUTIÉRREZ PALACIO GELBER NORBERTO"]
[null,null,null,null,null,null,null,null,null,null,null,null,null,null,null,null,null,null,null,null,null,null,null,79791849,"LOZANO MONSALVE DANIEL RICARDO"]
[null,null,null,null,null,null,null,null,null,null,null,null,null,null,null,null,null,null,null,null,null,null,null,19079511,"MAHECHA BAUTISTA JUAN GUSTAVO"]
[null,null,null,null,null,null,null,null,null,null,null,null,null,null,null,null,null,null,null,null,null,null,null,75078008,"RAMIREZ ECHEVERRI SANTIAGO"]
[null,null,null,null,null,null,null,null,null,null,null,null,null,null,null,null,null,null,null,null,null,null,null,79746457,"RIOS FRESNEDA CAMILO"]
[null,null,null,null,null,null,null,null,null,null,null,null,null,null,null,null,null,null,null,null,null,null,null,79961009,"ROCHA GONZALEZ JAIR EDUARDO"]
[null,null,null,null,null,null,null,null,null,null,null,null,null,null,null,null,null,null,null,null,null,null,null,80097281,"RODRIGUEZ VASQUEZ ANDRES FELIPE"]
[null,null,null,null,null,null,null,null,null,null,null,null,null,null,null,null,null,null,null,null,null,null,null,17185265,"SALAZAR DELGADO FERNANDO"]
[null,null,null,null,null,null,null,null,null,null,null,null,null,null,null,null,null,null,null,null,null,null,null,80203081,"BARRERA GUALDRON EDUARDO"]
[null,null,null,null,null,null,null,null,null,null,null,null,null,null,null,null,null,null,null,null,null,null,null,7162583,"DUEÑAS PUENTES DIEGO ERNESTO"]
[null,null,null,null,null,null,null,null,null,null,null,null,null,null,null,null,null,null,null,null,null,null,null,17177343,"ASTAIZA AMADO LUIS GERARDO"]
[null,null,null,null,null,null,null,null,null,null,null,null,null,null,null,null,null,null,null,null,null,null,null,19057024,"BENITEZ HERNANDEZ LUIS EDUARDO"]
[null,null,null,null,null,null,null,null,null,null,null,null,null,null,null,null,null,null,null,null,null,null,null,19395716,"BOYACA MENDIVELSO LUIS ALEJANDRO"]
[null,null,null,null,null,null,null,null,null,null,null,null,null,null,null,null,null,null,null,null,null,null,null,19120878,"CASTAÑEDA FUENTES ISMAEL"]
[null,null,null,null,null,null,null,null,null,null,null,null,null,null,null,null,null,null,null,null,null,null,null,79365032,"COLMENARES MONTAÑEZ JULIO ESTEBAN"]
[null,null,null,null,null,null,null,null,null,null,null,null,null,null,null,null,null,null,null,null,null,null,null,12105821,"CORDOBA NIETO ERNESTO"]
[null,null,null,null,null,null,null,null,null,null,null,null,null,null,null,null,null,null,null,null,null,null,null,79295983,"DELGADO RIVERA JESUS ALBERTO"]
[null,null,null,null,null,null,null,null,null,null,null,null,null,null,null,null,null,null,null,null,null,null,null,19209186,"DIAZ MORALES HERNANDO"]
[null,null,null,null,null,null,null,null,null,null,null,null,null,null,null,null,null,null,null,null,null,null,null,19449931,"DUARTE AGUDELO CARLOS ARTURO"]
[null,null,null,null,null,null,null,null,null,null,null,null,null,null,null,null,null,null,null,null,null,null,null,79504981,"DUARTE VELASCO OSCAR GERMAN"]
[null,null,null,null,null,null,null,null,null,null,null,null,null,null,null,null,null,null,null,null,null,null,null,19224261,"FLOREZ CALDERON TITO"]
[null,null,null,null,null,null,null,null,null,null,null,null,null,null,null,null,null,null,null,null,null,null,null,79647908,"GARZON ALVARADO DIEGO ALEXANDER"]
[null,null,null,null,null,null,null,null,null,null,null,null,null,null,null,null,null,null,null,null,null,null,null,93337474,"GONZALEZ OSORIO FABIO AUGUSTO"]
[null,null,null,null,null,null,null,null,null,null,null,null,null,null,null,null,null,null,null,null,null,null,null,19097965,"GUERRERO CASADIEGO JAIME GUILLERMO"]
[null,null,null,null,null,null,null,null,null,null,null,null,null,null,null,null,null,null,null,null,null,null,null,79641736,"NARVAEZ RINCON PAULO CESAR"]
[null,null,null,null,null,null,null,null,null,null,null,null,null,null,null,null,null,null,null,null,null,null,null,79436297,"NIÑO VASQUEZ LUIS FERNANDO"]
[null,null,null,null,null,null,null,null,null,null,null,null,null,null,null,null,null,null,null,null,null,null,null,19339452,"PARRA CORONADO ALFONSO"]
[null,null,null,null,null,null,null,null,null,null,null,null,null,null,null,null,null,null,null,null,null,null,null,79520636,"PERILLA PERILLA JAIRO ERNESTO"]
[null,null,null,null,null,null,null,null,null,null,null,null,null,null,null,null,null,null,null,null,null,null,null,79425393,"PRIETO ORTIZ FLAVIO AUGUSTO"]
[null,null,null,null,null,null,null,null,null,null,null,null,null,null,null,null,null,null,null,null,null,null,null,17304916,"RANGEL JARA HERMES AUGUSTO"]
[null,null,null,null,null,null,null,null,null,null,null,null,null,null,null,null,null,null,null,null,null,null,null,19180721,"ROMAN CAMPOS FRANCISCO JOSE"]
[null,null,null,null,null,null,null,null,null,null,null,null,null,null,null,null,null,null,null,null,null,null,null,52029483,"SANCHEZ TORRES JENNY MARCELA"]
[null,null,null,null,null,null,null,null,null,null,null,null,null,null,null,null,null,null,null,null,null,null,null,79357694,"SIERRA VARGAS FABIO EMIRO"]
[null,null,null,null,null,null,null,null,null,null,null,null,null,null,null,null,null,null,null,null,null,null,null,51738939,"TAKEUCHI TAM CAORI PATRICIA"]
[null,null,null,null,null,null,null,null,null,null,null,null,null,null,null,null,null,null,null,null,null,null,null,79698866,"VARGAS SAENZ JULIO CESAR"]
[null,null,null,null,null,null,null,null,null,null,null,null,null,null,null,null,null,null,null,null,null,null,null,35498777,"MONROY VARELA SONIA ESPERANZA"]
[null,null,null,null,null,null,null,null,null,null,null,null,null,null,null,null,null,null,null,null,null,null,null,79148444,"VALLECILLA BAHENA CARLOS RAMIRO"]
[null,null,null,null,null,null,null,null,null,null,null,null,null,null,null,null,null,null,null,null,null,null,null,1032430404,"CASTRELLON TORRES JUAN PABLO"]
[null,null,null,null,null,null,null,null,null,null,null,null,null,null,null,null,null,null,null,null,null,null,null,79542830,"NOVOA GONZALEZ FELIPE"]
[null,null,null,null,null,null,null,null,null,null,null,null,null,null,null,null,null,null,null,null,null,null,null,51994061,"QUIMBAYO MIRANDA DIANA ESPERANZA DEL ROCIO"]
[null,null,null,null,null,null,null,null,null,null,null,null,null,null,null,null,null,null,null,null,null,null,null,41757692,"CASTELLANOS FIGUEROA BEATRIZ"]
[null,null,null,null,null,null,null,null,null,null,null,null,null,null,null,null,null,null,null,null,null,null,null,17075609,"CORTES AMADOR CARLOS ALFONSO"]
[null,null,null,null,null,null,null,null,null,null,null,null,null,null,null,null,null,null,null,null,null,null,null,16787360,"SALAS MONTOYA ANDRES"]
[null,null,null,null,null,null,null,null,null,null,null,null,null,null,null,null,null,null,null,null,null,null,null,17065097,"TRUJILLO GOMEZ JOSE OMAR"]
[null,null,null,null,null,null,null,null,null,null,null,null,null,null,null,null,null,null,null,null,null,null,null,216240,"RAMOS DE FLOREZ ZOILA INES"]
[null,null,null,null,null,null,null,null,null,null,null,null,null,null,null,null,null,null,null,null,null,null,null,13950367,"SAENZ SAAVEDRA NESTOR"]
[null,null,null,null,null,null,null,null,null,null,null,null,null,null,null,null,null,null,null,null,null,null,null,40014329,"FLECHAS CAMACHO ANA LUISA"]
[null,null,null,null,null,null,null,null,null,null,null,null,null,null,null,null,null,null,null,null,null,null,null,19173635,"GARCIA LOZADA HECTOR MANUEL"]
[null,null,null,null,null,null,null,null,null,null,null,null,null,null,null,null,null,null,null,null,null,null,null,13813881,"DELGADO FIALLO HECTOR"]
[null,null,null,null,null,null,null,null,null,null,null,null,null,null,null,null,null,null,null,null,null,null,null,79282962,"CAMACHO BOTERO LUIS ALEJANDRO"]
[null,null,null,null,null,null,null,null,null,null,null,null,null,null,null,null,null,null,null,null,null,null,null,19138075,"HUERTAS CAMPOS CRESCENCIO"]
[null,null,null,null,null,null,null,null,null,null,null,null,null,null,null,null,null,null,null,null,null,null,null,41323346,"DIAZ BAEZ MARIA CONSUELO"]
[null,null,null,null,null,null,null,null,null,null,null,null,null,null,null,null,null,null,null,null,null,null,null,41533389,"VILLAMIZAR COPETE FANNY"]
[null,null,null,null,null,null,null,null,null,null,null,null,null,null,null,null,null,null,null,null,null,null,null,6749048,"ROMERO ZAMBRANO GERMAN AUGUSTO"]
[null,null,null,null,null,null,null,null,null,null,null,null,null,null,null,null,null,null,null,null,null,null,null,17173471,"SANCHEZ CASTELLANOS FRANCISCO JOSE"]
[null,null,null,null,null,null,null,null,null,null,null,null,null,null,null,null,null,null,null,null,null,null,null,19181243,"HERNANDEZ HERNANDEZ JOSE EUGENIO"]
[null,null,null,null,null,null,null,null,null,null,null,null,null,null,null,null,null,null,null,null,null,null,null,11295059,"DELVASTO CHICO CIRO DARIO"]
[null,null,null,null,null,null,null,null,null,null,null,null,null,null,null,null,null,null,null,null,null,null,null,24937858,"GIRALDO ECHEVERRI GLORIA INES"]
[null,null,null,null,null,null,null,null,null,null,null,null,null,null,null,null,null,null,null,null,null,null,null,214701,"MANANA GABRIEL"]
[null,null,null,null,null,null,null,null,null,null,null,null,null,null,null,null,null,null,null,null,null,null,null,19124040,"RODRIGUEZ DEVIS JULIO MARIO"]
[null,null,null,null,null,null,null,null,null,null,null,null,null,null,null,null,null,null,null,null,null,null,null,19223283,"SANCHEZ SOSA ABDON"]
[null,null,null,null,null,null,null,null,null,null,null,null,null,null,null,null,null,null,null,null,null,null,null,79524306,"CAMARGO VALERO MILLER ALONSO"]
[null,null,null,null,null,null,null,null,null,null,null,null,null,null,null,null,null,null,null,null,null,null,null,19102012,"TORRES SANCHEZ HORACIO"]
[null,null,null,null,null,null,null,null,null,null,null,null,null,null,null,null,null,null,null,null,null,null,null,17174317,"CAICEDO MESA LUIS ALFONSO"]
[null,null,null,null,null,null,null,null,null,null,null,null,null,null,null,null,null,null,null,null,null,null,null,17160880,"ORDOÑEZ ORDOÑEZ JAIME IVAN"]
[null,null,null,null,null,null,null,null,null,null,null,null,null,null,null,null,null,null,null,null,null,null,null,8282744,"PUENTES PALENCIA LUIS HERNANDO"]
[null,null,null,null,null,null,null,null,null,null,null,null,null,null,null,null,null,null,null,null,null,null,null,79800303,"ROA GARZON MAXIMO ALEJANDRO"]
[null,null,null,null,null,null,null,null,null,null,null,null,null,null,null,null,null,null,null,null,null,null,null,13811095,"CASTELLANOS ACEROS HORACIO"]
[null,null,null,null,null,null,null,null,null,null,null,null,null,null,null,null,null,null,null,null,null,null,null,19092373,"CASTRO MORA JAVIER"]
[null,null,null,null,null,null,null,null,null,null,null,null,null,null,null,null,null,null,null,null,null,null,null,19081598,"VEGA MARQUEZ MIGUEL ANGEL"]
[null,null,null,null,null,null,null,null,null,null,null,null,null,null,null,null,null,null,null,null,null,null,null,19107323,"MELGAREJO ARISTIZABAL IVAN HERNANDO"]
[null,null,null,null,null,null,null,null,null,null,null,null,null,null,null,null,null,null,null,null,null,null,null,19114748,"MEJIA UMAÑA FERNANDO"]
[null,null,null,null,null,null,null,null,null,null,null,null,null,null,null,null,null,null,null,null,null,null,null,17123369,"CARBALLO SUAREZ LUIS MARIA"]
[null,null,null,null,null,null,null,null,null,null,null,null,null,null,null,null,null,null,null,null,null,null,null,15026540,"MENDOZA RIVERA HENRY"]
[null,null,null,null,null,null,null,null,null,null,null,null,null,null,null,null,null,null,null,null,null,null,null,17136801,"MARTINEZ MONTOYA JOSE DEMETRIO"]
[null,null,null,null,null,null,null,null,null,null,null,null,null,null,null,null,null,null,null,null,null,null,null,5983505,"ALARCON GUZMAN ADOLFO"]
[null,null,null,null,null,null,null,null,null,null,null,null,null,null,null,null,null,null,null,null,null,null,null,19194761,"ANGEL REYES GUILLERMO"]
[null,null,null,null,null,null,null,null,null,null,null,null,null,null,null,null,null,null,null,null,null,null,null,19068998,"FARIAS MENDOZA SILVERIO"]
[null,null,null,null,null,null,null,null,null,null,null,null,null,null,null,null,null,null,null,null,null,null,null,13217748,"OJEDA GOMEZ SAUL ANTONIO"]
[null,null,null,null,null,null,null,null,null,null,null,null,null,null,null,null,null,null,null,null,null,null,null,17185632,"MARTINEZ JOSE DE JESUS"]
[null,null,null,null,null,null,null,null,null,null,null,null,null,null,null,null,null,null,null,null,null,null,null,19108024,"TORRES SOLER LUIS CARLOS"]
[null,null,null,null,null,null,null,null,null,null,null,null,null,null,null,null,null,null,null,null,null,null,null,19136812,"MATIZ PEREIRA JORGE"]
[null,null,null,null,null,null,null,null,null,null,null,null,null,null,null,null,null,null,null,null,null,null,null,24304628,"SALAZAR HURTADO LUZ AMANDA"]
[null,null,null,null,null,null,null,null,null,null,null,null,null,null,null,null,null,null,null,null,null,null,null,51977256,"BONILLA SEBA EDNA CRISTINA DEL SOCORRO"]
[null,null,null,null,null,null,null,null,null,null,null,null,null,null,null,null,null,null,null,null,null,null,null,71315870,"GONZALEZ CALDERON CARLOS ALBERTO"]
[null,null,null,null,null,null,null,null,null,null,null,null,null,null,null,null,null,null,null,null,null,null,null,79966050,"BENAVIDES MORAN ALDO GERMAN"]
[null,null,null,null,null,null,null,null,null,null,null,null,null,null,null,null,null,null,null,null,null,null,null,77171744,"TAPIAS CAMACHO MAURICIO ALBERTO"]
[null,null,null,null,null,null,null,null,null,null,null,null,null,null,null,null,null,null,null,null,null,null,null,1018441704,"VERGARA VARGAS JEISSON ANDRES"]

{"sheet":"Listas2","index":6,"n_rows":126,"n_cols":4,"rows_kept":126,"cut":false,"hidden":true,"merged":[]}
["RUBRO"]
[210400201011104," Mejoras de tierras y terrenos",{"$f":"\".\"&B2","v":". Mejoras de tierras y terrenos"},"Mejoras de tierras y terrenos"]
[210400201011103," Otras estructuras",{"$f":"\".\"&B3","v":". Otras estructuras"},"Otras estructuras"]
[210400201011303," Maquinaria para uso general",". Maquinaria para uso general","Maquinaria para uso general"]
[210400201011304," Maquinaria para usos especiales",". Maquinaria para usos especiales","Maquinaria para usos especiales"]
[210400201011305," Maquinaria de oficina, contabilidad e informática",". Maquinaria de oficina, contabilidad e informática","Maquinaria de oficina, contabilidad e informática"]
[210400201011306," Maquinaria y aparatos eléctricos",". Maquinaria y aparatos eléctricos","Maquinaria y aparatos eléctricos"]
[210400201011307," Equipo y aparatos de radio, televisión y comunicaciones",". Equipo y aparatos de radio, televisión y comunicaciones","Equipo y aparatos de radio, televisión y comunicaciones"]
[210400201011308," Aparatos médicos, instrumentos ópticos y de precisión, relojes",". Aparatos médicos, instrumentos ópticos y de precisión, relojes","Aparatos médicos, instrumentos ópticos y de precisión, relojes"]
[210400201011309," Equipo de transporte",". Equipo de transporte","Equipo de transporte"]
[210400201011401," Recursos biológicos cultivados",". Recursos biológicos cultivados","Recursos biológicos cultivados"]
[210400201011402," Productos de la propiedad intelectual",". Productos de la propiedad intelectual","Productos de la propiedad intelectual"]
[210400201021501," Joyas, metales preciosos y antigüedades",". Joyas, metales preciosos y antigüedades","Joyas, metales preciosos y antigüedades"]
[2104002010316," Tierras y terrenos",". Tierras y terrenos","Tierras y terrenos"]
[2104002010317," Recursos biológicos no cultivados",". Recursos biológicos no cultivados","Recursos biológicos no cultivados"]
[210400201011101," Viviendas",". Viviendas","Viviendas"]
[210400201011102," Edificios distintos a viviendas",". Edificios distintos a viviendas","Edificios distintos a viviendas"]
[210400201011208," Muebles, instrumentos musicales, artículos de deporte y antigüedades",". Muebles, instrumentos musicales, artículos de deporte y antigüedades","Muebles, instrumentos musicales, artículos de deporte y antigüedades"]
[210400501020907," Otros servicios",". Otros servicios","Otros servicios"]
[210400501020909," Servicios prestados por organizaciones y organismos extraterritoriales",". Servicios prestados por organizaciones y organismos extraterritoriales","Servicios prestados por organizaciones y organismos extraterritoriales"]
[210400501020111," Viáticos de los funcionarios en comisión",". Viáticos de los funcionarios en comisión","Viáticos de los funcionarios en comisión"]
[210400501010001," Productos de la agricultura y la horticultura",". Productos de la agricultura y la horticultura","Productos de la agricultura y la horticultura"]
[210400501010002," Animales vivos y productos animales (excepto la carne)",". Animales vivos y productos animales (excepto la carne)","Animales vivos y productos animales (excepto la carne)"]
[210400501010003," Productos de la silvicultura y de la explotación forestal",". Productos de la silvicultura y de la explotación forestal","Productos de la silvicultura y de la explotación forestal"]
[210400501010004," Pescado y otros productos de la pesca",". Pescado y otros productos de la pesca","Pescado y otros productos de la pesca"]
[210400501010101," Carbón de hulla, lignito y turba",". Carbón de hulla, lignito y turba","Carbón de hulla, lignito y turba"]
[210400501010102," Petróleo crudo y gas natural",". Petróleo crudo y gas natural","Petróleo crudo y gas natural"]
[210400501010103," Minerales y concentrados de uranio y torio",". Minerales y concentrados de uranio y torio","Minerales y concentrados de uranio y torio"]
[210400501010104," Minerales metálicos",". Minerales metálicos","Minerales metálicos"]
[210400501010105," Piedra, arena y arcilla",". Piedra, arena y arcilla","Piedra, arena y arcilla"]
[210400501010106," Otros minerales",". Otros minerales","Otros minerales"]
[210400501010107," Electricidad, gas de ciudad, vapor y agua caliente",". Electricidad, gas de ciudad, vapor y agua caliente","Electricidad, gas de ciudad, vapor y agua caliente"]
[210400501010108," Agua natural",". Agua natural","Agua natural"]
[210400501010201," Carne, pescado, frutas, hortalizas, aceites y grasas",". Carne, pescado, frutas, hortalizas, aceites y grasas","Carne, pescado, frutas, hortalizas, aceites y grasas"]
[210400501010202," Productos lácteos y ovoproductos",". Productos lácteos y ovoproductos","Productos lácteos y ovoproductos"]
[210400501010203," Productos de molinería, almidones y productos derivados del almidón; otros productos alimenticios",". Productos de molinería, almidones y productos derivados del almidón; otros productos alimenticios","Productos de molinería, almidones y productos derivados del almidón; otros productos alimenticios"]
[210400501010204," Bebidas",". Bebidas","Bebidas"]
[210400501010205," Productos de tabaco",". Productos de tabaco","Productos de tabaco"]
[210400501010206," Hilados e hilos; tejidos de fibras textiles incluso afelpados",". Hilados e hilos; tejidos de fibras textiles incluso afelpados","Hilados e hilos; tejidos de fibras textiles incluso afelpados"]
[210400501010207," Artículos textiles (excepto prendas de vestir)",". Artículos textiles (excepto prendas de vestir)","Artículos textiles (excepto prendas de vestir)"]
[210400501010208," Tejido de punto o ganchillo; prendas de vestir",". Tejido de punto o ganchillo; prendas de vestir","Tejido de punto o ganchillo; prendas de vestir"]
[210400501010209," Cuero y productos de cuero; calzado",". Cuero y productos de cuero; calzado","Cuero y productos de cuero; calzado"]
[210400501010301," Productos de madera, corcho, cestería y espartería",". Productos de madera, corcho, cestería y espartería","Productos de madera, corcho, cestería y espartería"]
[210400501010302," Pasta o pulpa, papel y productos de papel; impresos y artículos relacionados",". Pasta o pulpa, papel y productos de papel; impresos y artículos relacionados","Pasta o pulpa, papel y productos de papel; impresos y artículos relacionados"]
[210400501010303," Productos de hornos de coque; productos de refinación de petróleo y combustible nuclear",". Productos de hornos de coque; productos de refinación de petróleo y combustible nuclear","Productos de hornos de coque; productos de refinación de petróleo y combustible nuclear"]
[210400501010304," Químicos básicos",". Químicos básicos","Químicos básicos"]
[210400501010305," Otros productos químicos; fibras artificiales (o fibras industriales hechas por el hombre)",". Otros productos químicos; fibras artificiales (o fibras industriales hechas por el hombre)","Otros productos químicos; fibras artificiales (o fibras industriales hechas por el hombre)"]
[210400501010306," Productos de caucho y plástico",". Productos de caucho y plástico","Productos de caucho y plástico"]
[210400501010307," Vidrio y productos de vidrio y otros productos no metálicos n.c.p.",". Vidrio y productos de vidrio y otros productos no metálicos n.c.p.","Vidrio y productos de vidrio y otros productos no metálicos n.c.p."]
[210400501010308," Muebles; otros bienes transportables n.c.p.",". Muebles; otros bienes transportables n.c.p.","Muebles; otros bienes transportables n.c.p."]
[210400501010309," Desperdicios; desechos y residuales",". Desperdicios; desechos y residuales","Desperdicios; desechos y residuales"]
[210400501010401," Metales básicos",". Metales básicos","Metales básicos"]
[210400501010402," Productos metálicos elaborados (excepto maquinaria y equipo)",". Productos metálicos elaborados (excepto maquinaria y equipo)","Productos metálicos elaborados (excepto maquinaria y equipo)"]
[210400501010403," Maquinaria para uso general",". Maquinaria para uso general","Maquinaria para uso general"]
[210400501010404," Maquinaria para usos especiales",". Maquinaria para usos especiales","Maquinaria para usos especiales"]
[210400201011405," Maquinaria de oficina, contabilidad e informática",". Maquinaria de oficina, contabilidad e informática","Maquinaria de oficina, contabilidad e informática"]
[210400501010406," Maquinaria y aparatos eléctricos",". Maquinaria y aparatos eléctricos","Maquinaria y aparatos eléctricos"]
[210400501010407," Equipo y aparatos de radio, televisión y comunicaciones",". Equipo y aparatos de radio, televisión y comunicaciones","Equipo y aparatos de radio, televisión y comunicaciones"]
[210400201011408," Aparatos médicos, instrumentos ópticos y de precisión, relojes",". Aparatos médicos, instrumentos ópticos y de precisión, relojes","Aparatos médicos, instrumentos ópticos y de precisión, relojes"]
[210400501010409," Equipo de transporte",". Equipo de transporte","Equipo de transporte"]
[210400501020504," Servicios de construcción",". Servicios de construcción","Servicios de construcción"]
[210400501020603," Alojamiento; servicios de suministros de comidas y bebidas",". Alojamiento; servicios de suministros de comidas y bebidas","Alojamiento; servicios de suministros de comidas y bebidas"]
[210400501020604," Servicios de transporte de pasajeros",". Servicios de transporte de pasajeros","Servicios de transporte de pasajeros"]
[210400501020605," Servicios de transporte de carga",". Servicios de transporte de carga","Servicios de transporte de carga"]
[210400501020606," Servicios de alquiler de vehículos de transporte con operario",". Servicios de alquiler de vehículos de transporte con operario","Servicios de alquiler de vehículos de transporte con operario"]
[210400501020607," Servicios de apoyo al transporte",". Servicios de apoyo al transporte","Servicios de apoyo al transporte"]
[210400501020608," Servicios postales y de mensajería",{"$f":"\".\"&B67","v":". Servicios postales y de mensajería"},"Servicios postales y de mensajería"]
[210400501020609," Servicios de distribución de electricidad, gas y agua (por cuenta propia)",". Servicios de distribución de electricidad, gas y agua (por cuenta propia)","Servicios de distribución de electricidad, gas y agua (por cuenta propia)"]
[210400501020701," Servicios financieros y servicios conexos",". Servicios financieros y servicios conexos","Servicios financieros y servicios conexos"]
[210400501020702," Servicios inmobiliarios",{"$f":"\".\"&B70","v":". Servicios inmobiliarios"},"Servicios inmobiliarios"]
[210400501020703," Servicios de arrendamiento o alquiler sin operario",{"$f":"\".\"&B71","v":". Servicios de arrendamiento o alquiler sin operario"},"Servicios de arrendamiento o alquiler sin operario"]
[210400501020801," Servicios de investigación y desarrollo",{"$f":"\".\"&B72","v":". Servicios de investigación y desarrollo"},"Servicios de investigación y desarrollo"]
[210400501020802," Servicios jurídicos y contables",". Servicios jurídicos y contables","Servicios jurídicos y contables"]
[210400501020803," Servicios profesionales, científicos y técnicos (Excepto los servicios de investigación, urbanismo, jurídicos y de contabilidad)",". Servicios profesionales, científicos y técnicos (Excepto los servicios de investigación, urbanismo, jurídicos y de contabilidad)","Servicios profesionales, científicos y técnicos (Excepto los servicios de investigación, urbanismo, jurídicos y de contabilidad)"]
[210400501020804," Servicios de telecomunicaciones, transmisión y suministro de información",". Servicios de telecomunicaciones, transmisión y suministro de información","Servicios de telecomunicaciones, transmisión y suministro de información"]
[210400501020805," Servicios de soporte",". Servicios de soporte","Servicios de soporte"]
[210400501020806," Servicios de apoyo a la agricultura, la caza, la silvicultura, la pesca, la minería y los servicios públicos",". Servicios de apoyo a la agricultura, la caza, la silvicultura, la pesca, la minería y los servicios públicos","Servicios de apoyo a la agricultura, la caza, la silvicultura, la pesca, la minería y los servicios públicos"]
[210400501020807," Servicios de mantenimiento, reparación e instalación (excepto servicios de construcción)",". Servicios de mantenimiento, reparación e instalación (excepto servicios de construcción)","Servicios de mantenimiento, reparación e instalación (excepto servicios de construcción)"]
[210400501020808," Servicios de fabricación de insumos físicos que son propiedad de otros",". Servicios de fabricación de insumos físicos que son propiedad de otros","Servicios de fabricación de insumos físicos que son propiedad de otros"]
[210400501020809," Otros servicios de fabricación; servicios de edición, impresión y reproducción; servicios de recuperación de materiales",". Otros servicios de fabricación; servicios de edición, impresión y reproducción; servicios de recuperación de materiales","Otros servicios de fabricación; servicios de edición, impresión y reproducción; servicios de recuperación de materiales"]
[210400501020902," Servicios de educación",". Servicios de educación","Servicios de educación"]
[210400501020903," Servicios para el cuidado de la salud humana y servicios sociales",". Servicios para el cuidado de la salud humana y servicios sociales","Servicios para el cuidado de la salud humana y servicios sociales"]
[210400501020904," Servicios de alcantarillado, recolección, tratamiento y disposición de desechos y otros servicios de saneamiento ambiental",". Servicios de alcantarillado, recolección, tratamiento y disposición de desechos y otros servicios de saneamiento ambiental","Servicios de alcantarillado, recolección, tratamiento y disposición de desechos y otros servicios de saneamiento ambiental"]
[210400501020905," Servicios de asociaciones",". Servicios de asociaciones","Servicios de asociaciones"]
[210400501020906," Servicios de esparcimiento, culturales y deportivos",". Servicios de esparcimiento, culturales y deportivos","Servicios de esparcimiento, culturales y deportivos"]
[210400101030302," Estímulos a los empleados del estado ",". Estímulos a los empleados del estado ","Estímulos a los empleados del estado "]
[210400801020401," Impuesto sobre vehículos automotores",". Impuesto sobre vehículos automotores","Impuesto sobre vehículos automotores"]
[210400801020301," Impuesto de registro",". Impuesto de registro","Impuesto de registro"]
[210400801020201," Impuesto sobre delineación urbana",". Impuesto sobre delineación urbana","Impuesto sobre delineación urbana"]
[210400801020101," Impuesto predial y sobretasa ambiental",". Impuesto predial y sobretasa ambiental","Impuesto predial y sobretasa ambiental"]
[210400806010101," Gravamen a los movimientos financieros",". Gravamen a los movimientos financieros","Gravamen a los movimientos financieros"]
[210400801020501," Impuesto de industria y comercio",". Impuesto de industria y comercio","Impuesto de industria y comercio"]
[210400805020101," Intereses de mora",". Intereses de mora","Intereses de mora"]
[210400803010101," Tasas y derechos administrativos",". Tasas y derechos administrativos","Tasas y derechos administrativos"]
[210400804010101," Cuota de fiscalización y auditaje",". Cuota de fiscalización y auditaje","Cuota de fiscalización y auditaje"]
[210400804020101," Contribución ",". Contribución ","Contribución "]
[210400804030101," Contribución ",". Contribución ","Contribución "]
[210400805010101," Sanciones contractuales",". Sanciones contractuales","Sanciones contractuales"]
[210400805010201," Sanciones administrativas",". Sanciones administrativas","Sanciones administrativas"]
[210400802010101," Estampillas",". Estampillas","Estampillas"]
[210400303020101," Apoyo para el desarrollo de las actividades de docencia, investigación o extensión a entidades territoriales distintas de compensaciones y participaciones",". Apoyo para el desarrollo de las actividades de docencia, investigación o extensión a entidades territoriales distintas de compensaciones y participaciones","Apoyo para el desarrollo de las actividades de docencia, investigación o extensión a entidades territoriales distintas de compensaciones y participaciones"]
[210400302020102," Distintas a membresias a otras organizaciones nacionales",". Distintas a membresias a otras organizaciones nacionales","Distintas a membresias a otras organizaciones nacionales"]
[210400302010101," Membresias, afiliaciones y cuotas de sostenimiento a otras organizaciones nacionales",". Membresias, afiliaciones y cuotas de sostenimiento a otras organizaciones nacionales","Membresias, afiliaciones y cuotas de sostenimiento a otras organizaciones nacionales"]
[210400301020102," Distintas a membresias a otras organizaciones internacionales",". Distintas a membresias a otras organizaciones internacionales","Distintas a membresias a otras organizaciones internacionales"]
[210400301010101," Membresias, afiliaciones y cuotas de sostenimiento a otras organizaciones internacionales",". Membresias, afiliaciones y cuotas de sostenimiento a otras organizaciones internacionales","Membresias, afiliaciones y cuotas de sostenimiento a otras organizaciones internacionales"]
[210400303040101," Apoyo para el desarrollo de las actividades de docencia, investigación o extensión a otras entidades del gobierno general",". Apoyo para el desarrollo de las actividades de docencia, investigación o extensión a otras entidades del gobierno general","Apoyo para el desarrollo de las actividades de docencia, investigación o extensión a otras entidades del gobierno general"]
[210400309010101," Bono de beneficios a comunidad universitaria",". Bono de beneficios a comunidad universitaria","Bono de beneficios a comunidad universitaria"]
[210400308010101," Beneficios educativos a la comunidad universitaria",". Beneficios educativos a la comunidad universitaria","Beneficios educativos a la comunidad universitaria"]
[210401101010107," Transferencias O.I. Adquisición servicios de comunicación",". Transferencias O.I. Adquisición servicios de comunicación","Transferencias O.IAdquisición servicios de comunicación"]
[210401101010108," Transferencias O.I. Adquisición otros servicios",". Transferencias O.I. Adquisición otros servicios","Transferencias O.IAdquisición otros servicios"]
[210401101010106," Transferencias O.I. Adquisición arrendamientos",". Transferencias O.I. Adquisición arrendamientos","Transferencias O.IAdquisición arrendamientos"]
[210401101010105," Transferencias O.I. Adquisición impresos y publicaciones",". Transferencias O.I. Adquisición impresos y publicaciones","Transferencias O.IAdquisición impresos y publicaciones"]
[210401101010109," Transferencias O.I. entre Unidades Ejecutoras",". Transferencias O.I. entre Unidades Ejecutoras","Transferencias O.Ientre Unidades Ejecutoras"]
[210401101010102," Transferencias O.I. Adquisición servicios ",". Transferencias O.I. Adquisición servicios ","Transferencias O.IAdquisición servicios "]
[210401101010101," Transferencias O.I. Adquisición de bienes",". Transferencias O.I. Adquisición de bienes","Transferencias O.IAdquisición de bienes"]
[210401101010117," Transferencias O.I. Fondo de construcción",". Transferencias O.I. Fondo de construcción","Transferencias O.IFondo de construcción"]
[210401101010104," Transferencias O.I. Adquisición servicios ",". Transferencias O.I. Adquisición servicios ","Transferencias O.IAdquisición servicios "]
[210401101010113," Transferencias O.I. Fondo Nacional de Extensión Solidaria",". Transferencias O.I. Fondo Nacional de Extensión Solidaria","Transferencias O.IFondo Nacional de Extensión Solidaria"]
[210401101010112," Transferencias O.I. Excedentes por Actividades Generadoras de Recursos",". Transferencias O.I. Excedentes por Actividades Generadoras de Recursos","Transferencias O.IExcedentes por Actividades Generadoras de Recursos"]
[210401101010111," Transferencias O.I. Dirección Académica",". Transferencias O.I. Dirección Académica","Transferencias O.IDirección Académica"]
[210401101010110," Transferencias O.I. Costos Indirectos",". Transferencias O.I. Costos Indirectos","Transferencias O.ICostos Indirectos"]
[210401101010103," Transferencias O.I. Fondo de Investigación ",". Transferencias O.I. Fondo de Investigación ","Transferencias O.IFondo de Investigación "]
[210401101010119," Transferencias O.I. Educación Formal",". Transferencias O.I. Educación Formal","Transferencias O.IEducación Formal"]
[210401101010116," Transferencias O.I. Dirección de Extensión de la Sede",". Transferencias O.I. Dirección de Extensión de la Sede","Transferencias O.IDirección de Extensión de la Sede"]
[210401101010114," Transferencias O.I. Fondo de Riesgos para la Extensión",". Transferencias O.I. Fondo de Riesgos para la Extensión","Transferencias O.IFondo de Riesgos para la Extensión"]
[210401101010115," Transferencias O.I. Dirección Nacional de Extensión",". Transferencias O.I. Dirección Nacional de Extensión","Transferencias O.IDirección Nacional de Extensión"]

{"sheet":"Unidades","index":7,"n_rows":25,"n_cols":1,"rows_kept":25,"cut":false,"hidden":true,"merged":[]}
["Unidades"]
["Global"]
["Tóner"]
["Cartucho"]
["Resma"]
["Kilogramo"]
["Metro"]
["Litro"]
["Hora"]
["Gramo"]
["Galón"]
["Tiquete"]
["Global"]
["Día"]
["Mes"]
["Peaje"]
["Unidad"]
["Hora"]
["Día"]
["Semana"]
["Mes"]
["Personas"]
["Global"]
["Unidad"]
["Otro"]